{"text_format":"3","workbook":"xlsx","n_sheets":7,"sheets":["Hints Hire&Rehire and Sep","Hire&Rehire","Separation","ReOrg","Promotion&Transfer","Hire Lists","Separation Lists"],"read":"whole","date_system":"1900"}

{"sheet":"Hints Hire&Rehire and Sep","index":0,"n_rows":6,"n_cols":2,"rows_kept":6,"merged":[[0,0,0,10]]}
["FOR MASS HIRE AND MASS SEPARATION TEMPLATES\nPLEASE ENTER DATA FOR THE E-PAR SUBMITTED ON THE E-PAR FORM INTO ROW #3 OF THE MASS E-PAR TEMPLATE - ADDING DATA FOR THE SUBMITTED PAR TO ANY OTHER ROW WILL RESULT IN ERRORS!"]
[null,"HRSC USE ONLY - DO NOT ENTER ANYTHING INTO THIS CELL."]
[null,"These cells are required and must be completed prior to submitting the Mass Hire or Separation E-PAR Spreadsheet to the HRSC."]
[]
["For Mass Hires: When complete, save a local copy of this workbook to your computer and name it \"Mass Hire Spreadsheet.xlsx\"; then attach the saved copy to the submitted E-PAR"]
["For Mass Separations: When complete, save a local copy of this workbook to your computer and name it  \"Mass Separation Spreadsheet.xlsx\"; then attach the saved copy to the submitted E-PAR"]

{"sheet":"Hire&Rehire","index":1,"n_rows":1003,"n_cols":70,"rows_kept":1003}
["AccessCode","AccessCode Left","AccessCode Right","PAR Submitted","Employee Action","Pos No","Estimated End Date","I9 Verifier Pos No","EE SSN","Last Name","First Name","Middle Name","Prefix","Suffix","Designation","Pers No","Birth Dt","Gender","Address1","Address2","Municipality","Municipality Type","City","State","Zip","Home Phone","Cell Phone","Residence County","Email","Mailing Address 1","Mailing Adress 2","Mailing City","Mailing State","Mailing Zip","Org ID","Org Name","Pay Term","Job Cd","Work Parent Property","Work Location ID","Work Location Name","Work Address1","Work Address2","Work City","Work State","Work Zip","Pos Zip","Pers Subarea","Cont Type","Pay Area","Emp Grp","Emp Sub Grp","Conf Ind","30hrswk1506yr","Prop Eff Date","Cert Military Vet","Pay Grp","Pay Lvl","Background Check Ind","Time Mgmt Status","UC Exemption","Action Reason","Annual EPR Date","Longevity Date","CS Cert","NCS Req No","QHOL Hours","Furloughee Final Check Date","Time Administrator Code","Work Schedule Rule"]
["EXAMPLE",null,null,"X","New Hire","00019235","2019-01-01","00256577","123456789","Test","John","A","Dr","V","DMD","00123456","1900-01-01","Male","123 Test Street","Apartment #D26","Harrisburg","City","Harrisburg","PA","17102",12345678910,"0123456789","Dauphin","noemail@pa.gov","123 Test Street","Unit B4","Hershey","PA","17085-7483","00813050","EX Bur Emp Rltns","Biweekly","05990","Capitol Complex","B1000005","Finance Buliding","613 North St","5th Fl","Harrisburg","PA",171200400,"171200400","MA33","CS - Probationary","Z3","Permanent","Full-time 75 Hr","X","Y","2018-01-01","Yes","ST09","01","X","1 - Time evaluation of actual times","Non-Exempt","12 - CS Order Appointment Above Min","2018-01-01","2018-01-01",12345,54321,"37.50","2018-01-01","TMK","BAA18155 - TMS 9"]
["HRSC USE ONLY",{"$f":"LEFT(TRIM(A3),LEN(TRIM(A3))-8)","v":"HRSC "},{"$f":"RIGHT(TRIM(A3),8)","v":"USE ONLY"},"X"]
[{"$f":"B4&C4","v":{"$error":"#VALUE!"}},{"$f":"B3+1","v":{"$error":"#VALUE!"}},{"$f":"$C$3","v":"USE ONLY"}]
[{"$error":"#VALUE!"},{"$error":"#VALUE!"},"USE ONLY"]
[{"$error":"#VALUE!"},{"$error":"#VALUE!"},"USE ONLY"]
[{"$error":"#VALUE!"},{"$error":"#VALUE!"},"USE ONLY"]
[{"$error":"#VALUE!"},{"$error":"#VALUE!"},"USE ONLY"]
[{"$error":"#VALUE!"},{"$error":"#VALUE!"},"USE ONLY"]
[{"$error":"#VALUE!"},{"$error":"#VALUE!"},"USE ONLY"]
[{"$error":"#VALUE!"},{"$error":"#VALUE!"},"USE ONLY"]
[{"$error":"#VALUE!"},{"$error":"#VALUE!"},"USE ONLY"]
[{"$error":"#VALUE!"},{"$error":"#VALUE!"},"USE ONLY"]
[{"$error":"#VALUE!"},{"$error":"#VALUE!"},"USE ONLY"]
[{"$error":"#VALUE!"},{"$error":"#VALUE!"},"USE ONLY"]
[{"$error":"#VALUE!"},{"$error":"#VALUE!"},"USE ONLY"]
[{"$error":"#VALUE!"},{"$error":"#VALUE!"},"USE ONLY"]
[{"$error":"#VALUE!"},{"$error":"#VALUE!"},"USE ONLY"]
[{"$error":"#VALUE!"},{"$error":"#VALUE!"},"USE ONLY"]
[{"$error":"#VALUE!"},{"$error":"#VALUE!"},"USE ONLY"]
[{"$error":"#VALUE!"},{"$error":"#VALUE!"},"USE ONLY"]
[{"$error":"#VALUE!"},{"$error":"#VALUE!"},"USE ONLY"]
[{"$error":"#VALUE!"},{"$error":"#VALUE!"},"USE ONLY"]
[{"$error":"#VALUE!"},{"$error":"#VALUE!"},"USE ONLY"]
[{"$error":"#VALUE!"},{"$error":"#VALUE!"},"USE ONLY"]
[{"$error":"#VALUE!"},{"$error":"#VALUE!"},"USE ONLY"]
[{"$error":"#VALUE!"},{"$error":"#VALUE!"},"USE ONLY"]
[{"$error":"#VALUE!"},{"$error":"#VALUE!"},"USE ONLY"]
[{"$error":"#VALUE!"},{"$error":"#VALUE!"},"USE ONLY"]
[{"$error":"#VALUE!"},{"$error":"#VALUE!"},"USE ONLY"]
[{"$error":"#VALUE!"},{"$error":"#VALUE!"},"USE ONLY"]
[{"$error":"#VALUE!"},{"$error":"#VALUE!"},"USE ONLY"]
[{"$error":"#VALUE!"},{"$error":"#VALUE!"},"USE ONLY"]
[{"$error":"#VALUE!"},{"$error":"#VALUE!"},"USE ONLY"]
[{"$error":"#VALUE!"},{"$error":"#VALUE!"},"USE ONLY"]
[{"$error":"#VALUE!"},{"$error":"#VALUE!"},"USE ONLY"]
[{"$error":"#VALUE!"},{"$error":"#VALUE!"},"USE ONLY"]
[{"$error":"#VALUE!"},{"$error":"#VALUE!"},"USE ONLY"]
[{"$error":"#VALUE!"},{"$error":"#VALUE!"},"USE ONLY"]
[{"$error":"#VALUE!"},{"$error":"#VALUE!"},"USE ONLY"]
[{"$error":"#VALUE!"},{"$error":"#VALUE!"},"USE ONLY"]
[{"$error":"#VALUE!"},{"$error":"#VALUE!"},"USE ONLY"]
[{"$error":"#VALUE!"},{"$error":"#VALUE!"},"USE ONLY"]
[{"$error":"#VALUE!"},{"$error":"#VALUE!"},"USE ONLY"]
[{"$error":"#VALUE!"},{"$error":"#VALUE!"},"USE ONLY"]
[{"$error":"#VALUE!"},{"$error":"#VALUE!"},"USE ONLY"]
[{"$error":"#VALUE!"},{"$error":"#VALUE!"},"USE ONLY"]
[{"$error":"#VALUE!"},{"$error":"#VALUE!"},"USE ONLY"]
[{"$error":"#VALUE!"},{"$error":"#VALUE!"},"USE ONLY"]
[{"$error":"#VALUE!"},{"$error":"#VALUE!"},"USE ONLY"]
[{"$error":"#VALUE!"},{"$error":"#VALUE!"},"USE ONLY"]
[{"$error":"#VALUE!"},{"$error":"#VALUE!"},"USE ONLY"]
[{"$error":"#VALUE!"},{"$error":"#VALUE!"},"USE ONLY"]
[{"$error":"#VALUE!"},{"$error":"#VALUE!"},"USE ONLY"]
[{"$error":"#VALUE!"},{"$error":"#VALUE!"},"USE ONLY"]
[{"$error":"#VALUE!"},{"$error":"#VALUE!"},"USE ONLY"]
[{"$error":"#VALUE!"},{"$error":"#VALUE!"},"USE ONLY"]
[{"$error":"#VALUE!"},{"$error":"#VALUE!"},"USE ONLY"]
[{"$error":"#VALUE!"},{"$error":"#VALUE!"},"USE ONLY"]
[{"$error":"#VALUE!"},{"$error":"#VALUE!"},"USE ONLY"]
[{"$error":"#VALUE!"},{"$error":"#VALUE!"},"USE ONLY"]
[{"$error":"#VALUE!"},{"$error":"#VALUE!"},"USE ONLY"]
[{"$error":"#VALUE!"},{"$error":"#VALUE!"},"USE ONLY"]
[{"$error":"#VALUE!"},{"$error":"#VALUE!"},"USE ONLY"]
[{"$error":"#VALUE!"},{"$error":"#VALUE!"},"USE ONLY"]
[{"$error":"#VALUE!"},{"$error":"#VALUE!"},"USE ONLY"]
[{"$error":"#VALUE!"},{"$error":"#VALUE!"},"USE ONLY"]
[{"$f":"B68&C68","v":{"$error":"#VALUE!"}},{"$f":"B67+1","v":{"$error":"#VALUE!"}},{"$f":"$C$3","v":"USE ONLY"}]
[{"$error":"#VALUE!"},{"$error":"#VALUE!"},"USE ONLY"]
[{"$error":"#VALUE!"},{"$error":"#VALUE!"},"USE ONLY"]
[{"$error":"#VALUE!"},{"$error":"#VALUE!"},"USE ONLY"]
[{"$error":"#VALUE!"},{"$error":"#VALUE!"},"USE ONLY"]
[{"$error":"#VALUE!"},{"$error":"#VALUE!"},"USE ONLY"]
[{"$error":"#VALUE!"},{"$error":"#VALUE!"},"USE ONLY"]
[{"$error":"#VALUE!"},{"$error":"#VALUE!"},"USE ONLY"]
[{"$error":"#VALUE!"},{"$error":"#VALUE!"},"USE ONLY"]
[{"$error":"#VALUE!"},{"$error":"#VALUE!"},"USE ONLY"]
[{"$error":"#VALUE!"},{"$error":"#VALUE!"},"USE ONLY"]
[{"$error":"#VALUE!"},{"$error":"#VALUE!"},"USE ONLY"]
[{"$error":"#VALUE!"},{"$error":"#VALUE!"},"USE ONLY"]
[{"$error":"#VALUE!"},{"$error":"#VALUE!"},"USE ONLY"]
[{"$error":"#VALUE!"},{"$error":"#VALUE!"},"USE ONLY"]
[{"$error":"#VALUE!"},{"$error":"#VALUE!"},"USE ONLY"]
[{"$error":"#VALUE!"},{"$error":"#VALUE!"},"USE ONLY"]
[{"$error":"#VALUE!"},{"$error":"#VALUE!"},"USE ONLY"]
[{"$error":"#VALUE!"},{"$error":"#VALUE!"},"USE ONLY"]
[{"$error":"#VALUE!"},{"$error":"#VALUE!"},"USE ONLY"]
[{"$error":"#VALUE!"},{"$error":"#VALUE!"},"USE ONLY"]
[{"$error":"#VALUE!"},{"$error":"#VALUE!"},"USE ONLY"]
[{"$error":"#VALUE!"},{"$error":"#VALUE!"},"USE ONLY"]
[{"$error":"#VALUE!"},{"$error":"#VALUE!"},"USE ONLY"]
[{"$error":"#VALUE!"},{"$error":"#VALUE!"},"USE ONLY"]
[{"$error":"#VALUE!"},{"$error":"#VALUE!"},"USE ONLY"]
[{"$error":"#VALUE!"},{"$error":"#VALUE!"},"USE ONLY"]
[{"$error":"#VALUE!"},{"$error":"#VALUE!"},"USE ONLY"]
[{"$error":"#VALUE!"},{"$error":"#VALUE!"},"USE ONLY"]
[{"$error":"#VALUE!"},{"$error":"#VALUE!"},"USE ONLY"]
[{"$error":"#VALUE!"},{"$error":"#VALUE!"},"USE ONLY"]
[{"$error":"#VALUE!"},{"$error":"#VALUE!"},"USE ONLY"]
[{"$error":"#VALUE!"},{"$error":"#VALUE!"},"USE ONLY"]
[{"$error":"#VALUE!"},{"$error":"#VALUE!"},"USE ONLY"]
[{"$error":"#VALUE!"},{"$error":"#VALUE!"},"USE ONLY"]
[{"$error":"#VALUE!"},{"$error":"#VALUE!"},"USE ONLY"]
[{"$error":"#VALUE!"},{"$error":"#VALUE!"},"USE ONLY"]
[{"$error":"#VALUE!"},{"$error":"#VALUE!"},"USE ONLY"]
[{"$error":"#VALUE!"},{"$error":"#VALUE!"},"USE ONLY"]
[{"$error":"#VALUE!"},{"$error":"#VALUE!"},"USE ONLY"]
[{"$error":"#VALUE!"},{"$error":"#VALUE!"},"USE ONLY"]
[{"$error":"#VALUE!"},{"$error":"#VALUE!"},"USE ONLY"]
[{"$error":"#VALUE!"},{"$error":"#VALUE!"},"USE ONLY"]
[{"$error":"#VALUE!"},{"$error":"#VALUE!"},"USE ONLY"]
[{"$error":"#VALUE!"},{"$error":"#VALUE!"},"USE ONLY"]
[{"$error":"#VALUE!"},{"$error":"#VALUE!"},"USE ONLY"]
[{"$error":"#VALUE!"},{"$error":"#VALUE!"},"USE ONLY"]
[{"$error":"#VALUE!"},{"$error":"#VALUE!"},"USE ONLY"]
[{"$error":"#VALUE!"},{"$error":"#VALUE!"},"USE ONLY"]
[{"$error":"#VALUE!"},{"$error":"#VALUE!"},"USE ONLY"]
[{"$error":"#VALUE!"},{"$error":"#VALUE!"},"USE ONLY"]
[{"$error":"#VALUE!"},{"$error":"#VALUE!"},"USE ONLY"]
[{"$error":"#VALUE!"},{"$error":"#VALUE!"},"USE ONLY"]
[{"$error":"#VALUE!"},{"$error":"#VALUE!"},"USE ONLY"]
[{"$error":"#VALUE!"},{"$error":"#VALUE!"},"USE ONLY"]
[{"$error":"#VALUE!"},{"$error":"#VALUE!"},"USE ONLY"]
[{"$error":"#VALUE!"},{"$error":"#VALUE!"},"USE ONLY"]
[{"$error":"#VALUE!"},{"$error":"#VALUE!"},"USE ONLY"]
[{"$error":"#VALUE!"},{"$error":"#VALUE!"},"USE ONLY"]
[{"$error":"#VALUE!"},{"$error":"#VALUE!"},"USE ONLY"]
[{"$error":"#VALUE!"},{"$error":"#VALUE!"},"USE ONLY"]
[{"$error":"#VALUE!"},{"$error":"#VALUE!"},"USE ONLY"]
[{"$error":"#VALUE!"},{"$error":"#VALUE!"},"USE ONLY"]
[{"$error":"#VALUE!"},{"$error":"#VALUE!"},"USE ONLY"]
[{"$f":"B132&C132","v":{"$error":"#VALUE!"}},{"$f":"B131+1","v":{"$error":"#VALUE!"}},{"$f":"$C$3","v":"USE ONLY"}]
[{"$error":"#VALUE!"},{"$error":"#VALUE!"},"USE ONLY"]
[{"$error":"#VALUE!"},{"$error":"#VALUE!"},"USE ONLY"]
[{"$error":"#VALUE!"},{"$error":"#VALUE!"},"USE ONLY"]
[{"$error":"#VALUE!"},{"$error":"#VALUE!"},"USE ONLY"]
[{"$error":"#VALUE!"},{"$error":"#VALUE!"},"USE ONLY"]
[{"$error":"#VALUE!"},{"$error":"#VALUE!"},"USE ONLY"]
[{"$error":"#VALUE!"},{"$error":"#VALUE!"},"USE ONLY"]
[{"$error":"#VALUE!"},{"$error":"#VALUE!"},"USE ONLY"]
[{"$error":"#VALUE!"},{"$error":"#VALUE!"},"USE ONLY"]
[{"$error":"#VALUE!"},{"$error":"#VALUE!"},"USE ONLY"]
[{"$error":"#VALUE!"},{"$error":"#VALUE!"},"USE ONLY"]
[{"$error":"#VALUE!"},{"$error":"#VALUE!"},"USE ONLY"]
[{"$error":"#VALUE!"},{"$error":"#VALUE!"},"USE ONLY"]
[{"$error":"#VALUE!"},{"$error":"#VALUE!"},"USE ONLY"]
[{"$error":"#VALUE!"},{"$error":"#VALUE!"},"USE ONLY"]
[{"$error":"#VALUE!"},{"$error":"#VALUE!"},"USE ONLY"]
[{"$error":"#VALUE!"},{"$error":"#VALUE!"},"USE ONLY"]
[{"$error":"#VALUE!"},{"$error":"#VALUE!"},"USE ONLY"]
[{"$error":"#VALUE!"},{"$error":"#VALUE!"},"USE ONLY"]
[{"$error":"#VALUE!"},{"$error":"#VALUE!"},"USE ONLY"]
[{"$error":"#VALUE!"},{"$error":"#VALUE!"},"USE ONLY"]
[{"$error":"#VALUE!"},{"$error":"#VALUE!"},"USE ONLY"]
[{"$error":"#VALUE!"},{"$error":"#VALUE!"},"USE ONLY"]
[{"$error":"#VALUE!"},{"$error":"#VALUE!"},"USE ONLY"]
[{"$error":"#VALUE!"},{"$error":"#VALUE!"},"USE ONLY"]
[{"$error":"#VALUE!"},{"$error":"#VALUE!"},"USE ONLY"]
[{"$error":"#VALUE!"},{"$error":"#VALUE!"},"USE ONLY"]
[{"$error":"#VALUE!"},{"$error":"#VALUE!"},"USE ONLY"]
[{"$error":"#VALUE!"},{"$error":"#VALUE!"},"USE ONLY"]
[{"$error":"#VALUE!"},{"$error":"#VALUE!"},"USE ONLY"]
[{"$error":"#VALUE!"},{"$error":"#VALUE!"},"USE ONLY"]
[{"$error":"#VALUE!"},{"$error":"#VALUE!"},"USE ONLY"]
[{"$error":"#VALUE!"},{"$error":"#VALUE!"},"USE ONLY"]
[{"$error":"#VALUE!"},{"$error":"#VALUE!"},"USE ONLY"]
[{"$error":"#VALUE!"},{"$error":"#VALUE!"},"USE ONLY"]
[{"$error":"#VALUE!"},{"$error":"#VALUE!"},"USE ONLY"]
[{"$error":"#VALUE!"},{"$error":"#VALUE!"},"USE ONLY"]
[{"$error":"#VALUE!"},{"$error":"#VALUE!"},"USE ONLY"]
[{"$error":"#VALUE!"},{"$error":"#VALUE!"},"USE ONLY"]
[{"$error":"#VALUE!"},{"$error":"#VALUE!"},"USE ONLY"]
[{"$error":"#VALUE!"},{"$error":"#VALUE!"},"USE ONLY"]
[{"$error":"#VALUE!"},{"$error":"#VALUE!"},"USE ONLY"]
[{"$error":"#VALUE!"},{"$error":"#VALUE!"},"USE ONLY"]
[{"$error":"#VALUE!"},{"$error":"#VALUE!"},"USE ONLY"]
[{"$error":"#VALUE!"},{"$error":"#VALUE!"},"USE ONLY"]
[{"$error":"#VALUE!"},{"$error":"#VALUE!"},"USE ONLY"]
[{"$error":"#VALUE!"},{"$error":"#VALUE!"},"USE ONLY"]
[{"$error":"#VALUE!"},{"$error":"#VALUE!"},"USE ONLY"]
[{"$error":"#VALUE!"},{"$error":"#VALUE!"},"USE ONLY"]
[{"$error":"#VALUE!"},{"$error":"#VALUE!"},"USE ONLY"]
[{"$error":"#VALUE!"},{"$error":"#VALUE!"},"USE ONLY"]
[{"$error":"#VALUE!"},{"$error":"#VALUE!"},"USE ONLY"]
[{"$error":"#VALUE!"},{"$error":"#VALUE!"},"USE ONLY"]
[{"$error":"#VALUE!"},{"$error":"#VALUE!"},"USE ONLY"]
[{"$error":"#VALUE!"},{"$error":"#VALUE!"},"USE ONLY"]
[{"$error":"#VALUE!"},{"$error":"#VALUE!"},"USE ONLY"]
[{"$error":"#VALUE!"},{"$error":"#VALUE!"},"USE ONLY"]
[{"$error":"#VALUE!"},{"$error":"#VALUE!"},"USE ONLY"]
[{"$error":"#VALUE!"},{"$error":"#VALUE!"},"USE ONLY"]
[{"$error":"#VALUE!"},{"$error":"#VALUE!"},"USE ONLY"]
[{"$error":"#VALUE!"},{"$error":"#VALUE!"},"USE ONLY"]
[{"$error":"#VALUE!"},{"$error":"#VALUE!"},"USE ONLY"]
[{"$error":"#VALUE!"},{"$error":"#VALUE!"},"USE ONLY"]
[{"$f":"B196&C196","v":{"$error":"#VALUE!"}},{"$f":"B195+1","v":{"$error":"#VALUE!"}},{"$f":"$C$3","v":"USE ONLY"}]
[{"$error":"#VALUE!"},{"$error":"#VALUE!"},"USE ONLY"]
[{"$error":"#VALUE!"},{"$error":"#VALUE!"},"USE ONLY"]
[{"$error":"#VALUE!"},{"$error":"#VALUE!"},"USE ONLY"]
[{"$error":"#VALUE!"},{"$error":"#VALUE!"},"USE ONLY"]
[{"$error":"#VALUE!"},{"$error":"#VALUE!"},"USE ONLY"]
[{"$error":"#VALUE!"},{"$error":"#VALUE!"},"USE ONLY"]
[{"$error":"#VALUE!"},{"$error":"#VALUE!"},"USE ONLY"]
[{"$error":"#VALUE!"},{"$error":"#VALUE!"},"USE ONLY"]
[{"$error":"#VALUE!"},{"$error":"#VALUE!"},"USE ONLY"]
[{"$error":"#VALUE!"},{"$error":"#VALUE!"},"USE ONLY"]
[{"$error":"#VALUE!"},{"$error":"#VALUE!"},"USE ONLY"]
[{"$error":"#VALUE!"},{"$error":"#VALUE!"},"USE ONLY"]
[{"$error":"#VALUE!"},{"$error":"#VALUE!"},"USE ONLY"]
[{"$error":"#VALUE!"},{"$error":"#VALUE!"},"USE ONLY"]
[{"$error":"#VALUE!"},{"$error":"#VALUE!"},"USE ONLY"]
[{"$error":"#VALUE!"},{"$error":"#VALUE!"},"USE ONLY"]
[{"$error":"#VALUE!"},{"$error":"#VALUE!"},"USE ONLY"]
[{"$error":"#VALUE!"},{"$error":"#VALUE!"},"USE ONLY"]
[{"$error":"#VALUE!"},{"$error":"#VALUE!"},"USE ONLY"]
[{"$error":"#VALUE!"},{"$error":"#VALUE!"},"USE ONLY"]
[{"$error":"#VALUE!"},{"$error":"#VALUE!"},"USE ONLY"]
[{"$error":"#VALUE!"},{"$error":"#VALUE!"},"USE ONLY"]
[{"$error":"#VALUE!"},{"$error":"#VALUE!"},"USE ONLY"]
[{"$error":"#VALUE!"},{"$error":"#VALUE!"},"USE ONLY"]
[{"$error":"#VALUE!"},{"$error":"#VALUE!"},"USE ONLY"]
[{"$error":"#VALUE!"},{"$error":"#VALUE!"},"USE ONLY"]
[{"$error":"#VALUE!"},{"$error":"#VALUE!"},"USE ONLY"]
[{"$error":"#VALUE!"},{"$error":"#VALUE!"},"USE ONLY"]
[{"$error":"#VALUE!"},{"$error":"#VALUE!"},"USE ONLY"]
[{"$error":"#VALUE!"},{"$error":"#VALUE!"},"USE ONLY"]
[{"$error":"#VALUE!"},{"$error":"#VALUE!"},"USE ONLY"]
[{"$error":"#VALUE!"},{"$error":"#VALUE!"},"USE ONLY"]
[{"$error":"#VALUE!"},{"$error":"#VALUE!"},"USE ONLY"]
[{"$error":"#VALUE!"},{"$error":"#VALUE!"},"USE ONLY"]
[{"$error":"#VALUE!"},{"$error":"#VALUE!"},"USE ONLY"]
[{"$error":"#VALUE!"},{"$error":"#VALUE!"},"USE ONLY"]
[{"$error":"#VALUE!"},{"$error":"#VALUE!"},"USE ONLY"]
[{"$error":"#VALUE!"},{"$error":"#VALUE!"},"USE ONLY"]
[{"$error":"#VALUE!"},{"$error":"#VALUE!"},"USE ONLY"]
[{"$error":"#VALUE!"},{"$error":"#VALUE!"},"USE ONLY"]
[{"$error":"#VALUE!"},{"$error":"#VALUE!"},"USE ONLY"]
[{"$error":"#VALUE!"},{"$error":"#VALUE!"},"USE ONLY"]
[{"$error":"#VALUE!"},{"$error":"#VALUE!"},"USE ONLY"]
[{"$error":"#VALUE!"},{"$error":"#VALUE!"},"USE ONLY"]
[{"$error":"#VALUE!"},{"$error":"#VALUE!"},"USE ONLY"]
[{"$error":"#VALUE!"},{"$error":"#VALUE!"},"USE ONLY"]
[{"$error":"#VALUE!"},{"$error":"#VALUE!"},"USE ONLY"]
[{"$error":"#VALUE!"},{"$error":"#VALUE!"},"USE ONLY"]
[{"$error":"#VALUE!"},{"$error":"#VALUE!"},"USE ONLY"]
[{"$error":"#VALUE!"},{"$error":"#VALUE!"},"USE ONLY"]
[{"$error":"#VALUE!"},{"$error":"#VALUE!"},"USE ONLY"]
[{"$error":"#VALUE!"},{"$error":"#VALUE!"},"USE ONLY"]
[{"$error":"#VALUE!"},{"$error":"#VALUE!"},"USE ONLY"]
[{"$error":"#VALUE!"},{"$error":"#VALUE!"},"USE ONLY"]
[{"$error":"#VALUE!"},{"$error":"#VALUE!"},"USE ONLY"]
[{"$error":"#VALUE!"},{"$error":"#VALUE!"},"USE ONLY"]
[{"$error":"#VALUE!"},{"$error":"#VALUE!"},"USE ONLY"]
[{"$error":"#VALUE!"},{"$error":"#VALUE!"},"USE ONLY"]
[{"$error":"#VALUE!"},{"$error":"#VALUE!"},"USE ONLY"]
[{"$error":"#VALUE!"},{"$error":"#VALUE!"},"USE ONLY"]
[{"$error":"#VALUE!"},{"$error":"#VALUE!"},"USE ONLY"]
[{"$error":"#VALUE!"},{"$error":"#VALUE!"},"USE ONLY"]
[{"$error":"#VALUE!"},{"$error":"#VALUE!"},"USE ONLY"]
[{"$f":"B260&C260","v":{"$error":"#VALUE!"}},{"$f":"B259+1","v":{"$error":"#VALUE!"}},{"$f":"$C$3","v":"USE ONLY"}]
[{"$error":"#VALUE!"},{"$error":"#VALUE!"},"USE ONLY"]
[{"$error":"#VALUE!"},{"$error":"#VALUE!"},"USE ONLY"]
[{"$error":"#VALUE!"},{"$error":"#VALUE!"},"USE ONLY"]
[{"$error":"#VALUE!"},{"$error":"#VALUE!"},"USE ONLY"]
[{"$error":"#VALUE!"},{"$error":"#VALUE!"},"USE ONLY"]
[{"$error":"#VALUE!"},{"$error":"#VALUE!"},"USE ONLY"]
[{"$error":"#VALUE!"},{"$error":"#VALUE!"},"USE ONLY"]
[{"$error":"#VALUE!"},{"$error":"#VALUE!"},"USE ONLY"]
[{"$error":"#VALUE!"},{"$error":"#VALUE!"},"USE ONLY"]
[{"$error":"#VALUE!"},{"$error":"#VALUE!"},"USE ONLY"]
[{"$error":"#VALUE!"},{"$error":"#VALUE!"},"USE ONLY"]
[{"$error":"#VALUE!"},{"$error":"#VALUE!"},"USE ONLY"]
[{"$error":"#VALUE!"},{"$error":"#VALUE!"},"USE ONLY"]
[{"$error":"#VALUE!"},{"$error":"#VALUE!"},"USE ONLY"]
[{"$error":"#VALUE!"},{"$error":"#VALUE!"},"USE ONLY"]
[{"$error":"#VALUE!"},{"$error":"#VALUE!"},"USE ONLY"]
[{"$error":"#VALUE!"},{"$error":"#VALUE!"},"USE ONLY"]
[{"$error":"#VALUE!"},{"$error":"#VALUE!"},"USE ONLY"]
[{"$error":"#VALUE!"},{"$error":"#VALUE!"},"USE ONLY"]
[{"$error":"#VALUE!"},{"$error":"#VALUE!"},"USE ONLY"]
[{"$error":"#VALUE!"},{"$error":"#VALUE!"},"USE ONLY"]
[{"$error":"#VALUE!"},{"$error":"#VALUE!"},"USE ONLY"]
[{"$error":"#VALUE!"},{"$error":"#VALUE!"},"USE ONLY"]
[{"$error":"#VALUE!"},{"$error":"#VALUE!"},"USE ONLY"]
[{"$error":"#VALUE!"},{"$error":"#VALUE!"},"USE ONLY"]
[{"$error":"#VALUE!"},{"$error":"#VALUE!"},"USE ONLY"]
[{"$error":"#VALUE!"},{"$error":"#VALUE!"},"USE ONLY"]
[{"$error":"#VALUE!"},{"$error":"#VALUE!"},"USE ONLY"]
[{"$error":"#VALUE!"},{"$error":"#VALUE!"},"USE ONLY"]
[{"$error":"#VALUE!"},{"$error":"#VALUE!"},"USE ONLY"]
[{"$error":"#VALUE!"},{"$error":"#VALUE!"},"USE ONLY"]
[{"$error":"#VALUE!"},{"$error":"#VALUE!"},"USE ONLY"]
[{"$error":"#VALUE!"},{"$error":"#VALUE!"},"USE ONLY"]
[{"$error":"#VALUE!"},{"$error":"#VALUE!"},"USE ONLY"]
[{"$error":"#VALUE!"},{"$error":"#VALUE!"},"USE ONLY"]
[{"$error":"#VALUE!"},{"$error":"#VALUE!"},"USE ONLY"]
[{"$error":"#VALUE!"},{"$error":"#VALUE!"},"USE ONLY"]
[{"$error":"#VALUE!"},{"$error":"#VALUE!"},"USE ONLY"]
[{"$error":"#VALUE!"},{"$error":"#VALUE!"},"USE ONLY"]
[{"$error":"#VALUE!"},{"$error":"#VALUE!"},"USE ONLY"]
[{"$error":"#VALUE!"},{"$error":"#VALUE!"},"USE ONLY"]
[{"$error":"#VALUE!"},{"$error":"#VALUE!"},"USE ONLY"]
[{"$error":"#VALUE!"},{"$error":"#VALUE!"},"USE ONLY"]
[{"$error":"#VALUE!"},{"$error":"#VALUE!"},"USE ONLY"]
[{"$error":"#VALUE!"},{"$error":"#VALUE!"},"USE ONLY"]
[{"$error":"#VALUE!"},{"$error":"#VALUE!"},"USE ONLY"]
[{"$error":"#VALUE!"},{"$error":"#VALUE!"},"USE ONLY"]
[{"$error":"#VALUE!"},{"$error":"#VALUE!"},"USE ONLY"]
[{"$error":"#VALUE!"},{"$error":"#VALUE!"},"USE ONLY"]
[{"$error":"#VALUE!"},{"$error":"#VALUE!"},"USE ONLY"]
[{"$error":"#VALUE!"},{"$error":"#VALUE!"},"USE ONLY"]
[{"$error":"#VALUE!"},{"$error":"#VALUE!"},"USE ONLY"]
[{"$error":"#VALUE!"},{"$error":"#VALUE!"},"USE ONLY"]
[{"$error":"#VALUE!"},{"$error":"#VALUE!"},"USE ONLY"]
[{"$error":"#VALUE!"},{"$error":"#VALUE!"},"USE ONLY"]
[{"$error":"#VALUE!"},{"$error":"#VALUE!"},"USE ONLY"]
[{"$error":"#VALUE!"},{"$error":"#VALUE!"},"USE ONLY"]
[{"$error":"#VALUE!"},{"$error":"#VALUE!"},"USE ONLY"]
[{"$error":"#VALUE!"},{"$error":"#VALUE!"},"USE ONLY"]
[{"$error":"#VALUE!"},{"$error":"#VALUE!"},"USE ONLY"]
[{"$error":"#VALUE!"},{"$error":"#VALUE!"},"USE ONLY"]
[{"$error":"#VALUE!"},{"$error":"#VALUE!"},"USE ONLY"]
[{"$error":"#VALUE!"},{"$error":"#VALUE!"},"USE ONLY"]
[{"$f":"B324&C324","v":{"$error":"#VALUE!"}},{"$f":"B323+1","v":{"$error":"#VALUE!"}},{"$f":"$C$3","v":"USE ONLY"}]
[{"$error":"#VALUE!"},{"$error":"#VALUE!"},"USE ONLY"]
[{"$error":"#VALUE!"},{"$error":"#VALUE!"},"USE ONLY"]
[{"$error":"#VALUE!"},{"$error":"#VALUE!"},"USE ONLY"]
[{"$error":"#VALUE!"},{"$error":"#VALUE!"},"USE ONLY"]
[{"$error":"#VALUE!"},{"$error":"#VALUE!"},"USE ONLY"]
[{"$error":"#VALUE!"},{"$error":"#VALUE!"},"USE ONLY"]
[{"$error":"#VALUE!"},{"$error":"#VALUE!"},"USE ONLY"]
[{"$error":"#VALUE!"},{"$error":"#VALUE!"},"USE ONLY"]
[{"$error":"#VALUE!"},{"$error":"#VALUE!"},"USE ONLY"]
[{"$error":"#VALUE!"},{"$error":"#VALUE!"},"USE ONLY"]
[{"$error":"#VALUE!"},{"$error":"#VALUE!"},"USE ONLY"]
[{"$error":"#VALUE!"},{"$error":"#VALUE!"},"USE ONLY"]
[{"$error":"#VALUE!"},{"$error":"#VALUE!"},"USE ONLY"]
[{"$error":"#VALUE!"},{"$error":"#VALUE!"},"USE ONLY"]
[{"$error":"#VALUE!"},{"$error":"#VALUE!"},"USE ONLY"]
[{"$error":"#VALUE!"},{"$error":"#VALUE!"},"USE ONLY"]
[{"$error":"#VALUE!"},{"$error":"#VALUE!"},"USE ONLY"]
[{"$error":"#VALUE!"},{"$error":"#VALUE!"},"USE ONLY"]
[{"$error":"#VALUE!"},{"$error":"#VALUE!"},"USE ONLY"]
[{"$error":"#VALUE!"},{"$error":"#VALUE!"},"USE ONLY"]
[{"$error":"#VALUE!"},{"$error":"#VALUE!"},"USE ONLY"]
[{"$error":"#VALUE!"},{"$error":"#VALUE!"},"USE ONLY"]
[{"$error":"#VALUE!"},{"$error":"#VALUE!"},"USE ONLY"]
[{"$error":"#VALUE!"},{"$error":"#VALUE!"},"USE ONLY"]
[{"$error":"#VALUE!"},{"$error":"#VALUE!"},"USE ONLY"]
[{"$error":"#VALUE!"},{"$error":"#VALUE!"},"USE ONLY"]
[{"$error":"#VALUE!"},{"$error":"#VALUE!"},"USE ONLY"]
[{"$error":"#VALUE!"},{"$error":"#VALUE!"},"USE ONLY"]
[{"$error":"#VALUE!"},{"$error":"#VALUE!"},"USE ONLY"]
[{"$error":"#VALUE!"},{"$error":"#VALUE!"},"USE ONLY"]
[{"$error":"#VALUE!"},{"$error":"#VALUE!"},"USE ONLY"]
[{"$error":"#VALUE!"},{"$error":"#VALUE!"},"USE ONLY"]
[{"$error":"#VALUE!"},{"$error":"#VALUE!"},"USE ONLY"]
[{"$error":"#VALUE!"},{"$error":"#VALUE!"},"USE ONLY"]
[{"$error":"#VALUE!"},{"$error":"#VALUE!"},"USE ONLY"]
[{"$error":"#VALUE!"},{"$error":"#VALUE!"},"USE ONLY"]
[{"$error":"#VALUE!"},{"$error":"#VALUE!"},"USE ONLY"]
[{"$error":"#VALUE!"},{"$error":"#VALUE!"},"USE ONLY"]
[{"$error":"#VALUE!"},{"$error":"#VALUE!"},"USE ONLY"]
[{"$error":"#VALUE!"},{"$error":"#VALUE!"},"USE ONLY"]
[{"$error":"#VALUE!"},{"$error":"#VALUE!"},"USE ONLY"]
[{"$error":"#VALUE!"},{"$error":"#VALUE!"},"USE ONLY"]
[{"$error":"#VALUE!"},{"$error":"#VALUE!"},"USE ONLY"]
[{"$error":"#VALUE!"},{"$error":"#VALUE!"},"USE ONLY"]
[{"$error":"#VALUE!"},{"$error":"#VALUE!"},"USE ONLY"]
[{"$error":"#VALUE!"},{"$error":"#VALUE!"},"USE ONLY"]
[{"$error":"#VALUE!"},{"$error":"#VALUE!"},"USE ONLY"]
[{"$error":"#VALUE!"},{"$error":"#VALUE!"},"USE ONLY"]
[{"$error":"#VALUE!"},{"$error":"#VALUE!"},"USE ONLY"]
[{"$error":"#VALUE!"},{"$error":"#VALUE!"},"USE ONLY"]
[{"$error":"#VALUE!"},{"$error":"#VALUE!"},"USE ONLY"]
[{"$error":"#VALUE!"},{"$error":"#VALUE!"},"USE ONLY"]
[{"$error":"#VALUE!"},{"$error":"#VALUE!"},"USE ONLY"]
[{"$error":"#VALUE!"},{"$error":"#VALUE!"},"USE ONLY"]
[{"$error":"#VALUE!"},{"$error":"#VALUE!"},"USE ONLY"]
[{"$error":"#VALUE!"},{"$error":"#VALUE!"},"USE ONLY"]
[{"$error":"#VALUE!"},{"$error":"#VALUE!"},"USE ONLY"]
[{"$error":"#VALUE!"},{"$error":"#VALUE!"},"USE ONLY"]
[{"$error":"#VALUE!"},{"$error":"#VALUE!"},"USE ONLY"]
[{"$error":"#VALUE!"},{"$error":"#VALUE!"},"USE ONLY"]
[{"$error":"#VALUE!"},{"$error":"#VALUE!"},"USE ONLY"]
[{"$error":"#VALUE!"},{"$error":"#VALUE!"},"USE ONLY"]
[{"$error":"#VALUE!"},{"$error":"#VALUE!"},"USE ONLY"]
[{"$f":"B388&C388","v":{"$error":"#VALUE!"}},{"$f":"B387+1","v":{"$error":"#VALUE!"}},{"$f":"$C$3","v":"USE ONLY"}]
[{"$error":"#VALUE!"},{"$error":"#VALUE!"},"USE ONLY"]
[{"$error":"#VALUE!"},{"$error":"#VALUE!"},"USE ONLY"]
[{"$error":"#VALUE!"},{"$error":"#VALUE!"},"USE ONLY"]
[{"$error":"#VALUE!"},{"$error":"#VALUE!"},"USE ONLY"]
[{"$error":"#VALUE!"},{"$error":"#VALUE!"},"USE ONLY"]
[{"$error":"#VALUE!"},{"$error":"#VALUE!"},"USE ONLY"]
[{"$error":"#VALUE!"},{"$error":"#VALUE!"},"USE ONLY"]
[{"$error":"#VALUE!"},{"$error":"#VALUE!"},"USE ONLY"]
[{"$error":"#VALUE!"},{"$error":"#VALUE!"},"USE ONLY"]
[{"$error":"#VALUE!"},{"$error":"#VALUE!"},"USE ONLY"]
[{"$error":"#VALUE!"},{"$error":"#VALUE!"},"USE ONLY"]
[{"$error":"#VALUE!"},{"$error":"#VALUE!"},"USE ONLY"]
[{"$error":"#VALUE!"},{"$error":"#VALUE!"},"USE ONLY"]
[{"$error":"#VALUE!"},{"$error":"#VALUE!"},"USE ONLY"]
[{"$error":"#VALUE!"},{"$error":"#VALUE!"},"USE ONLY"]
[{"$error":"#VALUE!"},{"$error":"#VALUE!"},"USE ONLY"]
[{"$error":"#VALUE!"},{"$error":"#VALUE!"},"USE ONLY"]
[{"$error":"#VALUE!"},{"$error":"#VALUE!"},"USE ONLY"]
[{"$error":"#VALUE!"},{"$error":"#VALUE!"},"USE ONLY"]
[{"$error":"#VALUE!"},{"$error":"#VALUE!"},"USE ONLY"]
[{"$error":"#VALUE!"},{"$error":"#VALUE!"},"USE ONLY"]
[{"$error":"#VALUE!"},{"$error":"#VALUE!"},"USE ONLY"]
[{"$error":"#VALUE!"},{"$error":"#VALUE!"},"USE ONLY"]
[{"$error":"#VALUE!"},{"$error":"#VALUE!"},"USE ONLY"]
[{"$error":"#VALUE!"},{"$error":"#VALUE!"},"USE ONLY"]
[{"$error":"#VALUE!"},{"$error":"#VALUE!"},"USE ONLY"]
[{"$error":"#VALUE!"},{"$error":"#VALUE!"},"USE ONLY"]
[{"$error":"#VALUE!"},{"$error":"#VALUE!"},"USE ONLY"]
[{"$error":"#VALUE!"},{"$error":"#VALUE!"},"USE ONLY"]
[{"$error":"#VALUE!"},{"$error":"#VALUE!"},"USE ONLY"]
[{"$error":"#VALUE!"},{"$error":"#VALUE!"},"USE ONLY"]
[{"$error":"#VALUE!"},{"$error":"#VALUE!"},"USE ONLY"]
[{"$error":"#VALUE!"},{"$error":"#VALUE!"},"USE ONLY"]
[{"$error":"#VALUE!"},{"$error":"#VALUE!"},"USE ONLY"]
[{"$error":"#VALUE!"},{"$error":"#VALUE!"},"USE ONLY"]
[{"$error":"#VALUE!"},{"$error":"#VALUE!"},"USE ONLY"]
[{"$error":"#VALUE!"},{"$error":"#VALUE!"},"USE ONLY"]
[{"$error":"#VALUE!"},{"$error":"#VALUE!"},"USE ONLY"]
[{"$error":"#VALUE!"},{"$error":"#VALUE!"},"USE ONLY"]
[{"$error":"#VALUE!"},{"$error":"#VALUE!"},"USE ONLY"]
[{"$error":"#VALUE!"},{"$error":"#VALUE!"},"USE ONLY"]
[{"$error":"#VALUE!"},{"$error":"#VALUE!"},"USE ONLY"]
[{"$error":"#VALUE!"},{"$error":"#VALUE!"},"USE ONLY"]
[{"$error":"#VALUE!"},{"$error":"#VALUE!"},"USE ONLY"]
[{"$error":"#VALUE!"},{"$error":"#VALUE!"},"USE ONLY"]
[{"$error":"#VALUE!"},{"$error":"#VALUE!"},"USE ONLY"]
[{"$error":"#VALUE!"},{"$error":"#VALUE!"},"USE ONLY"]
[{"$error":"#VALUE!"},{"$error":"#VALUE!"},"USE ONLY"]
[{"$error":"#VALUE!"},{"$error":"#VALUE!"},"USE ONLY"]
[{"$error":"#VALUE!"},{"$error":"#VALUE!"},"USE ONLY"]
[{"$error":"#VALUE!"},{"$error":"#VALUE!"},"USE ONLY"]
[{"$error":"#VALUE!"},{"$error":"#VALUE!"},"USE ONLY"]
[{"$error":"#VALUE!"},{"$error":"#VALUE!"},"USE ONLY"]
[{"$error":"#VALUE!"},{"$error":"#VALUE!"},"USE ONLY"]
[{"$error":"#VALUE!"},{"$error":"#VALUE!"},"USE ONLY"]
[{"$error":"#VALUE!"},{"$error":"#VALUE!"},"USE ONLY"]
[{"$error":"#VALUE!"},{"$error":"#VALUE!"},"USE ONLY"]
[{"$error":"#VALUE!"},{"$error":"#VALUE!"},"USE ONLY"]
[{"$error":"#VALUE!"},{"$error":"#VALUE!"},"USE ONLY"]
[{"$error":"#VALUE!"},{"$error":"#VALUE!"},"USE ONLY"]
[{"$error":"#VALUE!"},{"$error":"#VALUE!"},"USE ONLY"]
[{"$error":"#VALUE!"},{"$error":"#VALUE!"},"USE ONLY"]
[{"$error":"#VALUE!"},{"$error":"#VALUE!"},"USE ONLY"]
[{"$f":"B452&C452","v":{"$error":"#VALUE!"}},{"$f":"B451+1","v":{"$error":"#VALUE!"}},{"$f":"$C$3","v":"USE ONLY"}]
[{"$error":"#VALUE!"},{"$error":"#VALUE!"},"USE ONLY"]
[{"$error":"#VALUE!"},{"$error":"#VALUE!"},"USE ONLY"]
[{"$error":"#VALUE!"},{"$error":"#VALUE!"},"USE ONLY"]
[{"$error":"#VALUE!"},{"$error":"#VALUE!"},"USE ONLY"]
[{"$error":"#VALUE!"},{"$error":"#VALUE!"},"USE ONLY"]
[{"$error":"#VALUE!"},{"$error":"#VALUE!"},"USE ONLY"]
[{"$error":"#VALUE!"},{"$error":"#VALUE!"},"USE ONLY"]
[{"$error":"#VALUE!"},{"$error":"#VALUE!"},"USE ONLY"]
[{"$error":"#VALUE!"},{"$error":"#VALUE!"},"USE ONLY"]
[{"$error":"#VALUE!"},{"$error":"#VALUE!"},"USE ONLY"]
[{"$error":"#VALUE!"},{"$error":"#VALUE!"},"USE ONLY"]
[{"$error":"#VALUE!"},{"$error":"#VALUE!"},"USE ONLY"]
[{"$error":"#VALUE!"},{"$error":"#VALUE!"},"USE ONLY"]
[{"$error":"#VALUE!"},{"$error":"#VALUE!"},"USE ONLY"]
[{"$error":"#VALUE!"},{"$error":"#VALUE!"},"USE ONLY"]
[{"$error":"#VALUE!"},{"$error":"#VALUE!"},"USE ONLY"]
[{"$error":"#VALUE!"},{"$error":"#VALUE!"},"USE ONLY"]
[{"$error":"#VALUE!"},{"$error":"#VALUE!"},"USE ONLY"]
[{"$error":"#VALUE!"},{"$error":"#VALUE!"},"USE ONLY"]
[{"$error":"#VALUE!"},{"$error":"#VALUE!"},"USE ONLY"]
[{"$error":"#VALUE!"},{"$error":"#VALUE!"},"USE ONLY"]
[{"$error":"#VALUE!"},{"$error":"#VALUE!"},"USE ONLY"]
[{"$error":"#VALUE!"},{"$error":"#VALUE!"},"USE ONLY"]
[{"$error":"#VALUE!"},{"$error":"#VALUE!"},"USE ONLY"]
[{"$error":"#VALUE!"},{"$error":"#VALUE!"},"USE ONLY"]
[{"$error":"#VALUE!"},{"$error":"#VALUE!"},"USE ONLY"]
[{"$error":"#VALUE!"},{"$error":"#VALUE!"},"USE ONLY"]
[{"$error":"#VALUE!"},{"$error":"#VALUE!"},"USE ONLY"]
[{"$error":"#VALUE!"},{"$error":"#VALUE!"},"USE ONLY"]
[{"$error":"#VALUE!"},{"$error":"#VALUE!"},"USE ONLY"]
[{"$error":"#VALUE!"},{"$error":"#VALUE!"},"USE ONLY"]
[{"$error":"#VALUE!"},{"$error":"#VALUE!"},"USE ONLY"]
[{"$error":"#VALUE!"},{"$error":"#VALUE!"},"USE ONLY"]
[{"$error":"#VALUE!"},{"$error":"#VALUE!"},"USE ONLY"]
[{"$error":"#VALUE!"},{"$error":"#VALUE!"},"USE ONLY"]
[{"$error":"#VALUE!"},{"$error":"#VALUE!"},"USE ONLY"]
[{"$error":"#VALUE!"},{"$error":"#VALUE!"},"USE ONLY"]
[{"$error":"#VALUE!"},{"$error":"#VALUE!"},"USE ONLY"]
[{"$error":"#VALUE!"},{"$error":"#VALUE!"},"USE ONLY"]
[{"$error":"#VALUE!"},{"$error":"#VALUE!"},"USE ONLY"]
[{"$error":"#VALUE!"},{"$error":"#VALUE!"},"USE ONLY"]
[{"$error":"#VALUE!"},{"$error":"#VALUE!"},"USE ONLY"]
[{"$error":"#VALUE!"},{"$error":"#VALUE!"},"USE ONLY"]
[{"$error":"#VALUE!"},{"$error":"#VALUE!"},"USE ONLY"]
[{"$error":"#VALUE!"},{"$error":"#VALUE!"},"USE ONLY"]
[{"$error":"#VALUE!"},{"$error":"#VALUE!"},"USE ONLY"]
[{"$error":"#VALUE!"},{"$error":"#VALUE!"},"USE ONLY"]
[{"$error":"#VALUE!"},{"$error":"#VALUE!"},"USE ONLY"]
[{"$error":"#VALUE!"},{"$error":"#VALUE!"},"USE ONLY"]
[{"$error":"#VALUE!"},{"$error":"#VALUE!"},"USE ONLY"]
[{"$error":"#VALUE!"},{"$error":"#VALUE!"},"USE ONLY"]
[{"$error":"#VALUE!"},{"$error":"#VALUE!"},"USE ONLY"]
[{"$error":"#VALUE!"},{"$error":"#VALUE!"},"USE ONLY"]
[{"$error":"#VALUE!"},{"$error":"#VALUE!"},"USE ONLY"]
[{"$error":"#VALUE!"},{"$error":"#VALUE!"},"USE ONLY"]
[{"$error":"#VALUE!"},{"$error":"#VALUE!"},"USE ONLY"]
[{"$error":"#VALUE!"},{"$error":"#VALUE!"},"USE ONLY"]
[{"$error":"#VALUE!"},{"$error":"#VALUE!"},"USE ONLY"]
[{"$error":"#VALUE!"},{"$error":"#VALUE!"},"USE ONLY"]
[{"$error":"#VALUE!"},{"$error":"#VALUE!"},"USE ONLY"]
[{"$error":"#VALUE!"},{"$error":"#VALUE!"},"USE ONLY"]
[{"$error":"#VALUE!"},{"$error":"#VALUE!"},"USE ONLY"]
[{"$error":"#VALUE!"},{"$error":"#VALUE!"},"USE ONLY"]
[{"$f":"B516&C516","v":{"$error":"#VALUE!"}},{"$f":"B515+1","v":{"$error":"#VALUE!"}},{"$f":"$C$3","v":"USE ONLY"}]
[{"$error":"#VALUE!"},{"$error":"#VALUE!"},"USE ONLY"]
[{"$error":"#VALUE!"},{"$error":"#VALUE!"},"USE ONLY"]
[{"$error":"#VALUE!"},{"$error":"#VALUE!"},"USE ONLY"]
[{"$error":"#VALUE!"},{"$error":"#VALUE!"},"USE ONLY"]
[{"$error":"#VALUE!"},{"$error":"#VALUE!"},"USE ONLY"]
[{"$error":"#VALUE!"},{"$error":"#VALUE!"},"USE ONLY"]
[{"$error":"#VALUE!"},{"$error":"#VALUE!"},"USE ONLY"]
[{"$error":"#VALUE!"},{"$error":"#VALUE!"},"USE ONLY"]
[{"$error":"#VALUE!"},{"$error":"#VALUE!"},"USE ONLY"]
[{"$error":"#VALUE!"},{"$error":"#VALUE!"},"USE ONLY"]
[{"$error":"#VALUE!"},{"$error":"#VALUE!"},"USE ONLY"]
[{"$error":"#VALUE!"},{"$error":"#VALUE!"},"USE ONLY"]
[{"$error":"#VALUE!"},{"$error":"#VALUE!"},"USE ONLY"]
[{"$error":"#VALUE!"},{"$error":"#VALUE!"},"USE ONLY"]
[{"$error":"#VALUE!"},{"$error":"#VALUE!"},"USE ONLY"]
[{"$error":"#VALUE!"},{"$error":"#VALUE!"},"USE ONLY"]
[{"$error":"#VALUE!"},{"$error":"#VALUE!"},"USE ONLY"]
[{"$error":"#VALUE!"},{"$error":"#VALUE!"},"USE ONLY"]
[{"$error":"#VALUE!"},{"$error":"#VALUE!"},"USE ONLY"]
[{"$error":"#VALUE!"},{"$error":"#VALUE!"},"USE ONLY"]
[{"$error":"#VALUE!"},{"$error":"#VALUE!"},"USE ONLY"]
[{"$error":"#VALUE!"},{"$error":"#VALUE!"},"USE ONLY"]
[{"$error":"#VALUE!"},{"$error":"#VALUE!"},"USE ONLY"]
[{"$error":"#VALUE!"},{"$error":"#VALUE!"},"USE ONLY"]
[{"$error":"#VALUE!"},{"$error":"#VALUE!"},"USE ONLY"]
[{"$error":"#VALUE!"},{"$error":"#VALUE!"},"USE ONLY"]
[{"$error":"#VALUE!"},{"$error":"#VALUE!"},"USE ONLY"]
[{"$error":"#VALUE!"},{"$error":"#VALUE!"},"USE ONLY"]
[{"$error":"#VALUE!"},{"$error":"#VALUE!"},"USE ONLY"]
[{"$error":"#VALUE!"},{"$error":"#VALUE!"},"USE ONLY"]
[{"$error":"#VALUE!"},{"$error":"#VALUE!"},"USE ONLY"]
[{"$error":"#VALUE!"},{"$error":"#VALUE!"},"USE ONLY"]
[{"$error":"#VALUE!"},{"$error":"#VALUE!"},"USE ONLY"]
[{"$error":"#VALUE!"},{"$error":"#VALUE!"},"USE ONLY"]
[{"$error":"#VALUE!"},{"$error":"#VALUE!"},"USE ONLY"]
[{"$error":"#VALUE!"},{"$error":"#VALUE!"},"USE ONLY"]
[{"$error":"#VALUE!"},{"$error":"#VALUE!"},"USE ONLY"]
[{"$error":"#VALUE!"},{"$error":"#VALUE!"},"USE ONLY"]
[{"$error":"#VALUE!"},{"$error":"#VALUE!"},"USE ONLY"]
[{"$error":"#VALUE!"},{"$error":"#VALUE!"},"USE ONLY"]
[{"$error":"#VALUE!"},{"$error":"#VALUE!"},"USE ONLY"]
[{"$error":"#VALUE!"},{"$error":"#VALUE!"},"USE ONLY"]
[{"$error":"#VALUE!"},{"$error":"#VALUE!"},"USE ONLY"]
[{"$error":"#VALUE!"},{"$error":"#VALUE!"},"USE ONLY"]
[{"$error":"#VALUE!"},{"$error":"#VALUE!"},"USE ONLY"]
[{"$error":"#VALUE!"},{"$error":"#VALUE!"},"USE ONLY"]
[{"$error":"#VALUE!"},{"$error":"#VALUE!"},"USE ONLY"]
[{"$error":"#VALUE!"},{"$error":"#VALUE!"},"USE ONLY"]
[{"$error":"#VALUE!"},{"$error":"#VALUE!"},"USE ONLY"]
[{"$error":"#VALUE!"},{"$error":"#VALUE!"},"USE ONLY"]
[{"$error":"#VALUE!"},{"$error":"#VALUE!"},"USE ONLY"]
[{"$error":"#VALUE!"},{"$error":"#VALUE!"},"USE ONLY"]
[{"$error":"#VALUE!"},{"$error":"#VALUE!"},"USE ONLY"]
[{"$error":"#VALUE!"},{"$error":"#VALUE!"},"USE ONLY"]
[{"$error":"#VALUE!"},{"$error":"#VALUE!"},"USE ONLY"]
[{"$error":"#VALUE!"},{"$error":"#VALUE!"},"USE ONLY"]
[{"$error":"#VALUE!"},{"$error":"#VALUE!"},"USE ONLY"]
[{"$error":"#VALUE!"},{"$error":"#VALUE!"},"USE ONLY"]
[{"$error":"#VALUE!"},{"$error":"#VALUE!"},"USE ONLY"]
[{"$error":"#VALUE!"},{"$error":"#VALUE!"},"USE ONLY"]
[{"$error":"#VALUE!"},{"$error":"#VALUE!"},"USE ONLY"]
[{"$error":"#VALUE!"},{"$error":"#VALUE!"},"USE ONLY"]
[{"$error":"#VALUE!"},{"$error":"#VALUE!"},"USE ONLY"]
[{"$f":"B580&C580","v":{"$error":"#VALUE!"}},{"$f":"B579+1","v":{"$error":"#VALUE!"}},{"$f":"$C$3","v":"USE ONLY"}]
[{"$error":"#VALUE!"},{"$error":"#VALUE!"},"USE ONLY"]
[{"$error":"#VALUE!"},{"$error":"#VALUE!"},"USE ONLY"]
[{"$error":"#VALUE!"},{"$error":"#VALUE!"},"USE ONLY"]
[{"$error":"#VALUE!"},{"$error":"#VALUE!"},"USE ONLY"]
[{"$error":"#VALUE!"},{"$error":"#VALUE!"},"USE ONLY"]
[{"$error":"#VALUE!"},{"$error":"#VALUE!"},"USE ONLY"]
[{"$error":"#VALUE!"},{"$error":"#VALUE!"},"USE ONLY"]
[{"$error":"#VALUE!"},{"$error":"#VALUE!"},"USE ONLY"]
[{"$error":"#VALUE!"},{"$error":"#VALUE!"},"USE ONLY"]
[{"$error":"#VALUE!"},{"$error":"#VALUE!"},"USE ONLY"]
[{"$error":"#VALUE!"},{"$error":"#VALUE!"},"USE ONLY"]
[{"$error":"#VALUE!"},{"$error":"#VALUE!"},"USE ONLY"]
[{"$error":"#VALUE!"},{"$error":"#VALUE!"},"USE ONLY"]
[{"$error":"#VALUE!"},{"$error":"#VALUE!"},"USE ONLY"]
[{"$error":"#VALUE!"},{"$error":"#VALUE!"},"USE ONLY"]
[{"$error":"#VALUE!"},{"$error":"#VALUE!"},"USE ONLY"]
[{"$error":"#VALUE!"},{"$error":"#VALUE!"},"USE ONLY"]
[{"$error":"#VALUE!"},{"$error":"#VALUE!"},"USE ONLY"]
[{"$error":"#VALUE!"},{"$error":"#VALUE!"},"USE ONLY"]
[{"$error":"#VALUE!"},{"$error":"#VALUE!"},"USE ONLY"]
[{"$error":"#VALUE!"},{"$error":"#VALUE!"},"USE ONLY"]
[{"$error":"#VALUE!"},{"$error":"#VALUE!"},"USE ONLY"]
[{"$error":"#VALUE!"},{"$error":"#VALUE!"},"USE ONLY"]
[{"$error":"#VALUE!"},{"$error":"#VALUE!"},"USE ONLY"]
[{"$error":"#VALUE!"},{"$error":"#VALUE!"},"USE ONLY"]
[{"$error":"#VALUE!"},{"$error":"#VALUE!"},"USE ONLY"]
[{"$error":"#VALUE!"},{"$error":"#VALUE!"},"USE ONLY"]
[{"$error":"#VALUE!"},{"$error":"#VALUE!"},"USE ONLY"]
[{"$error":"#VALUE!"},{"$error":"#VALUE!"},"USE ONLY"]
[{"$error":"#VALUE!"},{"$error":"#VALUE!"},"USE ONLY"]
[{"$error":"#VALUE!"},{"$error":"#VALUE!"},"USE ONLY"]
[{"$error":"#VALUE!"},{"$error":"#VALUE!"},"USE ONLY"]
[{"$error":"#VALUE!"},{"$error":"#VALUE!"},"USE ONLY"]
[{"$error":"#VALUE!"},{"$error":"#VALUE!"},"USE ONLY"]
[{"$error":"#VALUE!"},{"$error":"#VALUE!"},"USE ONLY"]
[{"$error":"#VALUE!"},{"$error":"#VALUE!"},"USE ONLY"]
[{"$error":"#VALUE!"},{"$error":"#VALUE!"},"USE ONLY"]
[{"$error":"#VALUE!"},{"$error":"#VALUE!"},"USE ONLY"]
[{"$error":"#VALUE!"},{"$error":"#VALUE!"},"USE ONLY"]
[{"$error":"#VALUE!"},{"$error":"#VALUE!"},"USE ONLY"]
[{"$error":"#VALUE!"},{"$error":"#VALUE!"},"USE ONLY"]
[{"$error":"#VALUE!"},{"$error":"#VALUE!"},"USE ONLY"]
[{"$error":"#VALUE!"},{"$error":"#VALUE!"},"USE ONLY"]
[{"$error":"#VALUE!"},{"$error":"#VALUE!"},"USE ONLY"]
[{"$error":"#VALUE!"},{"$error":"#VALUE!"},"USE ONLY"]
[{"$error":"#VALUE!"},{"$error":"#VALUE!"},"USE ONLY"]
[{"$error":"#VALUE!"},{"$error":"#VALUE!"},"USE ONLY"]
[{"$error":"#VALUE!"},{"$error":"#VALUE!"},"USE ONLY"]
[{"$error":"#VALUE!"},{"$error":"#VALUE!"},"USE ONLY"]
[{"$error":"#VALUE!"},{"$error":"#VALUE!"},"USE ONLY"]
[{"$error":"#VALUE!"},{"$error":"#VALUE!"},"USE ONLY"]
[{"$error":"#VALUE!"},{"$error":"#VALUE!"},"USE ONLY"]
[{"$error":"#VALUE!"},{"$error":"#VALUE!"},"USE ONLY"]
[{"$error":"#VALUE!"},{"$error":"#VALUE!"},"USE ONLY"]
[{"$error":"#VALUE!"},{"$error":"#VALUE!"},"USE ONLY"]
[{"$error":"#VALUE!"},{"$error":"#VALUE!"},"USE ONLY"]
[{"$error":"#VALUE!"},{"$error":"#VALUE!"},"USE ONLY"]
[{"$error":"#VALUE!"},{"$error":"#VALUE!"},"USE ONLY"]
[{"$error":"#VALUE!"},{"$error":"#VALUE!"},"USE ONLY"]
[{"$error":"#VALUE!"},{"$error":"#VALUE!"},"USE ONLY"]
[{"$error":"#VALUE!"},{"$error":"#VALUE!"},"USE ONLY"]
[{"$error":"#VALUE!"},{"$error":"#VALUE!"},"USE ONLY"]
[{"$error":"#VALUE!"},{"$error":"#VALUE!"},"USE ONLY"]
[{"$f":"B644&C644","v":{"$error":"#VALUE!"}},{"$f":"B643+1","v":{"$error":"#VALUE!"}},{"$f":"$C$3","v":"USE ONLY"}]
[{"$error":"#VALUE!"},{"$error":"#VALUE!"},"USE ONLY"]
[{"$error":"#VALUE!"},{"$error":"#VALUE!"},"USE ONLY"]
[{"$error":"#VALUE!"},{"$error":"#VALUE!"},"USE ONLY"]
[{"$error":"#VALUE!"},{"$error":"#VALUE!"},"USE ONLY"]
[{"$error":"#VALUE!"},{"$error":"#VALUE!"},"USE ONLY"]
[{"$error":"#VALUE!"},{"$error":"#VALUE!"},"USE ONLY"]
[{"$error":"#VALUE!"},{"$error":"#VALUE!"},"USE ONLY"]
[{"$error":"#VALUE!"},{"$error":"#VALUE!"},"USE ONLY"]
[{"$error":"#VALUE!"},{"$error":"#VALUE!"},"USE ONLY"]
[{"$error":"#VALUE!"},{"$error":"#VALUE!"},"USE ONLY"]
[{"$error":"#VALUE!"},{"$error":"#VALUE!"},"USE ONLY"]
[{"$error":"#VALUE!"},{"$error":"#VALUE!"},"USE ONLY"]
[{"$error":"#VALUE!"},{"$error":"#VALUE!"},"USE ONLY"]
[{"$error":"#VALUE!"},{"$error":"#VALUE!"},"USE ONLY"]
[{"$error":"#VALUE!"},{"$error":"#VALUE!"},"USE ONLY"]
[{"$error":"#VALUE!"},{"$error":"#VALUE!"},"USE ONLY"]
[{"$error":"#VALUE!"},{"$error":"#VALUE!"},"USE ONLY"]
[{"$error":"#VALUE!"},{"$error":"#VALUE!"},"USE ONLY"]
[{"$error":"#VALUE!"},{"$error":"#VALUE!"},"USE ONLY"]
[{"$error":"#VALUE!"},{"$error":"#VALUE!"},"USE ONLY"]
[{"$error":"#VALUE!"},{"$error":"#VALUE!"},"USE ONLY"]
[{"$error":"#VALUE!"},{"$error":"#VALUE!"},"USE ONLY"]
[{"$error":"#VALUE!"},{"$error":"#VALUE!"},"USE ONLY"]
[{"$error":"#VALUE!"},{"$error":"#VALUE!"},"USE ONLY"]
[{"$error":"#VALUE!"},{"$error":"#VALUE!"},"USE ONLY"]
[{"$error":"#VALUE!"},{"$error":"#VALUE!"},"USE ONLY"]
[{"$error":"#VALUE!"},{"$error":"#VALUE!"},"USE ONLY"]
[{"$error":"#VALUE!"},{"$error":"#VALUE!"},"USE ONLY"]
[{"$error":"#VALUE!"},{"$error":"#VALUE!"},"USE ONLY"]
[{"$error":"#VALUE!"},{"$error":"#VALUE!"},"USE ONLY"]
[{"$error":"#VALUE!"},{"$error":"#VALUE!"},"USE ONLY"]
[{"$error":"#VALUE!"},{"$error":"#VALUE!"},"USE ONLY"]
[{"$error":"#VALUE!"},{"$error":"#VALUE!"},"USE ONLY"]
[{"$error":"#VALUE!"},{"$error":"#VALUE!"},"USE ONLY"]
[{"$error":"#VALUE!"},{"$error":"#VALUE!"},"USE ONLY"]
[{"$error":"#VALUE!"},{"$error":"#VALUE!"},"USE ONLY"]
[{"$error":"#VALUE!"},{"$error":"#VALUE!"},"USE ONLY"]
[{"$error":"#VALUE!"},{"$error":"#VALUE!"},"USE ONLY"]
[{"$error":"#VALUE!"},{"$error":"#VALUE!"},"USE ONLY"]
[{"$error":"#VALUE!"},{"$error":"#VALUE!"},"USE ONLY"]
[{"$error":"#VALUE!"},{"$error":"#VALUE!"},"USE ONLY"]
[{"$error":"#VALUE!"},{"$error":"#VALUE!"},"USE ONLY"]
[{"$error":"#VALUE!"},{"$error":"#VALUE!"},"USE ONLY"]
[{"$error":"#VALUE!"},{"$error":"#VALUE!"},"USE ONLY"]
[{"$error":"#VALUE!"},{"$error":"#VALUE!"},"USE ONLY"]
[{"$error":"#VALUE!"},{"$error":"#VALUE!"},"USE ONLY"]
[{"$error":"#VALUE!"},{"$error":"#VALUE!"},"USE ONLY"]
[{"$error":"#VALUE!"},{"$error":"#VALUE!"},"USE ONLY"]
[{"$error":"#VALUE!"},{"$error":"#VALUE!"},"USE ONLY"]
[{"$error":"#VALUE!"},{"$error":"#VALUE!"},"USE ONLY"]
[{"$error":"#VALUE!"},{"$error":"#VALUE!"},"USE ONLY"]
[{"$error":"#VALUE!"},{"$error":"#VALUE!"},"USE ONLY"]
[{"$error":"#VALUE!"},{"$error":"#VALUE!"},"USE ONLY"]
[{"$error":"#VALUE!"},{"$error":"#VALUE!"},"USE ONLY"]
[{"$error":"#VALUE!"},{"$error":"#VALUE!"},"USE ONLY"]
[{"$error":"#VALUE!"},{"$error":"#VALUE!"},"USE ONLY"]
[{"$error":"#VALUE!"},{"$error":"#VALUE!"},"USE ONLY"]
[{"$error":"#VALUE!"},{"$error":"#VALUE!"},"USE ONLY"]
[{"$error":"#VALUE!"},{"$error":"#VALUE!"},"USE ONLY"]
[{"$error":"#VALUE!"},{"$error":"#VALUE!"},"USE ONLY"]
[{"$error":"#VALUE!"},{"$error":"#VALUE!"},"USE ONLY"]
[{"$error":"#VALUE!"},{"$error":"#VALUE!"},"USE ONLY"]
[{"$error":"#VALUE!"},{"$error":"#VALUE!"},"USE ONLY"]
[{"$f":"B708&C708","v":{"$error":"#VALUE!"}},{"$f":"B707+1","v":{"$error":"#VALUE!"}},{"$f":"$C$3","v":"USE ONLY"}]
[{"$error":"#VALUE!"},{"$error":"#VALUE!"},"USE ONLY"]
[{"$error":"#VALUE!"},{"$error":"#VALUE!"},"USE ONLY"]
[{"$error":"#VALUE!"},{"$error":"#VALUE!"},"USE ONLY"]
[{"$error":"#VALUE!"},{"$error":"#VALUE!"},"USE ONLY"]
[{"$error":"#VALUE!"},{"$error":"#VALUE!"},"USE ONLY"]
[{"$error":"#VALUE!"},{"$error":"#VALUE!"},"USE ONLY"]
[{"$error":"#VALUE!"},{"$error":"#VALUE!"},"USE ONLY"]
[{"$error":"#VALUE!"},{"$error":"#VALUE!"},"USE ONLY"]
[{"$error":"#VALUE!"},{"$error":"#VALUE!"},"USE ONLY"]
[{"$error":"#VALUE!"},{"$error":"#VALUE!"},"USE ONLY"]
[{"$error":"#VALUE!"},{"$error":"#VALUE!"},"USE ONLY"]
[{"$error":"#VALUE!"},{"$error":"#VALUE!"},"USE ONLY"]
[{"$error":"#VALUE!"},{"$error":"#VALUE!"},"USE ONLY"]
[{"$error":"#VALUE!"},{"$error":"#VALUE!"},"USE ONLY"]
[{"$error":"#VALUE!"},{"$error":"#VALUE!"},"USE ONLY"]
[{"$error":"#VALUE!"},{"$error":"#VALUE!"},"USE ONLY"]
[{"$error":"#VALUE!"},{"$error":"#VALUE!"},"USE ONLY"]
[{"$error":"#VALUE!"},{"$error":"#VALUE!"},"USE ONLY"]
[{"$error":"#VALUE!"},{"$error":"#VALUE!"},"USE ONLY"]
[{"$error":"#VALUE!"},{"$error":"#VALUE!"},"USE ONLY"]
[{"$error":"#VALUE!"},{"$error":"#VALUE!"},"USE ONLY"]
[{"$error":"#VALUE!"},{"$error":"#VALUE!"},"USE ONLY"]
[{"$error":"#VALUE!"},{"$error":"#VALUE!"},"USE ONLY"]
[{"$error":"#VALUE!"},{"$error":"#VALUE!"},"USE ONLY"]
[{"$error":"#VALUE!"},{"$error":"#VALUE!"},"USE ONLY"]
[{"$error":"#VALUE!"},{"$error":"#VALUE!"},"USE ONLY"]
[{"$error":"#VALUE!"},{"$error":"#VALUE!"},"USE ONLY"]
[{"$error":"#VALUE!"},{"$error":"#VALUE!"},"USE ONLY"]
[{"$error":"#VALUE!"},{"$error":"#VALUE!"},"USE ONLY"]
[{"$error":"#VALUE!"},{"$error":"#VALUE!"},"USE ONLY"]
[{"$error":"#VALUE!"},{"$error":"#VALUE!"},"USE ONLY"]
[{"$error":"#VALUE!"},{"$error":"#VALUE!"},"USE ONLY"]
[{"$error":"#VALUE!"},{"$error":"#VALUE!"},"USE ONLY"]
[{"$error":"#VALUE!"},{"$error":"#VALUE!"},"USE ONLY"]
[{"$error":"#VALUE!"},{"$error":"#VALUE!"},"USE ONLY"]
[{"$error":"#VALUE!"},{"$error":"#VALUE!"},"USE ONLY"]
[{"$error":"#VALUE!"},{"$error":"#VALUE!"},"USE ONLY"]
[{"$error":"#VALUE!"},{"$error":"#VALUE!"},"USE ONLY"]
[{"$error":"#VALUE!"},{"$error":"#VALUE!"},"USE ONLY"]
[{"$error":"#VALUE!"},{"$error":"#VALUE!"},"USE ONLY"]
[{"$error":"#VALUE!"},{"$error":"#VALUE!"},"USE ONLY"]
[{"$error":"#VALUE!"},{"$error":"#VALUE!"},"USE ONLY"]
[{"$error":"#VALUE!"},{"$error":"#VALUE!"},"USE ONLY"]
[{"$error":"#VALUE!"},{"$error":"#VALUE!"},"USE ONLY"]
[{"$error":"#VALUE!"},{"$error":"#VALUE!"},"USE ONLY"]
[{"$error":"#VALUE!"},{"$error":"#VALUE!"},"USE ONLY"]
[{"$error":"#VALUE!"},{"$error":"#VALUE!"},"USE ONLY"]
[{"$error":"#VALUE!"},{"$error":"#VALUE!"},"USE ONLY"]
[{"$error":"#VALUE!"},{"$error":"#VALUE!"},"USE ONLY"]
[{"$error":"#VALUE!"},{"$error":"#VALUE!"},"USE ONLY"]
[{"$error":"#VALUE!"},{"$error":"#VALUE!"},"USE ONLY"]
[{"$error":"#VALUE!"},{"$error":"#VALUE!"},"USE ONLY"]
[{"$error":"#VALUE!"},{"$error":"#VALUE!"},"USE ONLY"]
[{"$error":"#VALUE!"},{"$error":"#VALUE!"},"USE ONLY"]
[{"$error":"#VALUE!"},{"$error":"#VALUE!"},"USE ONLY"]
[{"$error":"#VALUE!"},{"$error":"#VALUE!"},"USE ONLY"]
[{"$error":"#VALUE!"},{"$error":"#VALUE!"},"USE ONLY"]
[{"$error":"#VALUE!"},{"$error":"#VALUE!"},"USE ONLY"]
[{"$error":"#VALUE!"},{"$error":"#VALUE!"},"USE ONLY"]
[{"$error":"#VALUE!"},{"$error":"#VALUE!"},"USE ONLY"]
[{"$error":"#VALUE!"},{"$error":"#VALUE!"},"USE ONLY"]
[{"$error":"#VALUE!"},{"$error":"#VALUE!"},"USE ONLY"]
[{"$error":"#VALUE!"},{"$error":"#VALUE!"},"USE ONLY"]
[{"$f":"B772&C772","v":{"$error":"#VALUE!"}},{"$f":"B771+1","v":{"$error":"#VALUE!"}},{"$f":"$C$3","v":"USE ONLY"}]
[{"$error":"#VALUE!"},{"$error":"#VALUE!"},"USE ONLY"]
[{"$error":"#VALUE!"},{"$error":"#VALUE!"},"USE ONLY"]
[{"$error":"#VALUE!"},{"$error":"#VALUE!"},"USE ONLY"]
[{"$error":"#VALUE!"},{"$error":"#VALUE!"},"USE ONLY"]
[{"$error":"#VALUE!"},{"$error":"#VALUE!"},"USE ONLY"]
[{"$error":"#VALUE!"},{"$error":"#VALUE!"},"USE ONLY"]
[{"$error":"#VALUE!"},{"$error":"#VALUE!"},"USE ONLY"]
[{"$error":"#VALUE!"},{"$error":"#VALUE!"},"USE ONLY"]
[{"$error":"#VALUE!"},{"$error":"#VALUE!"},"USE ONLY"]
[{"$error":"#VALUE!"},{"$error":"#VALUE!"},"USE ONLY"]
[{"$error":"#VALUE!"},{"$error":"#VALUE!"},"USE ONLY"]
[{"$error":"#VALUE!"},{"$error":"#VALUE!"},"USE ONLY"]
[{"$error":"#VALUE!"},{"$error":"#VALUE!"},"USE ONLY"]
[{"$error":"#VALUE!"},{"$error":"#VALUE!"},"USE ONLY"]
[{"$error":"#VALUE!"},{"$error":"#VALUE!"},"USE ONLY"]
[{"$error":"#VALUE!"},{"$error":"#VALUE!"},"USE ONLY"]
[{"$error":"#VALUE!"},{"$error":"#VALUE!"},"USE ONLY"]
[{"$error":"#VALUE!"},{"$error":"#VALUE!"},"USE ONLY"]
[{"$error":"#VALUE!"},{"$error":"#VALUE!"},"USE ONLY"]
[{"$error":"#VALUE!"},{"$error":"#VALUE!"},"USE ONLY"]
[{"$error":"#VALUE!"},{"$error":"#VALUE!"},"USE ONLY"]
[{"$error":"#VALUE!"},{"$error":"#VALUE!"},"USE ONLY"]
[{"$error":"#VALUE!"},{"$error":"#VALUE!"},"USE ONLY"]
[{"$error":"#VALUE!"},{"$error":"#VALUE!"},"USE ONLY"]
[{"$error":"#VALUE!"},{"$error":"#VALUE!"},"USE ONLY"]
[{"$error":"#VALUE!"},{"$error":"#VALUE!"},"USE ONLY"]
[{"$error":"#VALUE!"},{"$error":"#VALUE!"},"USE ONLY"]
[{"$error":"#VALUE!"},{"$error":"#VALUE!"},"USE ONLY"]
[{"$error":"#VALUE!"},{"$error":"#VALUE!"},"USE ONLY"]
[{"$error":"#VALUE!"},{"$error":"#VALUE!"},"USE ONLY"]
[{"$error":"#VALUE!"},{"$error":"#VALUE!"},"USE ONLY"]
[{"$error":"#VALUE!"},{"$error":"#VALUE!"},"USE ONLY"]
[{"$error":"#VALUE!"},{"$error":"#VALUE!"},"USE ONLY"]
[{"$error":"#VALUE!"},{"$error":"#VALUE!"},"USE ONLY"]
[{"$error":"#VALUE!"},{"$error":"#VALUE!"},"USE ONLY"]
[{"$error":"#VALUE!"},{"$error":"#VALUE!"},"USE ONLY"]
[{"$error":"#VALUE!"},{"$error":"#VALUE!"},"USE ONLY"]
[{"$error":"#VALUE!"},{"$error":"#VALUE!"},"USE ONLY"]
[{"$error":"#VALUE!"},{"$error":"#VALUE!"},"USE ONLY"]
[{"$error":"#VALUE!"},{"$error":"#VALUE!"},"USE ONLY"]
[{"$error":"#VALUE!"},{"$error":"#VALUE!"},"USE ONLY"]
[{"$error":"#VALUE!"},{"$error":"#VALUE!"},"USE ONLY"]
[{"$error":"#VALUE!"},{"$error":"#VALUE!"},"USE ONLY"]
[{"$error":"#VALUE!"},{"$error":"#VALUE!"},"USE ONLY"]
[{"$error":"#VALUE!"},{"$error":"#VALUE!"},"USE ONLY"]
[{"$error":"#VALUE!"},{"$error":"#VALUE!"},"USE ONLY"]
[{"$error":"#VALUE!"},{"$error":"#VALUE!"},"USE ONLY"]
[{"$error":"#VALUE!"},{"$error":"#VALUE!"},"USE ONLY"]
[{"$error":"#VALUE!"},{"$error":"#VALUE!"},"USE ONLY"]
[{"$error":"#VALUE!"},{"$error":"#VALUE!"},"USE ONLY"]
[{"$error":"#VALUE!"},{"$error":"#VALUE!"},"USE ONLY"]
[{"$error":"#VALUE!"},{"$error":"#VALUE!"},"USE ONLY"]
[{"$error":"#VALUE!"},{"$error":"#VALUE!"},"USE ONLY"]
[{"$error":"#VALUE!"},{"$error":"#VALUE!"},"USE ONLY"]
[{"$error":"#VALUE!"},{"$error":"#VALUE!"},"USE ONLY"]
[{"$error":"#VALUE!"},{"$error":"#VALUE!"},"USE ONLY"]
[{"$error":"#VALUE!"},{"$error":"#VALUE!"},"USE ONLY"]
[{"$error":"#VALUE!"},{"$error":"#VALUE!"},"USE ONLY"]
[{"$error":"#VALUE!"},{"$error":"#VALUE!"},"USE ONLY"]
[{"$error":"#VALUE!"},{"$error":"#VALUE!"},"USE ONLY"]
[{"$error":"#VALUE!"},{"$error":"#VALUE!"},"USE ONLY"]
[{"$error":"#VALUE!"},{"$error":"#VALUE!"},"USE ONLY"]
[{"$error":"#VALUE!"},{"$error":"#VALUE!"},"USE ONLY"]
[{"$f":"B836&C836","v":{"$error":"#VALUE!"}},{"$f":"B835+1","v":{"$error":"#VALUE!"}},{"$f":"$C$3","v":"USE ONLY"}]
[{"$error":"#VALUE!"},{"$error":"#VALUE!"},"USE ONLY"]
[{"$error":"#VALUE!"},{"$error":"#VALUE!"},"USE ONLY"]
[{"$error":"#VALUE!"},{"$error":"#VALUE!"},"USE ONLY"]
[{"$error":"#VALUE!"},{"$error":"#VALUE!"},"USE ONLY"]
[{"$error":"#VALUE!"},{"$error":"#VALUE!"},"USE ONLY"]
[{"$error":"#VALUE!"},{"$error":"#VALUE!"},"USE ONLY"]
[{"$error":"#VALUE!"},{"$error":"#VALUE!"},"USE ONLY"]
[{"$error":"#VALUE!"},{"$error":"#VALUE!"},"USE ONLY"]
[{"$error":"#VALUE!"},{"$error":"#VALUE!"},"USE ONLY"]
[{"$error":"#VALUE!"},{"$error":"#VALUE!"},"USE ONLY"]
[{"$error":"#VALUE!"},{"$error":"#VALUE!"},"USE ONLY"]
[{"$error":"#VALUE!"},{"$error":"#VALUE!"},"USE ONLY"]
[{"$error":"#VALUE!"},{"$error":"#VALUE!"},"USE ONLY"]
[{"$error":"#VALUE!"},{"$error":"#VALUE!"},"USE ONLY"]
[{"$error":"#VALUE!"},{"$error":"#VALUE!"},"USE ONLY"]
[{"$error":"#VALUE!"},{"$error":"#VALUE!"},"USE ONLY"]
[{"$error":"#VALUE!"},{"$error":"#VALUE!"},"USE ONLY"]
[{"$error":"#VALUE!"},{"$error":"#VALUE!"},"USE ONLY"]
[{"$error":"#VALUE!"},{"$error":"#VALUE!"},"USE ONLY"]
[{"$error":"#VALUE!"},{"$error":"#VALUE!"},"USE ONLY"]
[{"$error":"#VALUE!"},{"$error":"#VALUE!"},"USE ONLY"]
[{"$error":"#VALUE!"},{"$error":"#VALUE!"},"USE ONLY"]
[{"$error":"#VALUE!"},{"$error":"#VALUE!"},"USE ONLY"]
[{"$error":"#VALUE!"},{"$error":"#VALUE!"},"USE ONLY"]
[{"$error":"#VALUE!"},{"$error":"#VALUE!"},"USE ONLY"]
[{"$error":"#VALUE!"},{"$error":"#VALUE!"},"USE ONLY"]
[{"$error":"#VALUE!"},{"$error":"#VALUE!"},"USE ONLY"]
[{"$error":"#VALUE!"},{"$error":"#VALUE!"},"USE ONLY"]
[{"$error":"#VALUE!"},{"$error":"#VALUE!"},"USE ONLY"]
[{"$error":"#VALUE!"},{"$error":"#VALUE!"},"USE ONLY"]
[{"$error":"#VALUE!"},{"$error":"#VALUE!"},"USE ONLY"]
[{"$error":"#VALUE!"},{"$error":"#VALUE!"},"USE ONLY"]
[{"$error":"#VALUE!"},{"$error":"#VALUE!"},"USE ONLY"]
[{"$error":"#VALUE!"},{"$error":"#VALUE!"},"USE ONLY"]
[{"$error":"#VALUE!"},{"$error":"#VALUE!"},"USE ONLY"]
[{"$error":"#VALUE!"},{"$error":"#VALUE!"},"USE ONLY"]
[{"$error":"#VALUE!"},{"$error":"#VALUE!"},"USE ONLY"]
[{"$error":"#VALUE!"},{"$error":"#VALUE!"},"USE ONLY"]
[{"$error":"#VALUE!"},{"$error":"#VALUE!"},"USE ONLY"]
[{"$error":"#VALUE!"},{"$error":"#VALUE!"},"USE ONLY"]
[{"$error":"#VALUE!"},{"$error":"#VALUE!"},"USE ONLY"]
[{"$error":"#VALUE!"},{"$error":"#VALUE!"},"USE ONLY"]
[{"$error":"#VALUE!"},{"$error":"#VALUE!"},"USE ONLY"]
[{"$error":"#VALUE!"},{"$error":"#VALUE!"},"USE ONLY"]
[{"$error":"#VALUE!"},{"$error":"#VALUE!"},"USE ONLY"]
[{"$error":"#VALUE!"},{"$error":"#VALUE!"},"USE ONLY"]
[{"$error":"#VALUE!"},{"$error":"#VALUE!"},"USE ONLY"]
[{"$error":"#VALUE!"},{"$error":"#VALUE!"},"USE ONLY"]
[{"$error":"#VALUE!"},{"$error":"#VALUE!"},"USE ONLY"]
[{"$error":"#VALUE!"},{"$error":"#VALUE!"},"USE ONLY"]
[{"$error":"#VALUE!"},{"$error":"#VALUE!"},"USE ONLY"]
[{"$error":"#VALUE!"},{"$error":"#VALUE!"},"USE ONLY"]
[{"$error":"#VALUE!"},{"$error":"#VALUE!"},"USE ONLY"]
[{"$error":"#VALUE!"},{"$error":"#VALUE!"},"USE ONLY"]
[{"$error":"#VALUE!"},{"$error":"#VALUE!"},"USE ONLY"]
[{"$error":"#VALUE!"},{"$error":"#VALUE!"},"USE ONLY"]
[{"$error":"#VALUE!"},{"$error":"#VALUE!"},"USE ONLY"]
[{"$error":"#VALUE!"},{"$error":"#VALUE!"},"USE ONLY"]
[{"$error":"#VALUE!"},{"$error":"#VALUE!"},"USE ONLY"]
[{"$error":"#VALUE!"},{"$error":"#VALUE!"},"USE ONLY"]
[{"$error":"#VALUE!"},{"$error":"#VALUE!"},"USE ONLY"]
[{"$error":"#VALUE!"},{"$error":"#VALUE!"},"USE ONLY"]
[{"$error":"#VALUE!"},{"$error":"#VALUE!"},"USE ONLY"]
[{"$f":"B900&C900","v":{"$error":"#VALUE!"}},{"$f":"B899+1","v":{"$error":"#VALUE!"}},{"$f":"$C$3","v":"USE ONLY"}]
[{"$error":"#VALUE!"},{"$error":"#VALUE!"},"USE ONLY"]
[{"$error":"#VALUE!"},{"$error":"#VALUE!"},"USE ONLY"]
[{"$error":"#VALUE!"},{"$error":"#VALUE!"},"USE ONLY"]
[{"$error":"#VALUE!"},{"$error":"#VALUE!"},"USE ONLY"]
[{"$error":"#VALUE!"},{"$error":"#VALUE!"},"USE ONLY"]
[{"$error":"#VALUE!"},{"$error":"#VALUE!"},"USE ONLY"]
[{"$error":"#VALUE!"},{"$error":"#VALUE!"},"USE ONLY"]
[{"$error":"#VALUE!"},{"$error":"#VALUE!"},"USE ONLY"]
[{"$error":"#VALUE!"},{"$error":"#VALUE!"},"USE ONLY"]
[{"$error":"#VALUE!"},{"$error":"#VALUE!"},"USE ONLY"]
[{"$error":"#VALUE!"},{"$error":"#VALUE!"},"USE ONLY"]
[{"$error":"#VALUE!"},{"$error":"#VALUE!"},"USE ONLY"]
[{"$error":"#VALUE!"},{"$error":"#VALUE!"},"USE ONLY"]
[{"$error":"#VALUE!"},{"$error":"#VALUE!"},"USE ONLY"]
[{"$error":"#VALUE!"},{"$error":"#VALUE!"},"USE ONLY"]
[{"$error":"#VALUE!"},{"$error":"#VALUE!"},"USE ONLY"]
[{"$error":"#VALUE!"},{"$error":"#VALUE!"},"USE ONLY"]
[{"$error":"#VALUE!"},{"$error":"#VALUE!"},"USE ONLY"]
[{"$error":"#VALUE!"},{"$error":"#VALUE!"},"USE ONLY"]
[{"$error":"#VALUE!"},{"$error":"#VALUE!"},"USE ONLY"]
[{"$error":"#VALUE!"},{"$error":"#VALUE!"},"USE ONLY"]
[{"$error":"#VALUE!"},{"$error":"#VALUE!"},"USE ONLY"]
[{"$error":"#VALUE!"},{"$error":"#VALUE!"},"USE ONLY"]
[{"$error":"#VALUE!"},{"$error":"#VALUE!"},"USE ONLY"]
[{"$error":"#VALUE!"},{"$error":"#VALUE!"},"USE ONLY"]
[{"$error":"#VALUE!"},{"$error":"#VALUE!"},"USE ONLY"]
[{"$error":"#VALUE!"},{"$error":"#VALUE!"},"USE ONLY"]
[{"$error":"#VALUE!"},{"$error":"#VALUE!"},"USE ONLY"]
[{"$error":"#VALUE!"},{"$error":"#VALUE!"},"USE ONLY"]
[{"$error":"#VALUE!"},{"$error":"#VALUE!"},"USE ONLY"]
[{"$error":"#VALUE!"},{"$error":"#VALUE!"},"USE ONLY"]
[{"$error":"#VALUE!"},{"$error":"#VALUE!"},"USE ONLY"]
[{"$error":"#VALUE!"},{"$error":"#VALUE!"},"USE ONLY"]
[{"$error":"#VALUE!"},{"$error":"#VALUE!"},"USE ONLY"]
[{"$error":"#VALUE!"},{"$error":"#VALUE!"},"USE ONLY"]
[{"$error":"#VALUE!"},{"$error":"#VALUE!"},"USE ONLY"]
[{"$error":"#VALUE!"},{"$error":"#VALUE!"},"USE ONLY"]
[{"$error":"#VALUE!"},{"$error":"#VALUE!"},"USE ONLY"]
[{"$error":"#VALUE!"},{"$error":"#VALUE!"},"USE ONLY"]
[{"$error":"#VALUE!"},{"$error":"#VALUE!"},"USE ONLY"]
[{"$error":"#VALUE!"},{"$error":"#VALUE!"},"USE ONLY"]
[{"$error":"#VALUE!"},{"$error":"#VALUE!"},"USE ONLY"]
[{"$error":"#VALUE!"},{"$error":"#VALUE!"},"USE ONLY"]
[{"$error":"#VALUE!"},{"$error":"#VALUE!"},"USE ONLY"]
[{"$error":"#VALUE!"},{"$error":"#VALUE!"},"USE ONLY"]
[{"$error":"#VALUE!"},{"$error":"#VALUE!"},"USE ONLY"]
[{"$error":"#VALUE!"},{"$error":"#VALUE!"},"USE ONLY"]
[{"$error":"#VALUE!"},{"$error":"#VALUE!"},"USE ONLY"]
[{"$error":"#VALUE!"},{"$error":"#VALUE!"},"USE ONLY"]
[{"$error":"#VALUE!"},{"$error":"#VALUE!"},"USE ONLY"]
[{"$error":"#VALUE!"},{"$error":"#VALUE!"},"USE ONLY"]
[{"$error":"#VALUE!"},{"$error":"#VALUE!"},"USE ONLY"]
[{"$error":"#VALUE!"},{"$error":"#VALUE!"},"USE ONLY"]
[{"$error":"#VALUE!"},{"$error":"#VALUE!"},"USE ONLY"]
[{"$error":"#VALUE!"},{"$error":"#VALUE!"},"USE ONLY"]
[{"$error":"#VALUE!"},{"$error":"#VALUE!"},"USE ONLY"]
[{"$error":"#VALUE!"},{"$error":"#VALUE!"},"USE ONLY"]
[{"$error":"#VALUE!"},{"$error":"#VALUE!"},"USE ONLY"]
[{"$error":"#VALUE!"},{"$error":"#VALUE!"},"USE ONLY"]
[{"$error":"#VALUE!"},{"$error":"#VALUE!"},"USE ONLY"]
[{"$error":"#VALUE!"},{"$error":"#VALUE!"},"USE ONLY"]
[{"$error":"#VALUE!"},{"$error":"#VALUE!"},"USE ONLY"]
[{"$error":"#VALUE!"},{"$error":"#VALUE!"},"USE ONLY"]
[{"$f":"B964&C964","v":{"$error":"#VALUE!"}},{"$f":"B963+1","v":{"$error":"#VALUE!"}},{"$f":"$C$3","v":"USE ONLY"}]
[{"$error":"#VALUE!"},{"$error":"#VALUE!"},"USE ONLY"]
[{"$error":"#VALUE!"},{"$error":"#VALUE!"},"USE ONLY"]
[{"$error":"#VALUE!"},{"$error":"#VALUE!"},"USE ONLY"]
[{"$error":"#VALUE!"},{"$error":"#VALUE!"},"USE ONLY"]
[{"$error":"#VALUE!"},{"$error":"#VALUE!"},"USE ONLY"]
[{"$error":"#VALUE!"},{"$error":"#VALUE!"},"USE ONLY"]
[{"$error":"#VALUE!"},{"$error":"#VALUE!"},"USE ONLY"]
[{"$error":"#VALUE!"},{"$error":"#VALUE!"},"USE ONLY"]
[{"$error":"#VALUE!"},{"$error":"#VALUE!"},"USE ONLY"]
[{"$error":"#VALUE!"},{"$error":"#VALUE!"},"USE ONLY"]
[{"$error":"#VALUE!"},{"$error":"#VALUE!"},"USE ONLY"]
[{"$error":"#VALUE!"},{"$error":"#VALUE!"},"USE ONLY"]
[{"$error":"#VALUE!"},{"$error":"#VALUE!"},"USE ONLY"]
[{"$error":"#VALUE!"},{"$error":"#VALUE!"},"USE ONLY"]
[{"$error":"#VALUE!"},{"$error":"#VALUE!"},"USE ONLY"]
[{"$error":"#VALUE!"},{"$error":"#VALUE!"},"USE ONLY"]
[{"$error":"#VALUE!"},{"$error":"#VALUE!"},"USE ONLY"]
[{"$error":"#VALUE!"},{"$error":"#VALUE!"},"USE ONLY"]
[{"$error":"#VALUE!"},{"$error":"#VALUE!"},"USE ONLY"]
[{"$error":"#VALUE!"},{"$error":"#VALUE!"},"USE ONLY"]
[{"$error":"#VALUE!"},{"$error":"#VALUE!"},"USE ONLY"]
[{"$error":"#VALUE!"},{"$error":"#VALUE!"},"USE ONLY"]
[{"$error":"#VALUE!"},{"$error":"#VALUE!"},"USE ONLY"]
[{"$error":"#VALUE!"},{"$error":"#VALUE!"},"USE ONLY"]
[{"$error":"#VALUE!"},{"$error":"#VALUE!"},"USE ONLY"]
[{"$error":"#VALUE!"},{"$error":"#VALUE!"},"USE ONLY"]
[{"$error":"#VALUE!"},{"$error":"#VALUE!"},"USE ONLY"]
[{"$error":"#VALUE!"},{"$error":"#VALUE!"},"USE ONLY"]
[{"$error":"#VALUE!"},{"$error":"#VALUE!"},"USE ONLY"]
[{"$error":"#VALUE!"},{"$error":"#VALUE!"},"USE ONLY"]
[{"$error":"#VALUE!"},{"$error":"#VALUE!"},"USE ONLY"]
[{"$error":"#VALUE!"},{"$error":"#VALUE!"},"USE ONLY"]
[{"$error":"#VALUE!"},{"$error":"#VALUE!"},"USE ONLY"]
[{"$error":"#VALUE!"},{"$error":"#VALUE!"},"USE ONLY"]
[{"$error":"#VALUE!"},{"$error":"#VALUE!"},"USE ONLY"]
[{"$error":"#VALUE!"},{"$error":"#VALUE!"},"USE ONLY"]
[{"$error":"#VALUE!"},{"$error":"#VALUE!"},"USE ONLY"]
[{"$error":"#VALUE!"},{"$error":"#VALUE!"},"USE ONLY"]
[{"$error":"#VALUE!"},{"$error":"#VALUE!"},"USE ONLY"]

{"sheet":"Separation","index":2,"n_rows":1003,"n_cols":16,"rows_kept":1003}
["AccessCode","AccessCode Left","AccessCode Right","PAR Submitted","Last Name","First Name","Pers No","Effective Date","Action Reason","Pos No","Pay Lvl","Street","Street 2","City","State","Zip"]
["EXAMPLE",null,null,"X","Test","John","00645321","1980-01-01","11 - Retire - no sick payment","00123456",10,"123 Test Street","Apartment B23","Harrisburg","PA",17102]
["HRSC USE ONLY",{"$f":"LEFT(TRIM(A3),LEN(TRIM(A3))-8)","v":"HRSC "},{"$f":"RIGHT(TRIM(A3),8)","v":"USE ONLY"},"X"]
[{"$f":"B4&C4","v":{"$error":"#VALUE!"}},{"$f":"B3+1","v":{"$error":"#VALUE!"}},{"$f":"$C$3","v":"USE ONLY"}]
[{"$error":"#VALUE!"},{"$error":"#VALUE!"},"USE ONLY"]
[{"$error":"#VALUE!"},{"$error":"#VALUE!"},"USE ONLY"]
[{"$error":"#VALUE!"},{"$error":"#VALUE!"},"USE ONLY"]
[{"$error":"#VALUE!"},{"$error":"#VALUE!"},"USE ONLY"]
[{"$error":"#VALUE!"},{"$error":"#VALUE!"},"USE ONLY"]
[{"$error":"#VALUE!"},{"$error":"#VALUE!"},"USE ONLY"]
[{"$error":"#VALUE!"},{"$error":"#VALUE!"},"USE ONLY"]
[{"$error":"#VALUE!"},{"$error":"#VALUE!"},"USE ONLY"]
[{"$error":"#VALUE!"},{"$error":"#VALUE!"},"USE ONLY"]
[{"$error":"#VALUE!"},{"$error":"#VALUE!"},"USE ONLY"]
[{"$error":"#VALUE!"},{"$error":"#VALUE!"},"USE ONLY"]
[{"$error":"#VALUE!"},{"$error":"#VALUE!"},"USE ONLY"]
[{"$error":"#VALUE!"},{"$error":"#VALUE!"},"USE ONLY"]
[{"$error":"#VALUE!"},{"$error":"#VALUE!"},"USE ONLY"]
[{"$error":"#VALUE!"},{"$error":"#VALUE!"},"USE ONLY"]
[{"$error":"#VALUE!"},{"$error":"#VALUE!"},"USE ONLY"]
[{"$error":"#VALUE!"},{"$error":"#VALUE!"},"USE ONLY"]
[{"$error":"#VALUE!"},{"$error":"#VALUE!"},"USE ONLY"]
[{"$error":"#VALUE!"},{"$error":"#VALUE!"},"USE ONLY"]
[{"$error":"#VALUE!"},{"$error":"#VALUE!"},"USE ONLY"]
[{"$error":"#VALUE!"},{"$error":"#VALUE!"},"USE ONLY"]
[{"$error":"#VALUE!"},{"$error":"#VALUE!"},"USE ONLY"]
[{"$error":"#VALUE!"},{"$error":"#VALUE!"},"USE ONLY"]
[{"$error":"#VALUE!"},{"$error":"#VALUE!"},"USE ONLY"]
[{"$error":"#VALUE!"},{"$error":"#VALUE!"},"USE ONLY"]
[{"$error":"#VALUE!"},{"$error":"#VALUE!"},"USE ONLY"]
[{"$error":"#VALUE!"},{"$error":"#VALUE!"},"USE ONLY"]
[{"$error":"#VALUE!"},{"$error":"#VALUE!"},"USE ONLY"]
[{"$error":"#VALUE!"},{"$error":"#VALUE!"},"USE ONLY"]
[{"$error":"#VALUE!"},{"$error":"#VALUE!"},"USE ONLY"]
[{"$error":"#VALUE!"},{"$error":"#VALUE!"},"USE ONLY"]
[{"$error":"#VALUE!"},{"$error":"#VALUE!"},"USE ONLY"]
[{"$error":"#VALUE!"},{"$error":"#VALUE!"},"USE ONLY"]
[{"$error":"#VALUE!"},{"$error":"#VALUE!"},"USE ONLY"]
[{"$error":"#VALUE!"},{"$error":"#VALUE!"},"USE ONLY"]
[{"$error":"#VALUE!"},{"$error":"#VALUE!"},"USE ONLY"]
[{"$error":"#VALUE!"},{"$error":"#VALUE!"},"USE ONLY"]
[{"$error":"#VALUE!"},{"$error":"#VALUE!"},"USE ONLY"]
[{"$error":"#VALUE!"},{"$error":"#VALUE!"},"USE ONLY"]
[{"$error":"#VALUE!"},{"$error":"#VALUE!"},"USE ONLY"]
[{"$error":"#VALUE!"},{"$error":"#VALUE!"},"USE ONLY"]
[{"$error":"#VALUE!"},{"$error":"#VALUE!"},"USE ONLY"]
[{"$error":"#VALUE!"},{"$error":"#VALUE!"},"USE ONLY"]
[{"$error":"#VALUE!"},{"$error":"#VALUE!"},"USE ONLY"]
[{"$error":"#VALUE!"},{"$error":"#VALUE!"},"USE ONLY"]
[{"$error":"#VALUE!"},{"$error":"#VALUE!"},"USE ONLY"]
[{"$error":"#VALUE!"},{"$error":"#VALUE!"},"USE ONLY"]
[{"$error":"#VALUE!"},{"$error":"#VALUE!"},"USE ONLY"]
[{"$error":"#VALUE!"},{"$error":"#VALUE!"},"USE ONLY"]
[{"$error":"#VALUE!"},{"$error":"#VALUE!"},"USE ONLY"]
[{"$error":"#VALUE!"},{"$error":"#VALUE!"},"USE ONLY"]
[{"$error":"#VALUE!"},{"$error":"#VALUE!"},"USE ONLY"]
[{"$error":"#VALUE!"},{"$error":"#VALUE!"},"USE ONLY"]
[{"$error":"#VALUE!"},{"$error":"#VALUE!"},"USE ONLY"]
[{"$error":"#VALUE!"},{"$error":"#VALUE!"},"USE ONLY"]
[{"$error":"#VALUE!"},{"$error":"#VALUE!"},"USE ONLY"]
[{"$error":"#VALUE!"},{"$error":"#VALUE!"},"USE ONLY"]
[{"$error":"#VALUE!"},{"$error":"#VALUE!"},"USE ONLY"]
[{"$error":"#VALUE!"},{"$error":"#VALUE!"},"USE ONLY"]
[{"$error":"#VALUE!"},{"$error":"#VALUE!"},"USE ONLY"]
[{"$error":"#VALUE!"},{"$error":"#VALUE!"},"USE ONLY"]
[{"$error":"#VALUE!"},{"$error":"#VALUE!"},"USE ONLY"]
[{"$error":"#VALUE!"},{"$error":"#VALUE!"},"USE ONLY"]
[{"$f":"B68&C68","v":{"$error":"#VALUE!"}},{"$f":"B67+1","v":{"$error":"#VALUE!"}},{"$f":"$C$3","v":"USE ONLY"}]
[{"$error":"#VALUE!"},{"$error":"#VALUE!"},"USE ONLY"]
[{"$error":"#VALUE!"},{"$error":"#VALUE!"},"USE ONLY"]
[{"$error":"#VALUE!"},{"$error":"#VALUE!"},"USE ONLY"]
[{"$error":"#VALUE!"},{"$error":"#VALUE!"},"USE ONLY"]
[{"$error":"#VALUE!"},{"$error":"#VALUE!"},"USE ONLY"]
[{"$error":"#VALUE!"},{"$error":"#VALUE!"},"USE ONLY"]
[{"$error":"#VALUE!"},{"$error":"#VALUE!"},"USE ONLY"]
[{"$error":"#VALUE!"},{"$error":"#VALUE!"},"USE ONLY"]
[{"$error":"#VALUE!"},{"$error":"#VALUE!"},"USE ONLY"]
[{"$error":"#VALUE!"},{"$error":"#VALUE!"},"USE ONLY"]
[{"$error":"#VALUE!"},{"$error":"#VALUE!"},"USE ONLY"]
[{"$error":"#VALUE!"},{"$error":"#VALUE!"},"USE ONLY"]
[{"$error":"#VALUE!"},{"$error":"#VALUE!"},"USE ONLY"]
[{"$error":"#VALUE!"},{"$error":"#VALUE!"},"USE ONLY"]
[{"$error":"#VALUE!"},{"$error":"#VALUE!"},"USE ONLY"]
[{"$error":"#VALUE!"},{"$error":"#VALUE!"},"USE ONLY"]
[{"$error":"#VALUE!"},{"$error":"#VALUE!"},"USE ONLY"]
[{"$error":"#VALUE!"},{"$error":"#VALUE!"},"USE ONLY"]
[{"$error":"#VALUE!"},{"$error":"#VALUE!"},"USE ONLY"]
[{"$error":"#VALUE!"},{"$error":"#VALUE!"},"USE ONLY"]
[{"$error":"#VALUE!"},{"$error":"#VALUE!"},"USE ONLY"]
[{"$error":"#VALUE!"},{"$error":"#VALUE!"},"USE ONLY"]
[{"$error":"#VALUE!"},{"$error":"#VALUE!"},"USE ONLY"]
[{"$error":"#VALUE!"},{"$error":"#VALUE!"},"USE ONLY"]
[{"$error":"#VALUE!"},{"$error":"#VALUE!"},"USE ONLY"]
[{"$error":"#VALUE!"},{"$error":"#VALUE!"},"USE ONLY"]
[{"$error":"#VALUE!"},{"$error":"#VALUE!"},"USE ONLY"]
[{"$error":"#VALUE!"},{"$error":"#VALUE!"},"USE ONLY"]
[{"$error":"#VALUE!"},{"$error":"#VALUE!"},"USE ONLY"]
[{"$error":"#VALUE!"},{"$error":"#VALUE!"},"USE ONLY"]
[{"$error":"#VALUE!"},{"$error":"#VALUE!"},"USE ONLY"]
[{"$error":"#VALUE!"},{"$error":"#VALUE!"},"USE ONLY"]
[{"$error":"#VALUE!"},{"$error":"#VALUE!"},"USE ONLY"]
[{"$error":"#VALUE!"},{"$error":"#VALUE!"},"USE ONLY"]
[{"$error":"#VALUE!"},{"$error":"#VALUE!"},"USE ONLY"]
[{"$error":"#VALUE!"},{"$error":"#VALUE!"},"USE ONLY"]
[{"$error":"#VALUE!"},{"$error":"#VALUE!"},"USE ONLY"]
[{"$error":"#VALUE!"},{"$error":"#VALUE!"},"USE ONLY"]
[{"$error":"#VALUE!"},{"$error":"#VALUE!"},"USE ONLY"]
[{"$error":"#VALUE!"},{"$error":"#VALUE!"},"USE ONLY"]
[{"$error":"#VALUE!"},{"$error":"#VALUE!"},"USE ONLY"]
[{"$error":"#VALUE!"},{"$error":"#VALUE!"},"USE ONLY"]
[{"$error":"#VALUE!"},{"$error":"#VALUE!"},"USE ONLY"]
[{"$error":"#VALUE!"},{"$error":"#VALUE!"},"USE ONLY"]
[{"$error":"#VALUE!"},{"$error":"#VALUE!"},"USE ONLY"]
[{"$error":"#VALUE!"},{"$error":"#VALUE!"},"USE ONLY"]
[{"$error":"#VALUE!"},{"$error":"#VALUE!"},"USE ONLY"]
[{"$error":"#VALUE!"},{"$error":"#VALUE!"},"USE ONLY"]
[{"$error":"#VALUE!"},{"$error":"#VALUE!"},"USE ONLY"]
[{"$error":"#VALUE!"},{"$error":"#VALUE!"},"USE ONLY"]
[{"$error":"#VALUE!"},{"$error":"#VALUE!"},"USE ONLY"]
[{"$error":"#VALUE!"},{"$error":"#VALUE!"},"USE ONLY"]
[{"$error":"#VALUE!"},{"$error":"#VALUE!"},"USE ONLY"]
[{"$error":"#VALUE!"},{"$error":"#VALUE!"},"USE ONLY"]
[{"$error":"#VALUE!"},{"$error":"#VALUE!"},"USE ONLY"]
[{"$error":"#VALUE!"},{"$error":"#VALUE!"},"USE ONLY"]
[{"$error":"#VALUE!"},{"$error":"#VALUE!"},"USE ONLY"]
[{"$error":"#VALUE!"},{"$error":"#VALUE!"},"USE ONLY"]
[{"$error":"#VALUE!"},{"$error":"#VALUE!"},"USE ONLY"]
[{"$error":"#VALUE!"},{"$error":"#VALUE!"},"USE ONLY"]
[{"$error":"#VALUE!"},{"$error":"#VALUE!"},"USE ONLY"]
[{"$error":"#VALUE!"},{"$error":"#VALUE!"},"USE ONLY"]
[{"$error":"#VALUE!"},{"$error":"#VALUE!"},"USE ONLY"]
[{"$f":"B132&C132","v":{"$error":"#VALUE!"}},{"$f":"B131+1","v":{"$error":"#VALUE!"}},{"$f":"$C$3","v":"USE ONLY"}]
[{"$error":"#VALUE!"},{"$error":"#VALUE!"},"USE ONLY"]
[{"$error":"#VALUE!"},{"$error":"#VALUE!"},"USE ONLY"]
[{"$error":"#VALUE!"},{"$error":"#VALUE!"},"USE ONLY"]
[{"$error":"#VALUE!"},{"$error":"#VALUE!"},"USE ONLY"]
[{"$error":"#VALUE!"},{"$error":"#VALUE!"},"USE ONLY"]
[{"$error":"#VALUE!"},{"$error":"#VALUE!"},"USE ONLY"]
[{"$error":"#VALUE!"},{"$error":"#VALUE!"},"USE ONLY"]
[{"$error":"#VALUE!"},{"$error":"#VALUE!"},"USE ONLY"]
[{"$error":"#VALUE!"},{"$error":"#VALUE!"},"USE ONLY"]
[{"$error":"#VALUE!"},{"$error":"#VALUE!"},"USE ONLY"]
[{"$error":"#VALUE!"},{"$error":"#VALUE!"},"USE ONLY"]
[{"$error":"#VALUE!"},{"$error":"#VALUE!"},"USE ONLY"]
[{"$error":"#VALUE!"},{"$error":"#VALUE!"},"USE ONLY"]
[{"$error":"#VALUE!"},{"$error":"#VALUE!"},"USE ONLY"]
[{"$error":"#VALUE!"},{"$error":"#VALUE!"},"USE ONLY"]
[{"$error":"#VALUE!"},{"$error":"#VALUE!"},"USE ONLY"]
[{"$error":"#VALUE!"},{"$error":"#VALUE!"},"USE ONLY"]
[{"$error":"#VALUE!"},{"$error":"#VALUE!"},"USE ONLY"]
[{"$error":"#VALUE!"},{"$error":"#VALUE!"},"USE ONLY"]
[{"$error":"#VALUE!"},{"$error":"#VALUE!"},"USE ONLY"]
[{"$error":"#VALUE!"},{"$error":"#VALUE!"},"USE ONLY"]
[{"$error":"#VALUE!"},{"$error":"#VALUE!"},"USE ONLY"]
[{"$error":"#VALUE!"},{"$error":"#VALUE!"},"USE ONLY"]
[{"$error":"#VALUE!"},{"$error":"#VALUE!"},"USE ONLY"]
[{"$error":"#VALUE!"},{"$error":"#VALUE!"},"USE ONLY"]
[{"$error":"#VALUE!"},{"$error":"#VALUE!"},"USE ONLY"]
[{"$error":"#VALUE!"},{"$error":"#VALUE!"},"USE ONLY"]
[{"$error":"#VALUE!"},{"$error":"#VALUE!"},"USE ONLY"]
[{"$error":"#VALUE!"},{"$error":"#VALUE!"},"USE ONLY"]
[{"$error":"#VALUE!"},{"$error":"#VALUE!"},"USE ONLY"]
[{"$error":"#VALUE!"},{"$error":"#VALUE!"},"USE ONLY"]
[{"$error":"#VALUE!"},{"$error":"#VALUE!"},"USE ONLY"]
[{"$error":"#VALUE!"},{"$error":"#VALUE!"},"USE ONLY"]
[{"$error":"#VALUE!"},{"$error":"#VALUE!"},"USE ONLY"]
[{"$error":"#VALUE!"},{"$error":"#VALUE!"},"USE ONLY"]
[{"$error":"#VALUE!"},{"$error":"#VALUE!"},"USE ONLY"]
[{"$error":"#VALUE!"},{"$error":"#VALUE!"},"USE ONLY"]
[{"$error":"#VALUE!"},{"$error":"#VALUE!"},"USE ONLY"]
[{"$error":"#VALUE!"},{"$error":"#VALUE!"},"USE ONLY"]
[{"$error":"#VALUE!"},{"$error":"#VALUE!"},"USE ONLY"]
[{"$error":"#VALUE!"},{"$error":"#VALUE!"},"USE ONLY"]
[{"$error":"#VALUE!"},{"$error":"#VALUE!"},"USE ONLY"]
[{"$error":"#VALUE!"},{"$error":"#VALUE!"},"USE ONLY"]
[{"$error":"#VALUE!"},{"$error":"#VALUE!"},"USE ONLY"]
[{"$error":"#VALUE!"},{"$error":"#VALUE!"},"USE ONLY"]
[{"$error":"#VALUE!"},{"$error":"#VALUE!"},"USE ONLY"]
[{"$error":"#VALUE!"},{"$error":"#VALUE!"},"USE ONLY"]
[{"$error":"#VALUE!"},{"$error":"#VALUE!"},"USE ONLY"]
[{"$error":"#VALUE!"},{"$error":"#VALUE!"},"USE ONLY"]
[{"$error":"#VALUE!"},{"$error":"#VALUE!"},"USE ONLY"]
[{"$error":"#VALUE!"},{"$error":"#VALUE!"},"USE ONLY"]
[{"$error":"#VALUE!"},{"$error":"#VALUE!"},"USE ONLY"]
[{"$error":"#VALUE!"},{"$error":"#VALUE!"},"USE ONLY"]
[{"$error":"#VALUE!"},{"$error":"#VALUE!"},"USE ONLY"]
[{"$error":"#VALUE!"},{"$error":"#VALUE!"},"USE ONLY"]
[{"$error":"#VALUE!"},{"$error":"#VALUE!"},"USE ONLY"]
[{"$error":"#VALUE!"},{"$error":"#VALUE!"},"USE ONLY"]
[{"$error":"#VALUE!"},{"$error":"#VALUE!"},"USE ONLY"]
[{"$error":"#VALUE!"},{"$error":"#VALUE!"},"USE ONLY"]
[{"$error":"#VALUE!"},{"$error":"#VALUE!"},"USE ONLY"]
[{"$error":"#VALUE!"},{"$error":"#VALUE!"},"USE ONLY"]
[{"$error":"#VALUE!"},{"$error":"#VALUE!"},"USE ONLY"]
[{"$error":"#VALUE!"},{"$error":"#VALUE!"},"USE ONLY"]
[{"$f":"B196&C196","v":{"$error":"#VALUE!"}},{"$f":"B195+1","v":{"$error":"#VALUE!"}},{"$f":"$C$3","v":"USE ONLY"}]
[{"$error":"#VALUE!"},{"$error":"#VALUE!"},"USE ONLY"]
[{"$error":"#VALUE!"},{"$error":"#VALUE!"},"USE ONLY"]
[{"$error":"#VALUE!"},{"$error":"#VALUE!"},"USE ONLY"]
[{"$error":"#VALUE!"},{"$error":"#VALUE!"},"USE ONLY"]
[{"$error":"#VALUE!"},{"$error":"#VALUE!"},"USE ONLY"]
[{"$error":"#VALUE!"},{"$error":"#VALUE!"},"USE ONLY"]
[{"$error":"#VALUE!"},{"$error":"#VALUE!"},"USE ONLY"]
[{"$error":"#VALUE!"},{"$error":"#VALUE!"},"USE ONLY"]
[{"$error":"#VALUE!"},{"$error":"#VALUE!"},"USE ONLY"]
[{"$error":"#VALUE!"},{"$error":"#VALUE!"},"USE ONLY"]
[{"$error":"#VALUE!"},{"$error":"#VALUE!"},"USE ONLY"]
[{"$error":"#VALUE!"},{"$error":"#VALUE!"},"USE ONLY"]
[{"$error":"#VALUE!"},{"$error":"#VALUE!"},"USE ONLY"]
[{"$error":"#VALUE!"},{"$error":"#VALUE!"},"USE ONLY"]
[{"$error":"#VALUE!"},{"$error":"#VALUE!"},"USE ONLY"]
[{"$error":"#VALUE!"},{"$error":"#VALUE!"},"USE ONLY"]
[{"$error":"#VALUE!"},{"$error":"#VALUE!"},"USE ONLY"]
[{"$error":"#VALUE!"},{"$error":"#VALUE!"},"USE ONLY"]
[{"$error":"#VALUE!"},{"$error":"#VALUE!"},"USE ONLY"]
[{"$error":"#VALUE!"},{"$error":"#VALUE!"},"USE ONLY"]
[{"$error":"#VALUE!"},{"$error":"#VALUE!"},"USE ONLY"]
[{"$error":"#VALUE!"},{"$error":"#VALUE!"},"USE ONLY"]
[{"$error":"#VALUE!"},{"$error":"#VALUE!"},"USE ONLY"]
[{"$error":"#VALUE!"},{"$error":"#VALUE!"},"USE ONLY"]
[{"$error":"#VALUE!"},{"$error":"#VALUE!"},"USE ONLY"]
[{"$error":"#VALUE!"},{"$error":"#VALUE!"},"USE ONLY"]
[{"$error":"#VALUE!"},{"$error":"#VALUE!"},"USE ONLY"]
[{"$error":"#VALUE!"},{"$error":"#VALUE!"},"USE ONLY"]
[{"$error":"#VALUE!"},{"$error":"#VALUE!"},"USE ONLY"]
[{"$error":"#VALUE!"},{"$error":"#VALUE!"},"USE ONLY"]
[{"$error":"#VALUE!"},{"$error":"#VALUE!"},"USE ONLY"]
[{"$error":"#VALUE!"},{"$error":"#VALUE!"},"USE ONLY"]
[{"$error":"#VALUE!"},{"$error":"#VALUE!"},"USE ONLY"]
[{"$error":"#VALUE!"},{"$error":"#VALUE!"},"USE ONLY"]
[{"$error":"#VALUE!"},{"$error":"#VALUE!"},"USE ONLY"]
[{"$error":"#VALUE!"},{"$error":"#VALUE!"},"USE ONLY"]
[{"$error":"#VALUE!"},{"$error":"#VALUE!"},"USE ONLY"]
[{"$error":"#VALUE!"},{"$error":"#VALUE!"},"USE ONLY"]
[{"$error":"#VALUE!"},{"$error":"#VALUE!"},"USE ONLY"]
[{"$error":"#VALUE!"},{"$error":"#VALUE!"},"USE ONLY"]
[{"$error":"#VALUE!"},{"$error":"#VALUE!"},"USE ONLY"]
[{"$error":"#VALUE!"},{"$error":"#VALUE!"},"USE ONLY"]
[{"$error":"#VALUE!"},{"$error":"#VALUE!"},"USE ONLY"]
[{"$error":"#VALUE!"},{"$error":"#VALUE!"},"USE ONLY"]
[{"$error":"#VALUE!"},{"$error":"#VALUE!"},"USE ONLY"]
[{"$error":"#VALUE!"},{"$error":"#VALUE!"},"USE ONLY"]
[{"$error":"#VALUE!"},{"$error":"#VALUE!"},"USE ONLY"]
[{"$error":"#VALUE!"},{"$error":"#VALUE!"},"USE ONLY"]
[{"$error":"#VALUE!"},{"$error":"#VALUE!"},"USE ONLY"]
[{"$error":"#VALUE!"},{"$error":"#VALUE!"},"USE ONLY"]
[{"$error":"#VALUE!"},{"$error":"#VALUE!"},"USE ONLY"]
[{"$error":"#VALUE!"},{"$error":"#VALUE!"},"USE ONLY"]
[{"$error":"#VALUE!"},{"$error":"#VALUE!"},"USE ONLY"]
[{"$error":"#VALUE!"},{"$error":"#VALUE!"},"USE ONLY"]
[{"$error":"#VALUE!"},{"$error":"#VALUE!"},"USE ONLY"]
[{"$error":"#VALUE!"},{"$error":"#VALUE!"},"USE ONLY"]
[{"$error":"#VALUE!"},{"$error":"#VALUE!"},"USE ONLY"]
[{"$error":"#VALUE!"},{"$error":"#VALUE!"},"USE ONLY"]
[{"$error":"#VALUE!"},{"$error":"#VALUE!"},"USE ONLY"]
[{"$error":"#VALUE!"},{"$error":"#VALUE!"},"USE ONLY"]
[{"$error":"#VALUE!"},{"$error":"#VALUE!"},"USE ONLY"]
[{"$error":"#VALUE!"},{"$error":"#VALUE!"},"USE ONLY"]
[{"$error":"#VALUE!"},{"$error":"#VALUE!"},"USE ONLY"]
[{"$f":"B260&C260","v":{"$error":"#VALUE!"}},{"$f":"B259+1","v":{"$error":"#VALUE!"}},{"$f":"$C$3","v":"USE ONLY"}]
[{"$error":"#VALUE!"},{"$error":"#VALUE!"},"USE ONLY"]
[{"$error":"#VALUE!"},{"$error":"#VALUE!"},"USE ONLY"]
[{"$error":"#VALUE!"},{"$error":"#VALUE!"},"USE ONLY"]
[{"$error":"#VALUE!"},{"$error":"#VALUE!"},"USE ONLY"]
[{"$error":"#VALUE!"},{"$error":"#VALUE!"},"USE ONLY"]
[{"$error":"#VALUE!"},{"$error":"#VALUE!"},"USE ONLY"]
[{"$error":"#VALUE!"},{"$error":"#VALUE!"},"USE ONLY"]
[{"$error":"#VALUE!"},{"$error":"#VALUE!"},"USE ONLY"]
[{"$error":"#VALUE!"},{"$error":"#VALUE!"},"USE ONLY"]
[{"$error":"#VALUE!"},{"$error":"#VALUE!"},"USE ONLY"]
[{"$error":"#VALUE!"},{"$error":"#VALUE!"},"USE ONLY"]
[{"$error":"#VALUE!"},{"$error":"#VALUE!"},"USE ONLY"]
[{"$error":"#VALUE!"},{"$error":"#VALUE!"},"USE ONLY"]
[{"$error":"#VALUE!"},{"$error":"#VALUE!"},"USE ONLY"]
[{"$error":"#VALUE!"},{"$error":"#VALUE!"},"USE ONLY"]
[{"$error":"#VALUE!"},{"$error":"#VALUE!"},"USE ONLY"]
[{"$error":"#VALUE!"},{"$error":"#VALUE!"},"USE ONLY"]
[{"$error":"#VALUE!"},{"$error":"#VALUE!"},"USE ONLY"]
[{"$error":"#VALUE!"},{"$error":"#VALUE!"},"USE ONLY"]
[{"$error":"#VALUE!"},{"$error":"#VALUE!"},"USE ONLY"]
[{"$error":"#VALUE!"},{"$error":"#VALUE!"},"USE ONLY"]
[{"$error":"#VALUE!"},{"$error":"#VALUE!"},"USE ONLY"]
[{"$error":"#VALUE!"},{"$error":"#VALUE!"},"USE ONLY"]
[{"$error":"#VALUE!"},{"$error":"#VALUE!"},"USE ONLY"]
[{"$error":"#VALUE!"},{"$error":"#VALUE!"},"USE ONLY"]
[{"$error":"#VALUE!"},{"$error":"#VALUE!"},"USE ONLY"]
[{"$error":"#VALUE!"},{"$error":"#VALUE!"},"USE ONLY"]
[{"$error":"#VALUE!"},{"$error":"#VALUE!"},"USE ONLY"]
[{"$error":"#VALUE!"},{"$error":"#VALUE!"},"USE ONLY"]
[{"$error":"#VALUE!"},{"$error":"#VALUE!"},"USE ONLY"]
[{"$error":"#VALUE!"},{"$error":"#VALUE!"},"USE ONLY"]
[{"$error":"#VALUE!"},{"$error":"#VALUE!"},"USE ONLY"]
[{"$error":"#VALUE!"},{"$error":"#VALUE!"},"USE ONLY"]
[{"$error":"#VALUE!"},{"$error":"#VALUE!"},"USE ONLY"]
[{"$error":"#VALUE!"},{"$error":"#VALUE!"},"USE ONLY"]
[{"$error":"#VALUE!"},{"$error":"#VALUE!"},"USE ONLY"]
[{"$error":"#VALUE!"},{"$error":"#VALUE!"},"USE ONLY"]
[{"$error":"#VALUE!"},{"$error":"#VALUE!"},"USE ONLY"]
[{"$error":"#VALUE!"},{"$error":"#VALUE!"},"USE ONLY"]
[{"$error":"#VALUE!"},{"$error":"#VALUE!"},"USE ONLY"]
[{"$error":"#VALUE!"},{"$error":"#VALUE!"},"USE ONLY"]
[{"$error":"#VALUE!"},{"$error":"#VALUE!"},"USE ONLY"]
[{"$error":"#VALUE!"},{"$error":"#VALUE!"},"USE ONLY"]
[{"$error":"#VALUE!"},{"$error":"#VALUE!"},"USE ONLY"]
[{"$error":"#VALUE!"},{"$error":"#VALUE!"},"USE ONLY"]
[{"$error":"#VALUE!"},{"$error":"#VALUE!"},"USE ONLY"]
[{"$error":"#VALUE!"},{"$error":"#VALUE!"},"USE ONLY"]
[{"$error":"#VALUE!"},{"$error":"#VALUE!"},"USE ONLY"]
[{"$error":"#VALUE!"},{"$error":"#VALUE!"},"USE ONLY"]
[{"$error":"#VALUE!"},{"$error":"#VALUE!"},"USE ONLY"]
[{"$error":"#VALUE!"},{"$error":"#VALUE!"},"USE ONLY"]
[{"$error":"#VALUE!"},{"$error":"#VALUE!"},"USE ONLY"]
[{"$error":"#VALUE!"},{"$error":"#VALUE!"},"USE ONLY"]
[{"$error":"#VALUE!"},{"$error":"#VALUE!"},"USE ONLY"]
[{"$error":"#VALUE!"},{"$error":"#VALUE!"},"USE ONLY"]
[{"$error":"#VALUE!"},{"$error":"#VALUE!"},"USE ONLY"]
[{"$error":"#VALUE!"},{"$error":"#VALUE!"},"USE ONLY"]
[{"$error":"#VALUE!"},{"$error":"#VALUE!"},"USE ONLY"]
[{"$error":"#VALUE!"},{"$error":"#VALUE!"},"USE ONLY"]
[{"$error":"#VALUE!"},{"$error":"#VALUE!"},"USE ONLY"]
[{"$error":"#VALUE!"},{"$error":"#VALUE!"},"USE ONLY"]
[{"$error":"#VALUE!"},{"$error":"#VALUE!"},"USE ONLY"]
[{"$error":"#VALUE!"},{"$error":"#VALUE!"},"USE ONLY"]
[{"$f":"B324&C324","v":{"$error":"#VALUE!"}},{"$f":"B323+1","v":{"$error":"#VALUE!"}},{"$f":"$C$3","v":"USE ONLY"}]
[{"$error":"#VALUE!"},{"$error":"#VALUE!"},"USE ONLY"]
[{"$error":"#VALUE!"},{"$error":"#VALUE!"},"USE ONLY"]
[{"$error":"#VALUE!"},{"$error":"#VALUE!"},"USE ONLY"]
[{"$error":"#VALUE!"},{"$error":"#VALUE!"},"USE ONLY"]
[{"$error":"#VALUE!"},{"$error":"#VALUE!"},"USE ONLY"]
[{"$error":"#VALUE!"},{"$error":"#VALUE!"},"USE ONLY"]
[{"$error":"#VALUE!"},{"$error":"#VALUE!"},"USE ONLY"]
[{"$error":"#VALUE!"},{"$error":"#VALUE!"},"USE ONLY"]
[{"$error":"#VALUE!"},{"$error":"#VALUE!"},"USE ONLY"]
[{"$error":"#VALUE!"},{"$error":"#VALUE!"},"USE ONLY"]
[{"$error":"#VALUE!"},{"$error":"#VALUE!"},"USE ONLY"]
[{"$error":"#VALUE!"},{"$error":"#VALUE!"},"USE ONLY"]
[{"$error":"#VALUE!"},{"$error":"#VALUE!"},"USE ONLY"]
[{"$error":"#VALUE!"},{"$error":"#VALUE!"},"USE ONLY"]
[{"$error":"#VALUE!"},{"$error":"#VALUE!"},"USE ONLY"]
[{"$error":"#VALUE!"},{"$error":"#VALUE!"},"USE ONLY"]
[{"$error":"#VALUE!"},{"$error":"#VALUE!"},"USE ONLY"]
[{"$error":"#VALUE!"},{"$error":"#VALUE!"},"USE ONLY"]
[{"$error":"#VALUE!"},{"$error":"#VALUE!"},"USE ONLY"]
[{"$error":"#VALUE!"},{"$error":"#VALUE!"},"USE ONLY"]
[{"$error":"#VALUE!"},{"$error":"#VALUE!"},"USE ONLY"]
[{"$error":"#VALUE!"},{"$error":"#VALUE!"},"USE ONLY"]
[{"$error":"#VALUE!"},{"$error":"#VALUE!"},"USE ONLY"]
[{"$error":"#VALUE!"},{"$error":"#VALUE!"},"USE ONLY"]
[{"$error":"#VALUE!"},{"$error":"#VALUE!"},"USE ONLY"]
[{"$error":"#VALUE!"},{"$error":"#VALUE!"},"USE ONLY"]
[{"$error":"#VALUE!"},{"$error":"#VALUE!"},"USE ONLY"]
[{"$error":"#VALUE!"},{"$error":"#VALUE!"},"USE ONLY"]
[{"$error":"#VALUE!"},{"$error":"#VALUE!"},"USE ONLY"]
[{"$error":"#VALUE!"},{"$error":"#VALUE!"},"USE ONLY"]
[{"$error":"#VALUE!"},{"$error":"#VALUE!"},"USE ONLY"]
[{"$error":"#VALUE!"},{"$error":"#VALUE!"},"USE ONLY"]
[{"$error":"#VALUE!"},{"$error":"#VALUE!"},"USE ONLY"]
[{"$error":"#VALUE!"},{"$error":"#VALUE!"},"USE ONLY"]
[{"$error":"#VALUE!"},{"$error":"#VALUE!"},"USE ONLY"]
[{"$error":"#VALUE!"},{"$error":"#VALUE!"},"USE ONLY"]
[{"$error":"#VALUE!"},{"$error":"#VALUE!"},"USE ONLY"]
[{"$error":"#VALUE!"},{"$error":"#VALUE!"},"USE ONLY"]
[{"$error":"#VALUE!"},{"$error":"#VALUE!"},"USE ONLY"]
[{"$error":"#VALUE!"},{"$error":"#VALUE!"},"USE ONLY"]
[{"$error":"#VALUE!"},{"$error":"#VALUE!"},"USE ONLY"]
[{"$error":"#VALUE!"},{"$error":"#VALUE!"},"USE ONLY"]
[{"$error":"#VALUE!"},{"$error":"#VALUE!"},"USE ONLY"]
[{"$error":"#VALUE!"},{"$error":"#VALUE!"},"USE ONLY"]
[{"$error":"#VALUE!"},{"$error":"#VALUE!"},"USE ONLY"]
[{"$error":"#VALUE!"},{"$error":"#VALUE!"},"USE ONLY"]
[{"$error":"#VALUE!"},{"$error":"#VALUE!"},"USE ONLY"]
[{"$error":"#VALUE!"},{"$error":"#VALUE!"},"USE ONLY"]
[{"$error":"#VALUE!"},{"$error":"#VALUE!"},"USE ONLY"]
[{"$error":"#VALUE!"},{"$error":"#VALUE!"},"USE ONLY"]
[{"$error":"#VALUE!"},{"$error":"#VALUE!"},"USE ONLY"]
[{"$error":"#VALUE!"},{"$error":"#VALUE!"},"USE ONLY"]
[{"$error":"#VALUE!"},{"$error":"#VALUE!"},"USE ONLY"]
[{"$error":"#VALUE!"},{"$error":"#VALUE!"},"USE ONLY"]
[{"$error":"#VALUE!"},{"$error":"#VALUE!"},"USE ONLY"]
[{"$error":"#VALUE!"},{"$error":"#VALUE!"},"USE ONLY"]
[{"$error":"#VALUE!"},{"$error":"#VALUE!"},"USE ONLY"]
[{"$error":"#VALUE!"},{"$error":"#VALUE!"},"USE ONLY"]
[{"$error":"#VALUE!"},{"$error":"#VALUE!"},"USE ONLY"]
[{"$error":"#VALUE!"},{"$error":"#VALUE!"},"USE ONLY"]
[{"$error":"#VALUE!"},{"$error":"#VALUE!"},"USE ONLY"]
[{"$error":"#VALUE!"},{"$error":"#VALUE!"},"USE ONLY"]
[{"$error":"#VALUE!"},{"$error":"#VALUE!"},"USE ONLY"]
[{"$f":"B388&C388","v":{"$error":"#VALUE!"}},{"$f":"B387+1","v":{"$error":"#VALUE!"}},{"$f":"$C$3","v":"USE ONLY"}]
[{"$error":"#VALUE!"},{"$error":"#VALUE!"},"USE ONLY"]
[{"$error":"#VALUE!"},{"$error":"#VALUE!"},"USE ONLY"]
[{"$error":"#VALUE!"},{"$error":"#VALUE!"},"USE ONLY"]
[{"$error":"#VALUE!"},{"$error":"#VALUE!"},"USE ONLY"]
[{"$error":"#VALUE!"},{"$error":"#VALUE!"},"USE ONLY"]
[{"$error":"#VALUE!"},{"$error":"#VALUE!"},"USE ONLY"]
[{"$error":"#VALUE!"},{"$error":"#VALUE!"},"USE ONLY"]
[{"$error":"#VALUE!"},{"$error":"#VALUE!"},"USE ONLY"]
[{"$error":"#VALUE!"},{"$error":"#VALUE!"},"USE ONLY"]
[{"$error":"#VALUE!"},{"$error":"#VALUE!"},"USE ONLY"]
[{"$error":"#VALUE!"},{"$error":"#VALUE!"},"USE ONLY"]
[{"$error":"#VALUE!"},{"$error":"#VALUE!"},"USE ONLY"]
[{"$error":"#VALUE!"},{"$error":"#VALUE!"},"USE ONLY"]
[{"$error":"#VALUE!"},{"$error":"#VALUE!"},"USE ONLY"]
[{"$error":"#VALUE!"},{"$error":"#VALUE!"},"USE ONLY"]
[{"$error":"#VALUE!"},{"$error":"#VALUE!"},"USE ONLY"]
[{"$error":"#VALUE!"},{"$error":"#VALUE!"},"USE ONLY"]
[{"$error":"#VALUE!"},{"$error":"#VALUE!"},"USE ONLY"]
[{"$error":"#VALUE!"},{"$error":"#VALUE!"},"USE ONLY"]
[{"$error":"#VALUE!"},{"$error":"#VALUE!"},"USE ONLY"]
[{"$error":"#VALUE!"},{"$error":"#VALUE!"},"USE ONLY"]
[{"$error":"#VALUE!"},{"$error":"#VALUE!"},"USE ONLY"]
[{"$error":"#VALUE!"},{"$error":"#VALUE!"},"USE ONLY"]
[{"$error":"#VALUE!"},{"$error":"#VALUE!"},"USE ONLY"]
[{"$error":"#VALUE!"},{"$error":"#VALUE!"},"USE ONLY"]
[{"$error":"#VALUE!"},{"$error":"#VALUE!"},"USE ONLY"]
[{"$error":"#VALUE!"},{"$error":"#VALUE!"},"USE ONLY"]
[{"$error":"#VALUE!"},{"$error":"#VALUE!"},"USE ONLY"]
[{"$error":"#VALUE!"},{"$error":"#VALUE!"},"USE ONLY"]
[{"$error":"#VALUE!"},{"$error":"#VALUE!"},"USE ONLY"]
[{"$error":"#VALUE!"},{"$error":"#VALUE!"},"USE ONLY"]
[{"$error":"#VALUE!"},{"$error":"#VALUE!"},"USE ONLY"]
[{"$error":"#VALUE!"},{"$error":"#VALUE!"},"USE ONLY"]
[{"$error":"#VALUE!"},{"$error":"#VALUE!"},"USE ONLY"]
[{"$error":"#VALUE!"},{"$error":"#VALUE!"},"USE ONLY"]
[{"$error":"#VALUE!"},{"$error":"#VALUE!"},"USE ONLY"]
[{"$error":"#VALUE!"},{"$error":"#VALUE!"},"USE ONLY"]
[{"$error":"#VALUE!"},{"$error":"#VALUE!"},"USE ONLY"]
[{"$error":"#VALUE!"},{"$error":"#VALUE!"},"USE ONLY"]
[{"$error":"#VALUE!"},{"$error":"#VALUE!"},"USE ONLY"]
[{"$error":"#VALUE!"},{"$error":"#VALUE!"},"USE ONLY"]
[{"$error":"#VALUE!"},{"$error":"#VALUE!"},"USE ONLY"]
[{"$error":"#VALUE!"},{"$error":"#VALUE!"},"USE ONLY"]
[{"$error":"#VALUE!"},{"$error":"#VALUE!"},"USE ONLY"]
[{"$error":"#VALUE!"},{"$error":"#VALUE!"},"USE ONLY"]
[{"$error":"#VALUE!"},{"$error":"#VALUE!"},"USE ONLY"]
[{"$error":"#VALUE!"},{"$error":"#VALUE!"},"USE ONLY"]
[{"$error":"#VALUE!"},{"$error":"#VALUE!"},"USE ONLY"]
[{"$error":"#VALUE!"},{"$error":"#VALUE!"},"USE ONLY"]
[{"$error":"#VALUE!"},{"$error":"#VALUE!"},"USE ONLY"]
[{"$error":"#VALUE!"},{"$error":"#VALUE!"},"USE ONLY"]
[{"$error":"#VALUE!"},{"$error":"#VALUE!"},"USE ONLY"]
[{"$error":"#VALUE!"},{"$error":"#VALUE!"},"USE ONLY"]
[{"$error":"#VALUE!"},{"$error":"#VALUE!"},"USE ONLY"]
[{"$error":"#VALUE!"},{"$error":"#VALUE!"},"USE ONLY"]
[{"$error":"#VALUE!"},{"$error":"#VALUE!"},"USE ONLY"]
[{"$error":"#VALUE!"},{"$error":"#VALUE!"},"USE ONLY"]
[{"$error":"#VALUE!"},{"$error":"#VALUE!"},"USE ONLY"]
[{"$error":"#VALUE!"},{"$error":"#VALUE!"},"USE ONLY"]
[{"$error":"#VALUE!"},{"$error":"#VALUE!"},"USE ONLY"]
[{"$error":"#VALUE!"},{"$error":"#VALUE!"},"USE ONLY"]
[{"$error":"#VALUE!"},{"$error":"#VALUE!"},"USE ONLY"]
[{"$error":"#VALUE!"},{"$error":"#VALUE!"},"USE ONLY"]
[{"$f":"B452&C452","v":{"$error":"#VALUE!"}},{"$f":"B451+1","v":{"$error":"#VALUE!"}},{"$f":"$C$3","v":"USE ONLY"}]
[{"$error":"#VALUE!"},{"$error":"#VALUE!"},"USE ONLY"]
[{"$error":"#VALUE!"},{"$error":"#VALUE!"},"USE ONLY"]
[{"$error":"#VALUE!"},{"$error":"#VALUE!"},"USE ONLY"]
[{"$error":"#VALUE!"},{"$error":"#VALUE!"},"USE ONLY"]
[{"$error":"#VALUE!"},{"$error":"#VALUE!"},"USE ONLY"]
[{"$error":"#VALUE!"},{"$error":"#VALUE!"},"USE ONLY"]
[{"$error":"#VALUE!"},{"$error":"#VALUE!"},"USE ONLY"]
[{"$error":"#VALUE!"},{"$error":"#VALUE!"},"USE ONLY"]
[{"$error":"#VALUE!"},{"$error":"#VALUE!"},"USE ONLY"]
[{"$error":"#VALUE!"},{"$error":"#VALUE!"},"USE ONLY"]
[{"$error":"#VALUE!"},{"$error":"#VALUE!"},"USE ONLY"]
[{"$error":"#VALUE!"},{"$error":"#VALUE!"},"USE ONLY"]
[{"$error":"#VALUE!"},{"$error":"#VALUE!"},"USE ONLY"]
[{"$error":"#VALUE!"},{"$error":"#VALUE!"},"USE ONLY"]
[{"$error":"#VALUE!"},{"$error":"#VALUE!"},"USE ONLY"]
[{"$error":"#VALUE!"},{"$error":"#VALUE!"},"USE ONLY"]
[{"$error":"#VALUE!"},{"$error":"#VALUE!"},"USE ONLY"]
[{"$error":"#VALUE!"},{"$error":"#VALUE!"},"USE ONLY"]
[{"$error":"#VALUE!"},{"$error":"#VALUE!"},"USE ONLY"]
[{"$error":"#VALUE!"},{"$error":"#VALUE!"},"USE ONLY"]
[{"$error":"#VALUE!"},{"$error":"#VALUE!"},"USE ONLY"]
[{"$error":"#VALUE!"},{"$error":"#VALUE!"},"USE ONLY"]
[{"$error":"#VALUE!"},{"$error":"#VALUE!"},"USE ONLY"]
[{"$error":"#VALUE!"},{"$error":"#VALUE!"},"USE ONLY"]
[{"$error":"#VALUE!"},{"$error":"#VALUE!"},"USE ONLY"]
[{"$error":"#VALUE!"},{"$error":"#VALUE!"},"USE ONLY"]
[{"$error":"#VALUE!"},{"$error":"#VALUE!"},"USE ONLY"]
[{"$error":"#VALUE!"},{"$error":"#VALUE!"},"USE ONLY"]
[{"$error":"#VALUE!"},{"$error":"#VALUE!"},"USE ONLY"]
[{"$error":"#VALUE!"},{"$error":"#VALUE!"},"USE ONLY"]
[{"$error":"#VALUE!"},{"$error":"#VALUE!"},"USE ONLY"]
[{"$error":"#VALUE!"},{"$error":"#VALUE!"},"USE ONLY"]
[{"$error":"#VALUE!"},{"$error":"#VALUE!"},"USE ONLY"]
[{"$error":"#VALUE!"},{"$error":"#VALUE!"},"USE ONLY"]
[{"$error":"#VALUE!"},{"$error":"#VALUE!"},"USE ONLY"]
[{"$error":"#VALUE!"},{"$error":"#VALUE!"},"USE ONLY"]
[{"$error":"#VALUE!"},{"$error":"#VALUE!"},"USE ONLY"]
[{"$error":"#VALUE!"},{"$error":"#VALUE!"},"USE ONLY"]
[{"$error":"#VALUE!"},{"$error":"#VALUE!"},"USE ONLY"]
[{"$error":"#VALUE!"},{"$error":"#VALUE!"},"USE ONLY"]
[{"$error":"#VALUE!"},{"$error":"#VALUE!"},"USE ONLY"]
[{"$error":"#VALUE!"},{"$error":"#VALUE!"},"USE ONLY"]
[{"$error":"#VALUE!"},{"$error":"#VALUE!"},"USE ONLY"]
[{"$error":"#VALUE!"},{"$error":"#VALUE!"},"USE ONLY"]
[{"$error":"#VALUE!"},{"$error":"#VALUE!"},"USE ONLY"]
[{"$error":"#VALUE!"},{"$error":"#VALUE!"},"USE ONLY"]
[{"$error":"#VALUE!"},{"$error":"#VALUE!"},"USE ONLY"]
[{"$error":"#VALUE!"},{"$error":"#VALUE!"},"USE ONLY"]
[{"$error":"#VALUE!"},{"$error":"#VALUE!"},"USE ONLY"]
[{"$error":"#VALUE!"},{"$error":"#VALUE!"},"USE ONLY"]
[{"$error":"#VALUE!"},{"$error":"#VALUE!"},"USE ONLY"]
[{"$error":"#VALUE!"},{"$error":"#VALUE!"},"USE ONLY"]
[{"$error":"#VALUE!"},{"$error":"#VALUE!"},"USE ONLY"]
[{"$error":"#VALUE!"},{"$error":"#VALUE!"},"USE ONLY"]
[{"$error":"#VALUE!"},{"$error":"#VALUE!"},"USE ONLY"]
[{"$error":"#VALUE!"},{"$error":"#VALUE!"},"USE ONLY"]
[{"$error":"#VALUE!"},{"$error":"#VALUE!"},"USE ONLY"]
[{"$error":"#VALUE!"},{"$error":"#VALUE!"},"USE ONLY"]
[{"$error":"#VALUE!"},{"$error":"#VALUE!"},"USE ONLY"]
[{"$error":"#VALUE!"},{"$error":"#VALUE!"},"USE ONLY"]
[{"$error":"#VALUE!"},{"$error":"#VALUE!"},"USE ONLY"]
[{"$error":"#VALUE!"},{"$error":"#VALUE!"},"USE ONLY"]
[{"$error":"#VALUE!"},{"$error":"#VALUE!"},"USE ONLY"]
[{"$f":"B516&C516","v":{"$error":"#VALUE!"}},{"$f":"B515+1","v":{"$error":"#VALUE!"}},{"$f":"$C$3","v":"USE ONLY"}]
[{"$error":"#VALUE!"},{"$error":"#VALUE!"},"USE ONLY"]
[{"$error":"#VALUE!"},{"$error":"#VALUE!"},"USE ONLY"]
[{"$error":"#VALUE!"},{"$error":"#VALUE!"},"USE ONLY"]
[{"$error":"#VALUE!"},{"$error":"#VALUE!"},"USE ONLY"]
[{"$error":"#VALUE!"},{"$error":"#VALUE!"},"USE ONLY"]
[{"$error":"#VALUE!"},{"$error":"#VALUE!"},"USE ONLY"]
[{"$error":"#VALUE!"},{"$error":"#VALUE!"},"USE ONLY"]
[{"$error":"#VALUE!"},{"$error":"#VALUE!"},"USE ONLY"]
[{"$error":"#VALUE!"},{"$error":"#VALUE!"},"USE ONLY"]
[{"$error":"#VALUE!"},{"$error":"#VALUE!"},"USE ONLY"]
[{"$error":"#VALUE!"},{"$error":"#VALUE!"},"USE ONLY"]
[{"$error":"#VALUE!"},{"$error":"#VALUE!"},"USE ONLY"]
[{"$error":"#VALUE!"},{"$error":"#VALUE!"},"USE ONLY"]
[{"$error":"#VALUE!"},{"$error":"#VALUE!"},"USE ONLY"]
[{"$error":"#VALUE!"},{"$error":"#VALUE!"},"USE ONLY"]
[{"$error":"#VALUE!"},{"$error":"#VALUE!"},"USE ONLY"]
[{"$error":"#VALUE!"},{"$error":"#VALUE!"},"USE ONLY"]
[{"$error":"#VALUE!"},{"$error":"#VALUE!"},"USE ONLY"]
[{"$error":"#VALUE!"},{"$error":"#VALUE!"},"USE ONLY"]
[{"$error":"#VALUE!"},{"$error":"#VALUE!"},"USE ONLY"]
[{"$error":"#VALUE!"},{"$error":"#VALUE!"},"USE ONLY"]
[{"$error":"#VALUE!"},{"$error":"#VALUE!"},"USE ONLY"]
[{"$error":"#VALUE!"},{"$error":"#VALUE!"},"USE ONLY"]
[{"$error":"#VALUE!"},{"$error":"#VALUE!"},"USE ONLY"]
[{"$error":"#VALUE!"},{"$error":"#VALUE!"},"USE ONLY"]
[{"$error":"#VALUE!"},{"$error":"#VALUE!"},"USE ONLY"]
[{"$error":"#VALUE!"},{"$error":"#VALUE!"},"USE ONLY"]
[{"$error":"#VALUE!"},{"$error":"#VALUE!"},"USE ONLY"]
[{"$error":"#VALUE!"},{"$error":"#VALUE!"},"USE ONLY"]
[{"$error":"#VALUE!"},{"$error":"#VALUE!"},"USE ONLY"]
[{"$error":"#VALUE!"},{"$error":"#VALUE!"},"USE ONLY"]
[{"$error":"#VALUE!"},{"$error":"#VALUE!"},"USE ONLY"]
[{"$error":"#VALUE!"},{"$error":"#VALUE!"},"USE ONLY"]
[{"$error":"#VALUE!"},{"$error":"#VALUE!"},"USE ONLY"]
[{"$error":"#VALUE!"},{"$error":"#VALUE!"},"USE ONLY"]
[{"$error":"#VALUE!"},{"$error":"#VALUE!"},"USE ONLY"]
[{"$error":"#VALUE!"},{"$error":"#VALUE!"},"USE ONLY"]
[{"$error":"#VALUE!"},{"$error":"#VALUE!"},"USE ONLY"]
[{"$error":"#VALUE!"},{"$error":"#VALUE!"},"USE ONLY"]
[{"$error":"#VALUE!"},{"$error":"#VALUE!"},"USE ONLY"]
[{"$error":"#VALUE!"},{"$error":"#VALUE!"},"USE ONLY"]
[{"$error":"#VALUE!"},{"$error":"#VALUE!"},"USE ONLY"]
[{"$error":"#VALUE!"},{"$error":"#VALUE!"},"USE ONLY"]
[{"$error":"#VALUE!"},{"$error":"#VALUE!"},"USE ONLY"]
[{"$error":"#VALUE!"},{"$error":"#VALUE!"},"USE ONLY"]
[{"$error":"#VALUE!"},{"$error":"#VALUE!"},"USE ONLY"]
[{"$error":"#VALUE!"},{"$error":"#VALUE!"},"USE ONLY"]
[{"$error":"#VALUE!"},{"$error":"#VALUE!"},"USE ONLY"]
[{"$error":"#VALUE!"},{"$error":"#VALUE!"},"USE ONLY"]
[{"$error":"#VALUE!"},{"$error":"#VALUE!"},"USE ONLY"]
[{"$error":"#VALUE!"},{"$error":"#VALUE!"},"USE ONLY"]
[{"$error":"#VALUE!"},{"$error":"#VALUE!"},"USE ONLY"]
[{"$error":"#VALUE!"},{"$error":"#VALUE!"},"USE ONLY"]
[{"$error":"#VALUE!"},{"$error":"#VALUE!"},"USE ONLY"]
[{"$error":"#VALUE!"},{"$error":"#VALUE!"},"USE ONLY"]
[{"$error":"#VALUE!"},{"$error":"#VALUE!"},"USE ONLY"]
[{"$error":"#VALUE!"},{"$error":"#VALUE!"},"USE ONLY"]
[{"$error":"#VALUE!"},{"$error":"#VALUE!"},"USE ONLY"]
[{"$error":"#VALUE!"},{"$error":"#VALUE!"},"USE ONLY"]
[{"$error":"#VALUE!"},{"$error":"#VALUE!"},"USE ONLY"]
[{"$error":"#VALUE!"},{"$error":"#VALUE!"},"USE ONLY"]
[{"$error":"#VALUE!"},{"$error":"#VALUE!"},"USE ONLY"]
[{"$error":"#VALUE!"},{"$error":"#VALUE!"},"USE ONLY"]
[{"$f":"B580&C580","v":{"$error":"#VALUE!"}},{"$f":"B579+1","v":{"$error":"#VALUE!"}},{"$f":"$C$3","v":"USE ONLY"}]
[{"$error":"#VALUE!"},{"$error":"#VALUE!"},"USE ONLY"]
[{"$error":"#VALUE!"},{"$error":"#VALUE!"},"USE ONLY"]
[{"$error":"#VALUE!"},{"$error":"#VALUE!"},"USE ONLY"]
[{"$error":"#VALUE!"},{"$error":"#VALUE!"},"USE ONLY"]
[{"$error":"#VALUE!"},{"$error":"#VALUE!"},"USE ONLY"]
[{"$error":"#VALUE!"},{"$error":"#VALUE!"},"USE ONLY"]
[{"$error":"#VALUE!"},{"$error":"#VALUE!"},"USE ONLY"]
[{"$error":"#VALUE!"},{"$error":"#VALUE!"},"USE ONLY"]
[{"$error":"#VALUE!"},{"$error":"#VALUE!"},"USE ONLY"]
[{"$error":"#VALUE!"},{"$error":"#VALUE!"},"USE ONLY"]
[{"$error":"#VALUE!"},{"$error":"#VALUE!"},"USE ONLY"]
[{"$error":"#VALUE!"},{"$error":"#VALUE!"},"USE ONLY"]
[{"$error":"#VALUE!"},{"$error":"#VALUE!"},"USE ONLY"]
[{"$error":"#VALUE!"},{"$error":"#VALUE!"},"USE ONLY"]
[{"$error":"#VALUE!"},{"$error":"#VALUE!"},"USE ONLY"]
[{"$error":"#VALUE!"},{"$error":"#VALUE!"},"USE ONLY"]
[{"$error":"#VALUE!"},{"$error":"#VALUE!"},"USE ONLY"]
[{"$error":"#VALUE!"},{"$error":"#VALUE!"},"USE ONLY"]
[{"$error":"#VALUE!"},{"$error":"#VALUE!"},"USE ONLY"]
[{"$error":"#VALUE!"},{"$error":"#VALUE!"},"USE ONLY"]
[{"$error":"#VALUE!"},{"$error":"#VALUE!"},"USE ONLY"]
[{"$error":"#VALUE!"},{"$error":"#VALUE!"},"USE ONLY"]
[{"$error":"#VALUE!"},{"$error":"#VALUE!"},"USE ONLY"]
[{"$error":"#VALUE!"},{"$error":"#VALUE!"},"USE ONLY"]
[{"$error":"#VALUE!"},{"$error":"#VALUE!"},"USE ONLY"]
[{"$error":"#VALUE!"},{"$error":"#VALUE!"},"USE ONLY"]
[{"$error":"#VALUE!"},{"$error":"#VALUE!"},"USE ONLY"]
[{"$error":"#VALUE!"},{"$error":"#VALUE!"},"USE ONLY"]
[{"$error":"#VALUE!"},{"$error":"#VALUE!"},"USE ONLY"]
[{"$error":"#VALUE!"},{"$error":"#VALUE!"},"USE ONLY"]
[{"$error":"#VALUE!"},{"$error":"#VALUE!"},"USE ONLY"]
[{"$error":"#VALUE!"},{"$error":"#VALUE!"},"USE ONLY"]
[{"$error":"#VALUE!"},{"$error":"#VALUE!"},"USE ONLY"]
[{"$error":"#VALUE!"},{"$error":"#VALUE!"},"USE ONLY"]
[{"$error":"#VALUE!"},{"$error":"#VALUE!"},"USE ONLY"]
[{"$error":"#VALUE!"},{"$error":"#VALUE!"},"USE ONLY"]
[{"$error":"#VALUE!"},{"$error":"#VALUE!"},"USE ONLY"]
[{"$error":"#VALUE!"},{"$error":"#VALUE!"},"USE ONLY"]
[{"$error":"#VALUE!"},{"$error":"#VALUE!"},"USE ONLY"]
[{"$error":"#VALUE!"},{"$error":"#VALUE!"},"USE ONLY"]
[{"$error":"#VALUE!"},{"$error":"#VALUE!"},"USE ONLY"]
[{"$error":"#VALUE!"},{"$error":"#VALUE!"},"USE ONLY"]
[{"$error":"#VALUE!"},{"$error":"#VALUE!"},"USE ONLY"]
[{"$error":"#VALUE!"},{"$error":"#VALUE!"},"USE ONLY"]
[{"$error":"#VALUE!"},{"$error":"#VALUE!"},"USE ONLY"]
[{"$error":"#VALUE!"},{"$error":"#VALUE!"},"USE ONLY"]
[{"$error":"#VALUE!"},{"$error":"#VALUE!"},"USE ONLY"]
[{"$error":"#VALUE!"},{"$error":"#VALUE!"},"USE ONLY"]
[{"$error":"#VALUE!"},{"$error":"#VALUE!"},"USE ONLY"]
[{"$error":"#VALUE!"},{"$error":"#VALUE!"},"USE ONLY"]
[{"$error":"#VALUE!"},{"$error":"#VALUE!"},"USE ONLY"]
[{"$error":"#VALUE!"},{"$error":"#VALUE!"},"USE ONLY"]
[{"$error":"#VALUE!"},{"$error":"#VALUE!"},"USE ONLY"]
[{"$error":"#VALUE!"},{"$error":"#VALUE!"},"USE ONLY"]
[{"$error":"#VALUE!"},{"$error":"#VALUE!"},"USE ONLY"]
[{"$error":"#VALUE!"},{"$error":"#VALUE!"},"USE ONLY"]
[{"$error":"#VALUE!"},{"$error":"#VALUE!"},"USE ONLY"]
[{"$error":"#VALUE!"},{"$error":"#VALUE!"},"USE ONLY"]
[{"$error":"#VALUE!"},{"$error":"#VALUE!"},"USE ONLY"]
[{"$error":"#VALUE!"},{"$error":"#VALUE!"},"USE ONLY"]
[{"$error":"#VALUE!"},{"$error":"#VALUE!"},"USE ONLY"]
[{"$error":"#VALUE!"},{"$error":"#VALUE!"},"USE ONLY"]
[{"$error":"#VALUE!"},{"$error":"#VALUE!"},"USE ONLY"]
[{"$f":"B644&C644","v":{"$error":"#VALUE!"}},{"$f":"B643+1","v":{"$error":"#VALUE!"}},{"$f":"$C$3","v":"USE ONLY"}]
[{"$error":"#VALUE!"},{"$error":"#VALUE!"},"USE ONLY"]
[{"$error":"#VALUE!"},{"$error":"#VALUE!"},"USE ONLY"]
[{"$error":"#VALUE!"},{"$error":"#VALUE!"},"USE ONLY"]
[{"$error":"#VALUE!"},{"$error":"#VALUE!"},"USE ONLY"]
[{"$error":"#VALUE!"},{"$error":"#VALUE!"},"USE ONLY"]
[{"$error":"#VALUE!"},{"$error":"#VALUE!"},"USE ONLY"]
[{"$error":"#VALUE!"},{"$error":"#VALUE!"},"USE ONLY"]
[{"$error":"#VALUE!"},{"$error":"#VALUE!"},"USE ONLY"]
[{"$error":"#VALUE!"},{"$error":"#VALUE!"},"USE ONLY"]
[{"$error":"#VALUE!"},{"$error":"#VALUE!"},"USE ONLY"]
[{"$error":"#VALUE!"},{"$error":"#VALUE!"},"USE ONLY"]
[{"$error":"#VALUE!"},{"$error":"#VALUE!"},"USE ONLY"]
[{"$error":"#VALUE!"},{"$error":"#VALUE!"},"USE ONLY"]
[{"$error":"#VALUE!"},{"$error":"#VALUE!"},"USE ONLY"]
[{"$error":"#VALUE!"},{"$error":"#VALUE!"},"USE ONLY"]
[{"$error":"#VALUE!"},{"$error":"#VALUE!"},"USE ONLY"]
[{"$error":"#VALUE!"},{"$error":"#VALUE!"},"USE ONLY"]
[{"$error":"#VALUE!"},{"$error":"#VALUE!"},"USE ONLY"]
[{"$error":"#VALUE!"},{"$error":"#VALUE!"},"USE ONLY"]
[{"$error":"#VALUE!"},{"$error":"#VALUE!"},"USE ONLY"]
[{"$error":"#VALUE!"},{"$error":"#VALUE!"},"USE ONLY"]
[{"$error":"#VALUE!"},{"$error":"#VALUE!"},"USE ONLY"]
[{"$error":"#VALUE!"},{"$error":"#VALUE!"},"USE ONLY"]
[{"$error":"#VALUE!"},{"$error":"#VALUE!"},"USE ONLY"]
[{"$error":"#VALUE!"},{"$error":"#VALUE!"},"USE ONLY"]
[{"$error":"#VALUE!"},{"$error":"#VALUE!"},"USE ONLY"]
[{"$error":"#VALUE!"},{"$error":"#VALUE!"},"USE ONLY"]
[{"$error":"#VALUE!"},{"$error":"#VALUE!"},"USE ONLY"]
[{"$error":"#VALUE!"},{"$error":"#VALUE!"},"USE ONLY"]
[{"$error":"#VALUE!"},{"$error":"#VALUE!"},"USE ONLY"]
[{"$error":"#VALUE!"},{"$error":"#VALUE!"},"USE ONLY"]
[{"$error":"#VALUE!"},{"$error":"#VALUE!"},"USE ONLY"]
[{"$error":"#VALUE!"},{"$error":"#VALUE!"},"USE ONLY"]
[{"$error":"#VALUE!"},{"$error":"#VALUE!"},"USE ONLY"]
[{"$error":"#VALUE!"},{"$error":"#VALUE!"},"USE ONLY"]
[{"$error":"#VALUE!"},{"$error":"#VALUE!"},"USE ONLY"]
[{"$error":"#VALUE!"},{"$error":"#VALUE!"},"USE ONLY"]
[{"$error":"#VALUE!"},{"$error":"#VALUE!"},"USE ONLY"]
[{"$error":"#VALUE!"},{"$error":"#VALUE!"},"USE ONLY"]
[{"$error":"#VALUE!"},{"$error":"#VALUE!"},"USE ONLY"]
[{"$error":"#VALUE!"},{"$error":"#VALUE!"},"USE ONLY"]
[{"$error":"#VALUE!"},{"$error":"#VALUE!"},"USE ONLY"]
[{"$error":"#VALUE!"},{"$error":"#VALUE!"},"USE ONLY"]
[{"$error":"#VALUE!"},{"$error":"#VALUE!"},"USE ONLY"]
[{"$error":"#VALUE!"},{"$error":"#VALUE!"},"USE ONLY"]
[{"$error":"#VALUE!"},{"$error":"#VALUE!"},"USE ONLY"]
[{"$error":"#VALUE!"},{"$error":"#VALUE!"},"USE ONLY"]
[{"$error":"#VALUE!"},{"$error":"#VALUE!"},"USE ONLY"]
[{"$error":"#VALUE!"},{"$error":"#VALUE!"},"USE ONLY"]
[{"$error":"#VALUE!"},{"$error":"#VALUE!"},"USE ONLY"]
[{"$error":"#VALUE!"},{"$error":"#VALUE!"},"USE ONLY"]
[{"$error":"#VALUE!"},{"$error":"#VALUE!"},"USE ONLY"]
[{"$error":"#VALUE!"},{"$error":"#VALUE!"},"USE ONLY"]
[{"$error":"#VALUE!"},{"$error":"#VALUE!"},"USE ONLY"]
[{"$error":"#VALUE!"},{"$error":"#VALUE!"},"USE ONLY"]
[{"$error":"#VALUE!"},{"$error":"#VALUE!"},"USE ONLY"]
[{"$error":"#VALUE!"},{"$error":"#VALUE!"},"USE ONLY"]
[{"$error":"#VALUE!"},{"$error":"#VALUE!"},"USE ONLY"]
[{"$error":"#VALUE!"},{"$error":"#VALUE!"},"USE ONLY"]
[{"$error":"#VALUE!"},{"$error":"#VALUE!"},"USE ONLY"]
[{"$error":"#VALUE!"},{"$error":"#VALUE!"},"USE ONLY"]
[{"$error":"#VALUE!"},{"$error":"#VALUE!"},"USE ONLY"]
[{"$error":"#VALUE!"},{"$error":"#VALUE!"},"USE ONLY"]
[{"$f":"B708&C708","v":{"$error":"#VALUE!"}},{"$f":"B707+1","v":{"$error":"#VALUE!"}},{"$f":"$C$3","v":"USE ONLY"}]
[{"$error":"#VALUE!"},{"$error":"#VALUE!"},"USE ONLY"]
[{"$error":"#VALUE!"},{"$error":"#VALUE!"},"USE ONLY"]
[{"$error":"#VALUE!"},{"$error":"#VALUE!"},"USE ONLY"]
[{"$error":"#VALUE!"},{"$error":"#VALUE!"},"USE ONLY"]
[{"$error":"#VALUE!"},{"$error":"#VALUE!"},"USE ONLY"]
[{"$error":"#VALUE!"},{"$error":"#VALUE!"},"USE ONLY"]
[{"$error":"#VALUE!"},{"$error":"#VALUE!"},"USE ONLY"]
[{"$error":"#VALUE!"},{"$error":"#VALUE!"},"USE ONLY"]
[{"$error":"#VALUE!"},{"$error":"#VALUE!"},"USE ONLY"]
[{"$error":"#VALUE!"},{"$error":"#VALUE!"},"USE ONLY"]
[{"$error":"#VALUE!"},{"$error":"#VALUE!"},"USE ONLY"]
[{"$error":"#VALUE!"},{"$error":"#VALUE!"},"USE ONLY"]
[{"$error":"#VALUE!"},{"$error":"#VALUE!"},"USE ONLY"]
[{"$error":"#VALUE!"},{"$error":"#VALUE!"},"USE ONLY"]
[{"$error":"#VALUE!"},{"$error":"#VALUE!"},"USE ONLY"]
[{"$error":"#VALUE!"},{"$error":"#VALUE!"},"USE ONLY"]
[{"$error":"#VALUE!"},{"$error":"#VALUE!"},"USE ONLY"]
[{"$error":"#VALUE!"},{"$error":"#VALUE!"},"USE ONLY"]
[{"$error":"#VALUE!"},{"$error":"#VALUE!"},"USE ONLY"]
[{"$error":"#VALUE!"},{"$error":"#VALUE!"},"USE ONLY"]
[{"$error":"#VALUE!"},{"$error":"#VALUE!"},"USE ONLY"]
[{"$error":"#VALUE!"},{"$error":"#VALUE!"},"USE ONLY"]
[{"$error":"#VALUE!"},{"$error":"#VALUE!"},"USE ONLY"]
[{"$error":"#VALUE!"},{"$error":"#VALUE!"},"USE ONLY"]
[{"$error":"#VALUE!"},{"$error":"#VALUE!"},"USE ONLY"]
[{"$error":"#VALUE!"},{"$error":"#VALUE!"},"USE ONLY"]
[{"$error":"#VALUE!"},{"$error":"#VALUE!"},"USE ONLY"]
[{"$error":"#VALUE!"},{"$error":"#VALUE!"},"USE ONLY"]
[{"$error":"#VALUE!"},{"$error":"#VALUE!"},"USE ONLY"]
[{"$error":"#VALUE!"},{"$error":"#VALUE!"},"USE ONLY"]
[{"$error":"#VALUE!"},{"$error":"#VALUE!"},"USE ONLY"]
[{"$error":"#VALUE!"},{"$error":"#VALUE!"},"USE ONLY"]
[{"$error":"#VALUE!"},{"$error":"#VALUE!"},"USE ONLY"]
[{"$error":"#VALUE!"},{"$error":"#VALUE!"},"USE ONLY"]
[{"$error":"#VALUE!"},{"$error":"#VALUE!"},"USE ONLY"]
[{"$error":"#VALUE!"},{"$error":"#VALUE!"},"USE ONLY"]
[{"$error":"#VALUE!"},{"$error":"#VALUE!"},"USE ONLY"]
[{"$error":"#VALUE!"},{"$error":"#VALUE!"},"USE ONLY"]
[{"$error":"#VALUE!"},{"$error":"#VALUE!"},"USE ONLY"]
[{"$error":"#VALUE!"},{"$error":"#VALUE!"},"USE ONLY"]
[{"$error":"#VALUE!"},{"$error":"#VALUE!"},"USE ONLY"]
[{"$error":"#VALUE!"},{"$error":"#VALUE!"},"USE ONLY"]
[{"$error":"#VALUE!"},{"$error":"#VALUE!"},"USE ONLY"]
[{"$error":"#VALUE!"},{"$error":"#VALUE!"},"USE ONLY"]
[{"$error":"#VALUE!"},{"$error":"#VALUE!"},"USE ONLY"]
[{"$error":"#VALUE!"},{"$error":"#VALUE!"},"USE ONLY"]
[{"$error":"#VALUE!"},{"$error":"#VALUE!"},"USE ONLY"]
[{"$error":"#VALUE!"},{"$error":"#VALUE!"},"USE ONLY"]
[{"$error":"#VALUE!"},{"$error":"#VALUE!"},"USE ONLY"]
[{"$error":"#VALUE!"},{"$error":"#VALUE!"},"USE ONLY"]
[{"$error":"#VALUE!"},{"$error":"#VALUE!"},"USE ONLY"]
[{"$error":"#VALUE!"},{"$error":"#VALUE!"},"USE ONLY"]
[{"$error":"#VALUE!"},{"$error":"#VALUE!"},"USE ONLY"]
[{"$error":"#VALUE!"},{"$error":"#VALUE!"},"USE ONLY"]
[{"$error":"#VALUE!"},{"$error":"#VALUE!"},"USE ONLY"]
[{"$error":"#VALUE!"},{"$error":"#VALUE!"},"USE ONLY"]
[{"$error":"#VALUE!"},{"$error":"#VALUE!"},"USE ONLY"]
[{"$error":"#VALUE!"},{"$error":"#VALUE!"},"USE ONLY"]
[{"$error":"#VALUE!"},{"$error":"#VALUE!"},"USE ONLY"]
[{"$error":"#VALUE!"},{"$error":"#VALUE!"},"USE ONLY"]
[{"$error":"#VALUE!"},{"$error":"#VALUE!"},"USE ONLY"]
[{"$error":"#VALUE!"},{"$error":"#VALUE!"},"USE ONLY"]
[{"$error":"#VALUE!"},{"$error":"#VALUE!"},"USE ONLY"]
[{"$f":"B772&C772","v":{"$error":"#VALUE!"}},{"$f":"B771+1","v":{"$error":"#VALUE!"}},{"$f":"$C$3","v":"USE ONLY"}]
[{"$error":"#VALUE!"},{"$error":"#VALUE!"},"USE ONLY"]
[{"$error":"#VALUE!"},{"$error":"#VALUE!"},"USE ONLY"]
[{"$error":"#VALUE!"},{"$error":"#VALUE!"},"USE ONLY"]
[{"$error":"#VALUE!"},{"$error":"#VALUE!"},"USE ONLY"]
[{"$error":"#VALUE!"},{"$error":"#VALUE!"},"USE ONLY"]
[{"$error":"#VALUE!"},{"$error":"#VALUE!"},"USE ONLY"]
[{"$error":"#VALUE!"},{"$error":"#VALUE!"},"USE ONLY"]
[{"$error":"#VALUE!"},{"$error":"#VALUE!"},"USE ONLY"]
[{"$error":"#VALUE!"},{"$error":"#VALUE!"},"USE ONLY"]
[{"$error":"#VALUE!"},{"$error":"#VALUE!"},"USE ONLY"]
[{"$error":"#VALUE!"},{"$error":"#VALUE!"},"USE ONLY"]
[{"$error":"#VALUE!"},{"$error":"#VALUE!"},"USE ONLY"]
[{"$error":"#VALUE!"},{"$error":"#VALUE!"},"USE ONLY"]
[{"$error":"#VALUE!"},{"$error":"#VALUE!"},"USE ONLY"]
[{"$error":"#VALUE!"},{"$error":"#VALUE!"},"USE ONLY"]
[{"$error":"#VALUE!"},{"$error":"#VALUE!"},"USE ONLY"]
[{"$error":"#VALUE!"},{"$error":"#VALUE!"},"USE ONLY"]
[{"$error":"#VALUE!"},{"$error":"#VALUE!"},"USE ONLY"]
[{"$error":"#VALUE!"},{"$error":"#VALUE!"},"USE ONLY"]
[{"$error":"#VALUE!"},{"$error":"#VALUE!"},"USE ONLY"]
[{"$error":"#VALUE!"},{"$error":"#VALUE!"},"USE ONLY"]
[{"$error":"#VALUE!"},{"$error":"#VALUE!"},"USE ONLY"]
[{"$error":"#VALUE!"},{"$error":"#VALUE!"},"USE ONLY"]
[{"$error":"#VALUE!"},{"$error":"#VALUE!"},"USE ONLY"]
[{"$error":"#VALUE!"},{"$error":"#VALUE!"},"USE ONLY"]
[{"$error":"#VALUE!"},{"$error":"#VALUE!"},"USE ONLY"]
[{"$error":"#VALUE!"},{"$error":"#VALUE!"},"USE ONLY"]
[{"$error":"#VALUE!"},{"$error":"#VALUE!"},"USE ONLY"]
[{"$error":"#VALUE!"},{"$error":"#VALUE!"},"USE ONLY"]
[{"$error":"#VALUE!"},{"$error":"#VALUE!"},"USE ONLY"]
[{"$error":"#VALUE!"},{"$error":"#VALUE!"},"USE ONLY"]
[{"$error":"#VALUE!"},{"$error":"#VALUE!"},"USE ONLY"]
[{"$error":"#VALUE!"},{"$error":"#VALUE!"},"USE ONLY"]
[{"$error":"#VALUE!"},{"$error":"#VALUE!"},"USE ONLY"]
[{"$error":"#VALUE!"},{"$error":"#VALUE!"},"USE ONLY"]
[{"$error":"#VALUE!"},{"$error":"#VALUE!"},"USE ONLY"]
[{"$error":"#VALUE!"},{"$error":"#VALUE!"},"USE ONLY"]
[{"$error":"#VALUE!"},{"$error":"#VALUE!"},"USE ONLY"]
[{"$error":"#VALUE!"},{"$error":"#VALUE!"},"USE ONLY"]
[{"$error":"#VALUE!"},{"$error":"#VALUE!"},"USE ONLY"]
[{"$error":"#VALUE!"},{"$error":"#VALUE!"},"USE ONLY"]
[{"$error":"#VALUE!"},{"$error":"#VALUE!"},"USE ONLY"]
[{"$error":"#VALUE!"},{"$error":"#VALUE!"},"USE ONLY"]
[{"$error":"#VALUE!"},{"$error":"#VALUE!"},"USE ONLY"]
[{"$error":"#VALUE!"},{"$error":"#VALUE!"},"USE ONLY"]
[{"$error":"#VALUE!"},{"$error":"#VALUE!"},"USE ONLY"]
[{"$error":"#VALUE!"},{"$error":"#VALUE!"},"USE ONLY"]
[{"$error":"#VALUE!"},{"$error":"#VALUE!"},"USE ONLY"]
[{"$error":"#VALUE!"},{"$error":"#VALUE!"},"USE ONLY"]
[{"$error":"#VALUE!"},{"$error":"#VALUE!"},"USE ONLY"]
[{"$error":"#VALUE!"},{"$error":"#VALUE!"},"USE ONLY"]
[{"$error":"#VALUE!"},{"$error":"#VALUE!"},"USE ONLY"]
[{"$error":"#VALUE!"},{"$error":"#VALUE!"},"USE ONLY"]
[{"$error":"#VALUE!"},{"$error":"#VALUE!"},"USE ONLY"]
[{"$error":"#VALUE!"},{"$error":"#VALUE!"},"USE ONLY"]
[{"$error":"#VALUE!"},{"$error":"#VALUE!"},"USE ONLY"]
[{"$error":"#VALUE!"},{"$error":"#VALUE!"},"USE ONLY"]
[{"$error":"#VALUE!"},{"$error":"#VALUE!"},"USE ONLY"]
[{"$error":"#VALUE!"},{"$error":"#VALUE!"},"USE ONLY"]
[{"$error":"#VALUE!"},{"$error":"#VALUE!"},"USE ONLY"]
[{"$error":"#VALUE!"},{"$error":"#VALUE!"},"USE ONLY"]
[{"$error":"#VALUE!"},{"$error":"#VALUE!"},"USE ONLY"]
[{"$error":"#VALUE!"},{"$error":"#VALUE!"},"USE ONLY"]
[{"$f":"B836&C836","v":{"$error":"#VALUE!"}},{"$f":"B835+1","v":{"$error":"#VALUE!"}},{"$f":"$C$3","v":"USE ONLY"}]
[{"$error":"#VALUE!"},{"$error":"#VALUE!"},"USE ONLY"]
[{"$error":"#VALUE!"},{"$error":"#VALUE!"},"USE ONLY"]
[{"$error":"#VALUE!"},{"$error":"#VALUE!"},"USE ONLY"]
[{"$error":"#VALUE!"},{"$error":"#VALUE!"},"USE ONLY"]
[{"$error":"#VALUE!"},{"$error":"#VALUE!"},"USE ONLY"]
[{"$error":"#VALUE!"},{"$error":"#VALUE!"},"USE ONLY"]
[{"$error":"#VALUE!"},{"$error":"#VALUE!"},"USE ONLY"]
[{"$error":"#VALUE!"},{"$error":"#VALUE!"},"USE ONLY"]
[{"$error":"#VALUE!"},{"$error":"#VALUE!"},"USE ONLY"]
[{"$error":"#VALUE!"},{"$error":"#VALUE!"},"USE ONLY"]
[{"$error":"#VALUE!"},{"$error":"#VALUE!"},"USE ONLY"]
[{"$error":"#VALUE!"},{"$error":"#VALUE!"},"USE ONLY"]
[{"$error":"#VALUE!"},{"$error":"#VALUE!"},"USE ONLY"]
[{"$error":"#VALUE!"},{"$error":"#VALUE!"},"USE ONLY"]
[{"$error":"#VALUE!"},{"$error":"#VALUE!"},"USE ONLY"]
[{"$error":"#VALUE!"},{"$error":"#VALUE!"},"USE ONLY"]
[{"$error":"#VALUE!"},{"$error":"#VALUE!"},"USE ONLY"]
[{"$error":"#VALUE!"},{"$error":"#VALUE!"},"USE ONLY"]
[{"$error":"#VALUE!"},{"$error":"#VALUE!"},"USE ONLY"]
[{"$error":"#VALUE!"},{"$error":"#VALUE!"},"USE ONLY"]
[{"$error":"#VALUE!"},{"$error":"#VALUE!"},"USE ONLY"]
[{"$error":"#VALUE!"},{"$error":"#VALUE!"},"USE ONLY"]
[{"$error":"#VALUE!"},{"$error":"#VALUE!"},"USE ONLY"]
[{"$error":"#VALUE!"},{"$error":"#VALUE!"},"USE ONLY"]
[{"$error":"#VALUE!"},{"$error":"#VALUE!"},"USE ONLY"]
[{"$error":"#VALUE!"},{"$error":"#VALUE!"},"USE ONLY"]
[{"$error":"#VALUE!"},{"$error":"#VALUE!"},"USE ONLY"]
[{"$error":"#VALUE!"},{"$error":"#VALUE!"},"USE ONLY"]
[{"$error":"#VALUE!"},{"$error":"#VALUE!"},"USE ONLY"]
[{"$error":"#VALUE!"},{"$error":"#VALUE!"},"USE ONLY"]
[{"$error":"#VALUE!"},{"$error":"#VALUE!"},"USE ONLY"]
[{"$error":"#VALUE!"},{"$error":"#VALUE!"},"USE ONLY"]
[{"$error":"#VALUE!"},{"$error":"#VALUE!"},"USE ONLY"]
[{"$error":"#VALUE!"},{"$error":"#VALUE!"},"USE ONLY"]
[{"$error":"#VALUE!"},{"$error":"#VALUE!"},"USE ONLY"]
[{"$error":"#VALUE!"},{"$error":"#VALUE!"},"USE ONLY"]
[{"$error":"#VALUE!"},{"$error":"#VALUE!"},"USE ONLY"]
[{"$error":"#VALUE!"},{"$error":"#VALUE!"},"USE ONLY"]
[{"$error":"#VALUE!"},{"$error":"#VALUE!"},"USE ONLY"]
[{"$error":"#VALUE!"},{"$error":"#VALUE!"},"USE ONLY"]
[{"$error":"#VALUE!"},{"$error":"#VALUE!"},"USE ONLY"]
[{"$error":"#VALUE!"},{"$error":"#VALUE!"},"USE ONLY"]
[{"$error":"#VALUE!"},{"$error":"#VALUE!"},"USE ONLY"]
[{"$error":"#VALUE!"},{"$error":"#VALUE!"},"USE ONLY"]
[{"$error":"#VALUE!"},{"$error":"#VALUE!"},"USE ONLY"]
[{"$error":"#VALUE!"},{"$error":"#VALUE!"},"USE ONLY"]
[{"$error":"#VALUE!"},{"$error":"#VALUE!"},"USE ONLY"]
[{"$error":"#VALUE!"},{"$error":"#VALUE!"},"USE ONLY"]
[{"$error":"#VALUE!"},{"$error":"#VALUE!"},"USE ONLY"]
[{"$error":"#VALUE!"},{"$error":"#VALUE!"},"USE ONLY"]
[{"$error":"#VALUE!"},{"$error":"#VALUE!"},"USE ONLY"]
[{"$error":"#VALUE!"},{"$error":"#VALUE!"},"USE ONLY"]
[{"$error":"#VALUE!"},{"$error":"#VALUE!"},"USE ONLY"]
[{"$error":"#VALUE!"},{"$error":"#VALUE!"},"USE ONLY"]
[{"$error":"#VALUE!"},{"$error":"#VALUE!"},"USE ONLY"]
[{"$error":"#VALUE!"},{"$error":"#VALUE!"},"USE ONLY"]
[{"$error":"#VALUE!"},{"$error":"#VALUE!"},"USE ONLY"]
[{"$error":"#VALUE!"},{"$error":"#VALUE!"},"USE ONLY"]
[{"$error":"#VALUE!"},{"$error":"#VALUE!"},"USE ONLY"]
[{"$error":"#VALUE!"},{"$error":"#VALUE!"},"USE ONLY"]
[{"$error":"#VALUE!"},{"$error":"#VALUE!"},"USE ONLY"]
[{"$error":"#VALUE!"},{"$error":"#VALUE!"},"USE ONLY"]
[{"$error":"#VALUE!"},{"$error":"#VALUE!"},"USE ONLY"]
[{"$f":"B900&C900","v":{"$error":"#VALUE!"}},{"$f":"B899+1","v":{"$error":"#VALUE!"}},{"$f":"$C$3","v":"USE ONLY"}]
[{"$error":"#VALUE!"},{"$error":"#VALUE!"},"USE ONLY"]
[{"$error":"#VALUE!"},{"$error":"#VALUE!"},"USE ONLY"]
[{"$error":"#VALUE!"},{"$error":"#VALUE!"},"USE ONLY"]
[{"$error":"#VALUE!"},{"$error":"#VALUE!"},"USE ONLY"]
[{"$error":"#VALUE!"},{"$error":"#VALUE!"},"USE ONLY"]
[{"$error":"#VALUE!"},{"$error":"#VALUE!"},"USE ONLY"]
[{"$error":"#VALUE!"},{"$error":"#VALUE!"},"USE ONLY"]
[{"$error":"#VALUE!"},{"$error":"#VALUE!"},"USE ONLY"]
[{"$error":"#VALUE!"},{"$error":"#VALUE!"},"USE ONLY"]
[{"$error":"#VALUE!"},{"$error":"#VALUE!"},"USE ONLY"]
[{"$error":"#VALUE!"},{"$error":"#VALUE!"},"USE ONLY"]
[{"$error":"#VALUE!"},{"$error":"#VALUE!"},"USE ONLY"]
[{"$error":"#VALUE!"},{"$error":"#VALUE!"},"USE ONLY"]
[{"$error":"#VALUE!"},{"$error":"#VALUE!"},"USE ONLY"]
[{"$error":"#VALUE!"},{"$error":"#VALUE!"},"USE ONLY"]
[{"$error":"#VALUE!"},{"$error":"#VALUE!"},"USE ONLY"]
[{"$error":"#VALUE!"},{"$error":"#VALUE!"},"USE ONLY"]
[{"$error":"#VALUE!"},{"$error":"#VALUE!"},"USE ONLY"]
[{"$error":"#VALUE!"},{"$error":"#VALUE!"},"USE ONLY"]
[{"$error":"#VALUE!"},{"$error":"#VALUE!"},"USE ONLY"]
[{"$error":"#VALUE!"},{"$error":"#VALUE!"},"USE ONLY"]
[{"$error":"#VALUE!"},{"$error":"#VALUE!"},"USE ONLY"]
[{"$error":"#VALUE!"},{"$error":"#VALUE!"},"USE ONLY"]
[{"$error":"#VALUE!"},{"$error":"#VALUE!"},"USE ONLY"]
[{"$error":"#VALUE!"},{"$error":"#VALUE!"},"USE ONLY"]
[{"$error":"#VALUE!"},{"$error":"#VALUE!"},"USE ONLY"]
[{"$error":"#VALUE!"},{"$error":"#VALUE!"},"USE ONLY"]
[{"$error":"#VALUE!"},{"$error":"#VALUE!"},"USE ONLY"]
[{"$error":"#VALUE!"},{"$error":"#VALUE!"},"USE ONLY"]
[{"$error":"#VALUE!"},{"$error":"#VALUE!"},"USE ONLY"]
[{"$error":"#VALUE!"},{"$error":"#VALUE!"},"USE ONLY"]
[{"$error":"#VALUE!"},{"$error":"#VALUE!"},"USE ONLY"]
[{"$error":"#VALUE!"},{"$error":"#VALUE!"},"USE ONLY"]
[{"$error":"#VALUE!"},{"$error":"#VALUE!"},"USE ONLY"]
[{"$error":"#VALUE!"},{"$error":"#VALUE!"},"USE ONLY"]
[{"$error":"#VALUE!"},{"$error":"#VALUE!"},"USE ONLY"]
[{"$error":"#VALUE!"},{"$error":"#VALUE!"},"USE ONLY"]
[{"$error":"#VALUE!"},{"$error":"#VALUE!"},"USE ONLY"]
[{"$error":"#VALUE!"},{"$error":"#VALUE!"},"USE ONLY"]
[{"$error":"#VALUE!"},{"$error":"#VALUE!"},"USE ONLY"]
[{"$error":"#VALUE!"},{"$error":"#VALUE!"},"USE ONLY"]
[{"$error":"#VALUE!"},{"$error":"#VALUE!"},"USE ONLY"]
[{"$error":"#VALUE!"},{"$error":"#VALUE!"},"USE ONLY"]
[{"$error":"#VALUE!"},{"$error":"#VALUE!"},"USE ONLY"]
[{"$error":"#VALUE!"},{"$error":"#VALUE!"},"USE ONLY"]
[{"$error":"#VALUE!"},{"$error":"#VALUE!"},"USE ONLY"]
[{"$error":"#VALUE!"},{"$error":"#VALUE!"},"USE ONLY"]
[{"$error":"#VALUE!"},{"$error":"#VALUE!"},"USE ONLY"]
[{"$error":"#VALUE!"},{"$error":"#VALUE!"},"USE ONLY"]
[{"$error":"#VALUE!"},{"$error":"#VALUE!"},"USE ONLY"]
[{"$error":"#VALUE!"},{"$error":"#VALUE!"},"USE ONLY"]
[{"$error":"#VALUE!"},{"$error":"#VALUE!"},"USE ONLY"]
[{"$error":"#VALUE!"},{"$error":"#VALUE!"},"USE ONLY"]
[{"$error":"#VALUE!"},{"$error":"#VALUE!"},"USE ONLY"]
[{"$error":"#VALUE!"},{"$error":"#VALUE!"},"USE ONLY"]
[{"$error":"#VALUE!"},{"$error":"#VALUE!"},"USE ONLY"]
[{"$error":"#VALUE!"},{"$error":"#VALUE!"},"USE ONLY"]
[{"$error":"#VALUE!"},{"$error":"#VALUE!"},"USE ONLY"]
[{"$error":"#VALUE!"},{"$error":"#VALUE!"},"USE ONLY"]
[{"$error":"#VALUE!"},{"$error":"#VALUE!"},"USE ONLY"]
[{"$error":"#VALUE!"},{"$error":"#VALUE!"},"USE ONLY"]
[{"$error":"#VALUE!"},{"$error":"#VALUE!"},"USE ONLY"]
[{"$error":"#VALUE!"},{"$error":"#VALUE!"},"USE ONLY"]
[{"$f":"B964&C964","v":{"$error":"#VALUE!"}},{"$f":"B963+1","v":{"$error":"#VALUE!"}},{"$f":"$C$3","v":"USE ONLY"}]
[{"$error":"#VALUE!"},{"$error":"#VALUE!"},"USE ONLY"]
[{"$error":"#VALUE!"},{"$error":"#VALUE!"},"USE ONLY"]
[{"$error":"#VALUE!"},{"$error":"#VALUE!"},"USE ONLY"]
[{"$error":"#VALUE!"},{"$error":"#VALUE!"},"USE ONLY"]
[{"$error":"#VALUE!"},{"$error":"#VALUE!"},"USE ONLY"]
[{"$error":"#VALUE!"},{"$error":"#VALUE!"},"USE ONLY"]
[{"$error":"#VALUE!"},{"$error":"#VALUE!"},"USE ONLY"]
[{"$error":"#VALUE!"},{"$error":"#VALUE!"},"USE ONLY"]
[{"$error":"#VALUE!"},{"$error":"#VALUE!"},"USE ONLY"]
[{"$error":"#VALUE!"},{"$error":"#VALUE!"},"USE ONLY"]
[{"$error":"#VALUE!"},{"$error":"#VALUE!"},"USE ONLY"]
[{"$error":"#VALUE!"},{"$error":"#VALUE!"},"USE ONLY"]
[{"$error":"#VALUE!"},{"$error":"#VALUE!"},"USE ONLY"]
[{"$error":"#VALUE!"},{"$error":"#VALUE!"},"USE ONLY"]
[{"$error":"#VALUE!"},{"$error":"#VALUE!"},"USE ONLY"]
[{"$error":"#VALUE!"},{"$error":"#VALUE!"},"USE ONLY"]
[{"$error":"#VALUE!"},{"$error":"#VALUE!"},"USE ONLY"]
[{"$error":"#VALUE!"},{"$error":"#VALUE!"},"USE ONLY"]
[{"$error":"#VALUE!"},{"$error":"#VALUE!"},"USE ONLY"]
[{"$error":"#VALUE!"},{"$error":"#VALUE!"},"USE ONLY"]
[{"$error":"#VALUE!"},{"$error":"#VALUE!"},"USE ONLY"]
[{"$error":"#VALUE!"},{"$error":"#VALUE!"},"USE ONLY"]
[{"$error":"#VALUE!"},{"$error":"#VALUE!"},"USE ONLY"]
[{"$error":"#VALUE!"},{"$error":"#VALUE!"},"USE ONLY"]
[{"$error":"#VALUE!"},{"$error":"#VALUE!"},"USE ONLY"]
[{"$error":"#VALUE!"},{"$error":"#VALUE!"},"USE ONLY"]
[{"$error":"#VALUE!"},{"$error":"#VALUE!"},"USE ONLY"]
[{"$error":"#VALUE!"},{"$error":"#VALUE!"},"USE ONLY"]
[{"$error":"#VALUE!"},{"$error":"#VALUE!"},"USE ONLY"]
[{"$error":"#VALUE!"},{"$error":"#VALUE!"},"USE ONLY"]
[{"$error":"#VALUE!"},{"$error":"#VALUE!"},"USE ONLY"]
[{"$error":"#VALUE!"},{"$error":"#VALUE!"},"USE ONLY"]
[{"$error":"#VALUE!"},{"$error":"#VALUE!"},"USE ONLY"]
[{"$error":"#VALUE!"},{"$error":"#VALUE!"},"USE ONLY"]
[{"$error":"#VALUE!"},{"$error":"#VALUE!"},"USE ONLY"]
[{"$error":"#VALUE!"},{"$error":"#VALUE!"},"USE ONLY"]
[{"$error":"#VALUE!"},{"$error":"#VALUE!"},"USE ONLY"]
[{"$error":"#VALUE!"},{"$error":"#VALUE!"},"USE ONLY"]
[{"$error":"#VALUE!"},{"$error":"#VALUE!"},"USE ONLY"]

{"sheet":"ReOrg","index":3,"n_rows":37,"n_cols":21,"rows_kept":37}
["Old Org ID","Job ID","Job Name","Pos No","Emp Last Nm","Emp First Nm","Pers No","New Org ID","New Org Name","New Cost Center","New Fund","New Cost Dist","New Bdgt Fund","New Budg Fund Center","New Supv Pos","New Supv Last Name","Pscale Group","Pscale Level","Hourly Rt/Hourly Rt Override","Work Schedule","Comments"]
{"$rows_empty":35}
[{"$nulls":20},"."]

{"sheet":"Promotion&Transfer","index":4,"n_rows":1,"n_cols":28,"rows_kept":1}
["Priority","Personnel #","Employee Name","Current Job Name","Current Posn #","Current Org Code","Effective Date","Action Type","Action Reason","New Job Name","New Job Code","New Posn #","New Org Code","Time Admin Code","Work Schedule Rule (Time Mgt Status = 9)","Reason for Action","0041 Date","Infotype 208 (Work Tax Area)","Infotype 2001 (Absences)","Infotype 2003 (Substitutions)","Infotype 235 (Taxes)","Infotype 207 (Residence Tax Area)","Supervisor's Posn #","Cost Distribution","Complement Control","Detail Posn Attribute - Zip Code","Detail Posn Attribute - County","Detail Posn Attribute - HQTs Code"]

{"sheet":"Hire Lists","index":5,"n_rows":175,"n_cols":20,"rows_kept":175,"hidden":true}
["Employee Action","Pay Area","Employee group","Employee Sub Group","Contract Type","County","Municipality Type","Pers Sub Area","30hrswk1506yr","Indicator fields","Gender","Prefix","Pay Term","Time Mgmt Status","UC Exemption","Pay Area","Suffix","Designation","Action Reason","Cert Military Vet"]
["New Hire","Z1","Annuitant","Business Partner/Contractor","CS - Emergency","Adams","Borough","4541","Y","X","Male","Dr","Biweekly","0 - No time evaluation","Non-Exempt",null,"I","D.D.S","01 - Appointment Standard Payrate","Yes"]
["Rehire","Z2","Conversion","Conversion Dual Employment","CS - Probationary","Allegheny","City","5531","N",null,"Female",null,"Hourly","1 - Time evaluation of actual times","Exempt Employee",null,"II","DC","02 - Appointment Above Minimum","No"]
[null,"T2","External Person","Conversion Primary Employment","CS - Provisional","Armstrong","Township","5533",null,null,"Undeclared",null,"Annual","2 - PDC time evaluation","Exempt Job",null,"III","DMD","07 - Move to Gov Jur Std Payrate"]
[null,"Z3","Health Registrar","External","CS - Qualifier","Beaver",null,"5537",{"$nulls":4},"Daily","7 - Time evaluation of actual times w/full pay",null,null,"IV","DO","08 - Move to Gov Jur Appt Above Min"]
[null,"T3","Non Permanent","FED/BUS Associate","CS - Regular","Bedford",null,"5553",{"$nulls":5},"8 - External services",null,null,"V","DPH","11 - CS Order Standard Payrate"]
[null,null,"Official Board Mbr","Full-time 75 Hr","CS - Temporary","Berks",null,"5557",{"$nulls":5},"9 - Time evaluation of planned times",null,null,"VI","DPM","12 - CS Order Appointment Above Min"]
[null,null,"PA Conservation Corp","Full-time 80 Hr","CS-Prob-LT/Sub/Seas","Blair",null,"5563",{"$nulls":8},"VII","DVM","33 - PHRC Order Standard Payrate"]
[null,null,"PA National Guard","Full-time Executive Board Salary","CS-Reg-LT/Sub/Seas","Bradford",null,"5567",{"$nulls":8},"VIII","Esquire","34 - PHRC Order Above Min"]
[null,null,"Per Unit","Health Registrar","NCS","Bucks",null,"",{"$nulls":8},"IX","M.D.","36 - Court Order Standard Payrate"]
[null,null,"Permanent","Instructor 22 Pays Full-time","NCS - CS LOA","Butler",null,"1K54",{"$nulls":8},"X","PE","37 - Court Order Appt Above Min"]
[{"$nulls":3},"Instructor 22 Pays Part-time","NCS - Interim (mgmt)","Cambria",null,"2K81",{"$nulls":8},"Jr","Ph.D."]
[{"$nulls":3},"Instructor 26 Pays Full-time","NCS - Prob (union)","Cameron",null,"2K84",{"$nulls":8},"Sr","RN"]
[{"$nulls":3},"Instructor 26 Pays Part-time","SMS at will","Carbon",null,"3G91"]
[{"$nulls":3},"Instructor 26.08 Pays Full-time 75 Hr","SMS Civil Service","Centre",null,"3G92"]
[{"$nulls":3},"Instructor 26.08 Pays Full-time 80 Hr","SMS CS LOA","Chester",null,"6K11"]
[{"$nulls":3},"Instructor 26.08 Pays Part-time 75 Hr","SMS Retreat Rights","Clarion",null,"7K24"]
[{"$nulls":3},"Instructor 26.08 Pays Part-time 80 Hr","Unclassified","Clearfield",null,"9FBA"]
[{"$nulls":3},"Non Commonwealth Employee","Unclassified-CSLOA","Clinton",null,"9LGE"]
[{"$nulls":3},"Other",null,"Columbia",null,"9NCT"]
[{"$nulls":3},"PA Conservation Corps",null,"Crawford",null,"A611"]
[{"$nulls":3},"PA National Guard",null,"Cumberland",null,"A613"]
[{"$nulls":3},"Part-time 75 Hr",null,"Dauphin",null,"A641"]
[{"$nulls":3},"Part-time 80 Hr",null,"Delaware",null,"A644"]
[{"$nulls":3},"Part-time Executive Board Salary",null,"Elk",null,"A646"]
[{"$nulls":3},"PCC 80 hour",null,"Erie",null,"AA11"]
[{"$nulls":3},"Per Diem",null,"Fayette",null,"AA14"]
[{"$nulls":3},"Resident Workers",null,"Forest",null,"AA41"]
[{"$nulls":3},"Statutory Salary",null,"Franklin",null,"AA43"]
[{"$nulls":3},"Student/YDC Worker",null,"Fulton",null,"AA44"]
[{"$nulls":3},"Volunteer",null,"Greene",null,"AA45"]
[{"$nulls":5},"Huntingdon",null,"AA46"]
[{"$nulls":5},"Indiana",null,"AA71"]
[{"$nulls":5},"Jefferson",null,"AB11"]
[{"$nulls":5},"Juniata",null,"AB14"]
[{"$nulls":5},"Lackawanna",null,"AB41"]
[{"$nulls":5},"Lancaster",null,"AB44"]
[{"$nulls":5},"Lawrence",null,"AB46"]
[{"$nulls":5},"Lebanon",null,"AG11"]
[{"$nulls":5},"Lehigh",null,"AG14"]
[{"$nulls":5},"Luzerne",null,"AG41"]
[{"$nulls":5},"Lycoming",null,"AG42"]
[{"$nulls":5},"McKean",null,"AG44"]
[{"$nulls":5},"Mercer",null,"AG46"]
[{"$nulls":5},"Mifflin",null,"AJ11"]
[{"$nulls":5},"Monroe",null,"AJ14"]
[{"$nulls":5},"Montgomery",null,"AN11"]
[{"$nulls":5},"Montour",null,"AN71"]
[{"$nulls":5},"Northampton",null,"AW11"]
[{"$nulls":5},"Northumberland",null,"AW41"]
[{"$nulls":5},"Perry",null,"AW81"]
[{"$nulls":5},"Philadelphia",null,"AW91"]
[{"$nulls":5},"Pike",null,"B656"]
[{"$nulls":5},"Potter",null,"BA21"]
[{"$nulls":5},"Schuylkill",null,"BA24"]
[{"$nulls":5},"Snyder",null,"BB21"]
[{"$nulls":5},"Somerset",null,"BB24"]
[{"$nulls":5},"Sullivan",null,"BB26"]
[{"$nulls":5},"Susquehanna",null,"BG21"]
[{"$nulls":5},"Tioga",null,"BG22"]
[{"$nulls":5},"Union",null,"BG24"]
[{"$nulls":5},"Venango",null,"BG26"]
[{"$nulls":5},"Warren",null,"BG51"]
[{"$nulls":5},"Washington",null,"BG52"]
[{"$nulls":5},"Wayne",null,"BG53"]
[{"$nulls":5},"Westmoreland",null,"BG54"]
[{"$nulls":5},"Wyoming",null,"BG56"]
[{"$nulls":5},"York",null,"BJ21"]
[{"$nulls":5},"Outside Pennsylvania",null,"BJ24"]
[{"$nulls":7},"BN24"]
[{"$nulls":7},"BW21"]
[{"$nulls":7},"BW51"]
[{"$nulls":7},"BW71"]
[{"$nulls":7},"CC41"]
[{"$nulls":7},"CC44"]
[{"$nulls":7},"CC46"]
[{"$nulls":7},"EE44"]
[{"$nulls":7},"FF11"]
[{"$nulls":7},"FF1E"]
[{"$nulls":7},"FF1I"]
[{"$nulls":7},"FF41"]
[{"$nulls":7},"FF44"]
[{"$nulls":7},"FF46"]
[{"$nulls":7},"GF54"]
[{"$nulls":7},"GF56"]
[{"$nulls":7},"HH11"]
[{"$nulls":7},"HH14"]
[{"$nulls":7},"II53"]
[{"$nulls":7},"JL41"]
[{"$nulls":7},"JL44"]
[{"$nulls":7},"KK41"]
[{"$nulls":7},"LL11"]
[{"$nulls":7},"LL14"]
[{"$nulls":7},"M633"]
[{"$nulls":7},"M637"]
[{"$nulls":7},"M697"]
[{"$nulls":7},"M991"]
[{"$nulls":7},"M993"]
[{"$nulls":7},"M994"]
[{"$nulls":7},"M997"]
[{"$nulls":7},"MA31"]
[{"$nulls":7},"MA33"]
[{"$nulls":7},"MA34"]
[{"$nulls":7},"MA35"]
[{"$nulls":7},"MA37"]
[{"$nulls":7},"MA87"]
[{"$nulls":7},"MB31"]
[{"$nulls":7},"MB33"]
[{"$nulls":7},"MB35"]
[{"$nulls":7},"MB37"]
[{"$nulls":7},"MC33"]
[{"$nulls":7},"MC37"]
[{"$nulls":7},"MF33"]
[{"$nulls":7},"MF37"]
[{"$nulls":7},"MG33"]
[{"$nulls":7},"MG34"]
[{"$nulls":7},"MG37"]
[{"$nulls":7},"MH33"]
[{"$nulls":7},"MH34"]
[{"$nulls":7},"MH37"]
[{"$nulls":7},"MJ33"]
[{"$nulls":7},"MJ35"]
[{"$nulls":7},"MJ37"]
[{"$nulls":7},"MK33"]
[{"$nulls":7},"MK37"]
[{"$nulls":7},"MK61"]
[{"$nulls":7},"ML37"]
[{"$nulls":7},"ML63"]
[{"$nulls":7},"MM33"]
[{"$nulls":7},"MM37"]
[{"$nulls":7},"MM83"]
[{"$nulls":7},"MN33"]
[{"$nulls":7},"MN35"]
[{"$nulls":7},"MN37"]
[{"$nulls":7},"MP33"]
[{"$nulls":7},"MP37"]
[{"$nulls":7},"MR33"]
[{"$nulls":7},"MR37"]
[{"$nulls":7},"MS33"]
[{"$nulls":7},"MS35"]
[{"$nulls":7},"MT33"]
[{"$nulls":7},"MT35"]
[{"$nulls":7},"MT37"]
[{"$nulls":7},"MW33"]
[{"$nulls":7},"MW37"]
[{"$nulls":7},"MZ33"]
[{"$nulls":7},"MZ37"]
[{"$nulls":7},"NM11"]
[{"$nulls":7},"NM1L"]
[{"$nulls":7},"NM71"]
[{"$nulls":7},"OM21"]
[{"$nulls":7},"OM25"]
[{"$nulls":7},"PP44"]
[{"$nulls":7},"PP75"]
[{"$nulls":7},"QP54"]
[{"$nulls":7},"RR11"]
[{"$nulls":7},"SS44"]
[{"$nulls":7},"TT45"]
[{"$nulls":7},"TT46"]
[{"$nulls":7},"TT56"]
[{"$nulls":7},"U981"]
[{"$nulls":7},"U983"]
[{"$nulls":7},"U985"]
[{"$nulls":7},"U987"]
[{"$nulls":7},"VC56"]
[{"$nulls":7},"WR41"]
[{"$nulls":7},"WR44"]
[{"$nulls":7},"XA53"]
[{"$nulls":7},"XA56"]
[{"$nulls":7},"XB53"]
[{"$nulls":7},"XB55"]
[{"$nulls":7},"XB56"]
[{"$nulls":7},"XS56"]
[{"$nulls":7},"YR24"]
[{"$nulls":7},"ZZ47"]

{"sheet":"Separation Lists","index":6,"n_rows":2570,"n_cols":3,"rows_kept":2570,"hidden":true}
["Indicator fields","Action Reason","Residence Tax Area"]
["X","01 - Resign With Notice ","PBWC"]
[null,"03 - Resigned Without Notice ","PCD8"]
[null,"05 - Resigned In Lieu of Furlough ","PC90"]
[null,"07 - Resigned-Contact Former Agency ","PBKX"]
[null,"11 - Retire - no sick payment","PBEF"]
[null,"12 - Retire - sick payment","PB6L"]
[null,"13 - Retire w/age-no sick payment","PBBU"]
[null,"14 - Retire w/age-sick payment","PAWB"]
[null,"15 - Retire-Years Serv-no sick pynt","PBGT"]
[null,"16 - Retire-Years Serv-sick payment","PB88"]
[null,"17 - Retire-Age/Years-no sick pymt","PBP6"]
[null,"18 - Retire-Age/Years-sick pymt","PBRT"]
[null,"19 - Retire-Spec Legis-no sick pymt","PAQ0"]
[null,"20 - Retire-Spec Legis - sick pymt","PAGL"]
[null,"21 - Retire-in lieu of Furl-no sick","PC03"]
[null,"22 - Retire-in lieu of Furl-sick py","PA65"]
[null,"23 - Retire-Cont Frmr Agny-no sick","PBYO"]
[null,"24 - Retire-Cont Frmr Agny-sick pym","PBNF"]
[null,"25 - Retire-WRI Cant Ret FT-no sick","PBLO"]
[null,"26 - Retire-WRI Cant Ret FT-sick py","PBU8"]
[null,"27 - Retire-Non WorkRelDis-no sick","PCAU"]
[null,"28 - Retire-Non WorkRelDis-sick pmt","PBMC"]
[null,"29 - Retire- Work Rel Dis-no sick","PC6U"]
[null,"30 - Retire- Work Rel Dis-sick pymt","PAYG"]
[null,"31 - Retire-Sett/Griev - no sick","PAAJ"]
[null,"32 - Retire-Sett/Griev - sick pymt","PBZ5"]
[null,"41 - Dis/Rem-Abandon Position","PAEH"]
[null,"43 - Dis/Rem-Unsatisfactory Perform","PAPX"]
[null,"45 - Dis/Rem-Unsat Perf Att/Depend","PB29"]
[null,"47 - Dis/Rem-Civil Service Order","PA1B"]
[null,"49 - Dis/Rem-Criminl Charge/Conduct","PA3Q"]
[null,"50 - Dis/Rem-Chg to Retire-sick py","PB9B"]
[null,"51 - Dis/Rem-Chg to Retire-no sick py","PBFH"]
[null,"53 - Dis/Rem-Fail/Loss of Job Quals","PBAK"]
[null,"55 - Dis/Rem-Default PHEAA Loan","PARD"]
[null,"57 - Dis/Rem-Court Martial","PAS8"]
[null,"59 - Dis/Rem-WRI Cant Ret Full Duty","PAJH"]
[null,"61 - Death-Non Work Rel - no sick","PBHR"]
[null,"62 - Death-Non Work Related-sick pymt","PAS1"]
[null,"64 - Death-Work Related - Act 101","PC5E"]
[null,"66 - Death Work Related -100% ","PBQA"]
[null,"71 - Furlough-Lack of Funds-lv pymt","PBUC"]
[null,"72 - Furlough-Lack of Funds-freeze","PB8G"]
[null,"73 - Furlough-Lack of Work-lv pymt","PB1N"]
[null,"74 - Furlough-Lack of Work-freeze","NJ"]
[null,"80 - Comp Spec Emp Period","PBRE"]
[null,"81 - Comp Spec Emp Per w/o notice","PBOH"]
[null,"90 - Manual Leave Payment","PAB1"]
[null,null,"PB9A"]
[null,null,"PC4Y"]
[null,null,"PBPR"]
[null,null,"PAKP"]
[null,null,"PC8B"]
[null,null,"PC1E"]
[null,null,"PACY"]
[null,null,"PBVE"]
[null,null,"PB6E"]
[null,null,"PBQZ"]
[null,null,"PC1M"]
[null,null,"PBCT"]
[null,null,"PAUT"]
[null,null,"PB0G"]
[null,null,"PC9U"]
[null,null,"PB1T"]
[null,null,"PBE2"]
[null,null,"PAHX"]
[null,null,"PAVZ"]
[null,null,"PBYV"]
[null,null,"PB0F"]
[null,null,"PA6S"]
[null,null,"PACH"]
[null,null,"PAHQ"]
[null,null,"PC64"]
[null,null,"PA5G"]
[null,null,"PBVA"]
[null,null,"PB4P"]
[null,null,"PBCL"]
[null,null,"PAUS"]
[null,null,"PANQ"]
[null,null,"PANN"]
[null,null,"PAFP"]
[null,null,"PBBP"]
[null,null,"PBX5"]
[null,null,"PABO"]
[null,null,"PBE7"]
[null,null,"PC2D"]
[null,null,"PBG8"]
[null,null,"PC7J"]
[null,null,"PA4J"]
[null,null,"WV"]
[null,null,"PAYS"]
[null,null,"PCB1"]
[null,null,"PAU4"]
[null,null,"PAWX"]
[null,null,"PA0N"]
[null,null,"PB7P"]
[null,null,"PB5T"]
[null,null,"PC53"]
[null,null,"PBOX"]
[null,null,"PAAB"]
[null,null,"PAPE"]
[null,null,"PBIJ"]
[null,null,"PBZJ"]
[null,null,"PA31"]
[null,null,"PAWO"]
[null,null,"PBO8"]
[null,null,"PBJ9"]
[null,null,"PAH6"]
[null,null,"PA99"]
[null,null,"PBVN"]
[null,null,"PBI6"]
[null,null,"PAR1"]
[null,null,"PBMY"]
[null,null,"PCCL"]
[null,null,"PBZB"]
[null,null,"PAG2"]
[null,null,"PBZC"]
[null,null,"PATL"]
[null,null,"PAJR"]
[null,null,"PAZN"]
[null,null,"PBRV"]
[null,null,"PAQK"]
[null,null,"PC3G"]
[null,null,"PC0Q"]
[null,null,"PAXX"]
[null,null,"PB4J"]
[null,null,"PBBI"]
[null,null,"PAQI"]
[null,null,"PBLB"]
[null,null,"PAYF"]
[null,null,"PAYR"]
[null,null,"PBGE"]
[null,null,"PAZ7"]
[null,null,"PBV1"]
[null,null,"PASW"]
[null,null,"PBYP"]
[null,null,"PAGK"]
[null,null,"PA8R"]
[null,null,"PAT0"]
[null,null,"PAYX"]
[null,null,"PCZS"]
[null,null,"PARI"]
[null,null,"PATC"]
[null,null,"PAC4"]
[null,null,"PBEC"]
[null,null,"PBNQ"]
[null,null,"PB7C"]
[null,null,"PAKE"]
[null,null,"PBF6"]
[null,null,"PBV8"]
[null,null,"PAC8"]
[null,null,"PC28"]
[null,null,"PC6K"]
[null,null,"PBB7"]
[null,null,"PB5V"]
[null,null,"PAJN"]
[null,null,"PAA4"]
[null,null,"PAYB"]
[null,null,"PAR2"]
[null,null,"PB9P"]
[null,null,"PBU0"]
[null,null,"PBVU"]
[null,null,"PBD7"]
[null,null,"PCAW"]
[null,null,"PA7A"]
[null,null,"PBQP"]
[null,null,"PBX6"]
[null,null,"PB5D"]
[null,null,"PAF8"]
[null,null,"PBE8"]
[null,null,"PB5F"]
[null,null,"PAI1"]
[null,null,"PC4L"]
[null,null,"PBBT"]
[null,null,"PBVI"]
[null,null,"PBU6"]
[null,null,"PB54"]
[null,null,"PC49"]
[null,null,"PBN3"]
[null,null,"PBJ4"]
[null,null,"PAKX"]
[null,null,"PBB3"]
[null,null,"PALB"]
[null,null,"PAL8"]
[null,null,"PA08"]
[null,null,"PBUQ"]
[null,null,"PB00"]
[null,null,"PA4E"]
[null,null,"PA2F"]
[null,null,"PAHP"]
[null,null,"PAU3"]
[null,null,"PA1W"]
[null,null,"PC99"]
[null,null,"PC4K"]
[null,null,"PAXI"]
[null,null,"PAGF"]
[null,null,"PA13"]
[null,null,"PC25"]
[null,null,"PA3Y"]
[null,null,"PBP2"]
[null,null,"PAI4"]
[null,null,"PC3D"]
[null,null,"PCZ3"]
[null,null,"PAGQ"]
[null,null,"PAZ9"]
[null,null,"PA9G"]
[null,null,"PBCD"]
[null,null,"PA4M"]
[null,null,"PBYY"]
[null,null,"PCIC"]
[null,null,"PB6J"]
[null,null,"PBEI"]
[null,null,"PCBL"]
[null,null,"PASM"]
[null,null,"PA9L"]
[null,null,"PBRW"]
[null,null,"PA0H"]
[null,null,"PAXM"]
[null,null,"PCAX"]
[null,null,"PCAB"]
[null,null,"PC6J"]
[null,null,"PBGD"]
[null,null,"PBFK"]
[null,null,"PBMV"]
[null,null,"PAM9"]
[null,null,"PB5X"]
[null,null,"PA8A"]
[null,null,"PB95"]
[null,null,"PBZW"]
[null,null,"PCDN"]
[null,null,"PAX3"]
[null,null,"PBEZ"]
[null,null,"PALS"]
[null,null,"PAKQ"]
[null,null,"PB1K"]
[null,null,"PA8T"]
[null,null,"PCBR"]
[null,null,"PA42"]
[null,null,"PBAU"]
[null,null,"PC5C"]
[null,null,"PC1X"]
[null,null,"PB70"]
[null,null,"PBDH"]
[null,null,"PC95"]
[null,null,"PALK"]
[null,null,"PBDV"]
[null,null,"PCD6"]
[null,null,"PA59"]
[null,null,"PAIK"]
[null,null,"PC5S"]
[null,null,"PAU8"]
[null,null,"PBWY"]
[null,null,"PAH2"]
[null,null,"PCHE"]
[null,null,"PA62"]
[null,null,"PBLG"]
[null,null,"PBQX"]
[null,null,"PA38"]
[null,null,"PA28"]
[null,null,"PC1W"]
[null,null,"PBTZ"]
[null,null,"PC5V"]
[null,null,"PBKA"]
[null,null,"PA0E"]
[null,null,"PAJZ"]
[null,null,"PALP"]
[null,null,"PB59"]
[null,null,"PC9C"]
[null,null,"PBJI"]
[null,null,"PC6C"]
[null,null,"PB8C"]
[null,null,"PAIP"]
[null,null,"PB28"]
[null,null,"PA4D"]
[null,null,"PA8L"]
[null,null,"PABG"]
[null,null,"PBHP"]
[null,null,"PB5H"]
[null,null,"PB37"]
[null,null,"PA2O"]
[null,null,"PATZ"]
[null,null,"PBIB"]
[null,null,"PBL8"]
[null,null,"PAC7"]
[null,null,"PC1B"]
[null,null,"PAVY"]
[null,null,"PC6D"]
[null,null,"PB7R"]
[null,null,"PA8B"]
[null,null,"PBLS"]
[null,null,"PBDG"]
[null,null,"PAV3"]
[null,null,"PAVA"]
[null,null,"PBX9"]
[null,null,"PAUN"]
[null,null,"PC1U"]
[null,null,"PA6W"]
[null,null,"PBD8"]
[null,null,"PAB0"]
[null,null,"PA9M"]
[null,null,"PCI3"]
[null,null,"PBJ6"]
[null,null,"PB39"]
[null,null,"PBL5"]
[null,null,"PCHQ"]
[null,null,"PBPV"]
[null,null,"PAW7"]
[null,null,"PBI5"]
[null,null,"PBBY"]
[null,null,"PA7F"]
[null,null,"PA5W"]
[null,null,"PANX"]
[null,null,"PAHY"]
[null,null,"PA1R"]
[null,null,"PAHW"]
[null,null,"PB8S"]
[null,null,"PBVY"]
[null,null,"PBOG"]
[null,null,"PC8I"]
[null,null,"PBWJ"]
[null,null,"PBTX"]
[null,null,"PBZL"]
[null,null,"PBZE"]
[null,null,"PAJX"]
[null,null,"PBTL"]
[null,null,"PARN"]
[null,null,"PBC5"]
[null,null,"PAVL"]
[null,null,"PANW"]
[null,null,"PABU"]
[null,null,"PBFJ"]
[null,null,"PA3I"]
[null,null,"PAQS"]
[null,null,"PB7Y"]
[null,null,"PC6Z"]
[null,null,"PA3R"]
[null,null,"PA5L"]
[null,null,"PC2K"]
[null,null,"PA8V"]
[null,null,"PBS6"]
[null,null,"PAXD"]
[null,null,"PC48"]
[null,null,"PB46"]
[null,null,"PBY5"]
[null,null,"PB6K"]
[null,null,"PBTV"]
[null,null,"PBZK"]
[null,null,"PB8E"]
[null,null,"PC36"]
[null,null,"PCBZ"]
[null,null,"PBQO"]
[null,null,"PBOK"]
[null,null,"PCAP"]
[null,null,"PBJP"]
[null,null,"PBS2"]
[null,null,"PADK"]
[null,null,"PBYN"]
[null,null,"PBHV"]
[null,null,"PAF9"]
[null,null,"PA67"]
[null,null,"PC9I"]
[null,null,"PBD3"]
[null,null,"PBCH"]
[null,null,"PC4H"]
[null,null,"PA7T"]
[null,null,"PAGV"]
[null,null,"PC46"]
[null,null,"PA4G"]
[null,null,"PBBM"]
[null,null,"PBBO"]
[null,null,"PC3N"]
[null,null,"PA09"]
[null,null,"PARP"]
[null,null,"PBQS"]
[null,null,"PAEZ"]
[null,null,"PAY5"]
[null,null,"PBZU"]
[null,null,"PB4S"]
[null,null,"PAGM"]
[null,null,"PBMF"]
[null,null,"PBLZ"]
[null,null,"PBMG"]
[null,null,"PBLV"]
[null,null,"PANE"]
[null,null,"PAFN"]
[null,null,"PBID"]
[null,null,"PBS9"]
[null,null,"PAZD"]
[null,null,"PBBE"]
[null,null,"PBTB"]
[null,null,"PB9V"]
[null,null,"PB7M"]
[null,null,"PC0Z"]
[null,null,"PAV2"]
[null,null,"PAW2"]
[null,null,"PAX2"]
[null,null,"PC14"]
[null,null,"PBQ4"]
[null,null,"PBVW"]
[null,null,"PATV"]
[null,null,"PB0Q"]
[null,null,"PCZP"]
[null,null,"PAZJ"]
[null,null,"PBM1"]
[null,null,"PAAK"]
[null,null,"PAP4"]
[null,null,"PB3O"]
[null,null,"PBGX"]
[null,null,"PB13"]
[null,null,"PAW0"]
[null,null,"PBZ2"]
[null,null,"PAHD"]
[null,null,"PAM3"]
[null,null,"PB2C"]
[null,null,"PC0T"]
[null,null,"PB03"]
[null,null,"PBDK"]
[null,null,"PBAL"]
[null,null,"PC3E"]
[null,null,"PBVL"]
[null,null,"PAH7"]
[null,null,"PAM8"]
[null,null,"PBH5"]
[null,null,"PBQJ"]
[null,null,"PBXF"]
[null,null,"PASZ"]
[null,null,"PBJ0"]
[null,null,"PB0N"]
[null,null,"PBN7"]
[null,null,"PB01"]
[null,null,"PBXI"]
[null,null,"PA5I"]
[null,null,"PAC1"]
[null,null,"PC6N"]
[null,null,"PALM"]
[null,null,"PA0W"]
[null,null,"PAUU"]
[null,null,"PAGG"]
[null,null,"PA0U"]
[null,null,"PA5T"]
[null,null,"PBKV"]
[null,null,"PBBH"]
[null,null,"PAWQ"]
[null,null,"PB3D"]
[null,null,"PC63"]
[null,null,"PA9P"]
[null,null,"PA7N"]
[null,null,"PC0A"]
[null,null,"PB0P"]
[null,null,"PB8D"]
[null,null,"PBNB"]
[null,null,"PAA9"]
[null,null,"PAL6"]
[null,null,"PAZI"]
[null,null,"PAAL"]
[null,null,"PAMK"]
[null,null,"PA5P"]
[null,null,"PCA8"]
[null,null,"PBE6"]
[null,null,"PBAS"]
[null,null,"PBXY"]
[null,null,"PAJM"]
[null,null,"PBRY"]
[null,null,"PB81"]
[null,null,"PC0E"]
[null,null,"PB0D"]
[null,null,"PBEE"]
[null,null,"PAYH"]
[null,null,"PAZE"]
[null,null,"PB36"]
[null,null,"PBLD"]
[null,null,"PBTF"]
[null,null,"PAMR"]
[null,null,"PBNV"]
[null,null,"PAFR"]
[null,null,"PBMD"]
[null,null,"PBP9"]
[null,null,"PAOU"]
[null,null,"PB47"]
[null,null,"PBHO"]
[null,null,"PAJS"]
[null,null,"PB6C"]
[null,null,"PCAQ"]
[null,null,"PC8X"]
[null,null,"PBXM"]
[null,null,"PA5B"]
[null,null,"PAK2"]
[null,null,"PBV3"]
[null,null,"PC4J"]
[null,null,"PBC9"]
[null,null,"PB9O"]
[null,null,"PAWI"]
[null,null,"PA3S"]
[null,null,"PBF4"]
[null,null,"PB79"]
[null,null,"PC1K"]
[null,null,"PBY1"]
[null,null,"PB1E"]
[null,null,"PCDG"]
[null,null,"PC1H"]
[null,null,"PADA"]
[null,null,"PBQQ"]
[null,null,"PAZZ"]
[null,null,"PAFO"]
[null,null,"PBOS"]
[null,null,"PA60"]
[null,null,"PC76"]
[null,null,"PA2Y"]
[null,null,"PBUI"]
[null,null,"PBD9"]
[null,null,"PATK"]
[null,null,"PBW6"]
[null,null,"PB2X"]
[null,null,"PB8L"]
[null,null,"PAQ7"]
[null,null,"PAQZ"]
[null,null,"PBRF"]
[null,null,"PB4L"]
[null,null,"PAQ8"]
[null,null,"PB4C"]
[null,null,"PAVX"]
[null,null,"PA51"]
[null,null,"PAV1"]
[null,null,"PASU"]
[null,null,"PBE3"]
[null,null,"PC0J"]
[null,null,"PBIS"]
[null,null,"PBXV"]
[null,null,"PAHO"]
[null,null,"PACO"]
[null,null,"PBYQ"]
[null,null,"PC05"]
[null,null,"PAK6"]
[null,null,"PCDK"]
[null,null,"PAA2"]
[null,null,"PAP2"]
[null,null,"PCH0"]
[null,null,"PCZR"]
[null,null,"PALW"]
[null,null,"PBCS"]
[null,null,"PB5M"]
[null,null,"PB7K"]
[null,null,"PB6Z"]
[null,null,"PBWX"]
[null,null,"PA52"]
[null,null,"PC4X"]
[null,null,"PBIP"]
[null,null,"PBT7"]
[null,null,"PB91"]
[null,null,"PBBD"]
[null,null,"PA53"]
[null,null,"PBR3"]
[null,null,"PAUF"]
[null,null,"PAD6"]
[null,null,"PBTQ"]
[null,null,"PC5A"]
[null,null,"PA6O"]
[null,null,"PA6F"]
[null,null,"PBQR"]
[null,null,"PBVF"]
[null,null,"PBHW"]
[null,null,"PARH"]
[null,null,"PBQW"]
[null,null,"PAJP"]
[null,null,"PAVH"]
[null,null,"PBKF"]
[null,null,"PBQM"]
[null,null,"PAT8"]
[null,null,"PB40"]
[null,null,"PC3P"]
[null,null,"PA6V"]
[null,null,"PAPD"]
[null,null,"PAE7"]
[null,null,"PATY"]
[null,null,"PC0P"]
[null,null,"PB2F"]
[null,null,"PAKI"]
[null,null,"PBJ7"]
[null,null,"PB63"]
[null,null,"PCZA"]
[null,null,"PC07"]
[null,null,"PB3G"]
[null,null,"PBT4"]
[null,null,"PA5K"]
[null,null,"PB2H"]
[null,null,"PABB"]
[null,null,"PA7D"]
[null,null,"PBY6"]
[null,null,"PB7J"]
[null,null,"PBYT"]
[null,null,"PA5N"]
[null,null,"PC8Q"]
[null,null,"PAVF"]
[null,null,"PB4R"]
[null,null,"PBRC"]
[null,null,"PC21"]
[null,null,"PBU1"]
[null,null,"PASN"]
[null,null,"PAEK"]
[null,null,"PC0G"]
[null,null,"PCBP"]
[null,null,"PBYE"]
[null,null,"PBEH"]
[null,null,"PANL"]
[null,null,"PBQ9"]
[null,null,"PBVS"]
[null,null,"PAAP"]
[null,null,"PBBJ"]
[null,null,"PATX"]
[null,null,"PB5I"]
[null,null,"PAP7"]
[null,null,"PAMQ"]
[null,null,"PB99"]
[null,null,"PC7Q"]
[null,null,"PC7X"]
[null,null,"PA2X"]
[null,null,"PBE9"]
[null,null,"PBHF"]
[null,null,"PA10"]
[null,null,"PBSL"]
[null,null,"PB3Z"]
[null,null,"PC0L"]
[null,null,"PCAF"]
[null,null,"PB42"]
[null,null,"PBI8"]
[null,null,"PAPQ"]
[null,null,"PC4T"]
[null,null,"PA55"]
[null,null,"PA90"]
[null,null,"PAKN"]
[null,null,"PBXH"]
[null,null,"PBTW"]
[null,null,"PBDO"]
[null,null,"PARV"]
[null,null,"PCCW"]
[null,null,"PB9N"]
[null,null,"PBAR"]
[null,null,"PAVI"]
[null,null,"PC6F"]
[null,null,"PBET"]
[null,null,"PC7D"]
[null,null,"PBLR"]
[null,null,"PBR0"]
[null,null,"PA8Y"]
[null,null,"PB2W"]
[null,null,"PC2B"]
[null,null,"PB90"]
[null,null,"PAU6"]
[null,null,"PBU7"]
[null,null,"PA8X"]
[null,null,"PA0J"]
[null,null,"PBX0"]
[null,null,"PALT"]
[null,null,"PA9H"]
[null,null,"PC9E"]
[null,null,"PB3W"]
[null,null,"PB27"]
[null,null,"PC74"]
[null,null,"PBDU"]
[null,null,"PBWA"]
[null,null,"PBFR"]
[null,null,"PBHD"]
[null,null,"PBPW"]
[null,null,"PAW6"]
[null,null,"PA9Y"]
[null,null,"PAO8"]
[null,null,"PBJJ"]
[null,null,"PC2Z"]
[null,null,"PBUB"]
[null,null,"PATP"]
[null,null,"PBJR"]
[null,null,"PC8Z"]
[null,null,"PAB9"]
[null,null,"PCZI"]
[null,null,"PBA1"]
[null,null,"PAIC"]
[null,null,"PBJC"]
[null,null,"PBOQ"]
[null,null,"PC26"]
[null,null,"PBC2"]
[null,null,"PAMD"]
[null,null,"PCCS"]
[null,null,"PB6M"]
[null,null,"PC79"]
[null,null,"PBH7"]
[null,null,"PAQT"]
[null,null,"PACK"]
[null,null,"PASR"]
[null,null,"PABL"]
[null,null,"PCZ1"]
[null,null,"PAII"]
[null,null,"PBT0"]
[null,null,"PB0U"]
[null,null,"PB5O"]
[null,null,"PCAV"]
[null,null,"PC6G"]
[null,null,"PA21"]
[null,null,"PBB0"]
[null,null,"PBUU"]
[null,null,"PAZA"]
[null,null,"PBD0"]
[null,null,"PB6F"]
[null,null,"PC9B"]
[null,null,"PADS"]
[null,null,"PA3D"]
[null,null,"PA98"]
[null,null,"PCBH"]
[null,null,"PAPB"]
[null,null,"PAP0"]
[null,null,"PBLU"]
[null,null,"PBTJ"]
[null,null,"PBHM"]
[null,null,"PAHN"]
[null,null,"PAJB"]
[null,null,"PAZ6"]
[null,null,"PA4L"]
[null,null,"PBS8"]
[null,null,"PC4U"]
[null,null,"PA0S"]
[null,null,"PCZ7"]
[null,null,"PAIS"]
[null,null,"PBYX"]
[null,null,"PACM"]
[null,null,"PC6R"]
[null,null,"PA6R"]
[null,null,"PAQN"]
[null,null,"PAG9"]
[null,null,"PAJI"]
[null,null,"PBQL"]
[null,null,"PBWZ"]
[null,null,"PAIZ"]
[null,null,"PA81"]
[null,null,"PBEU"]
[null,null,"PCI0"]
[null,null,"PC35"]
[null,null,"PBUZ"]
[null,null,"PC81"]
[null,null,"PA78"]
[null,null,"PAVG"]
[null,null,"PAO3"]
[null,null,"PBF8"]
[null,null,"VA"]
[null,null,"PCAT"]
[null,null,"PA6H"]
[null,null,"PCAK"]
[null,null,"PABR"]
[null,null,"PBOF"]
[null,null,"PC5O"]
[null,null,"PBFV"]
[null,null,"PBKZ"]
[null,null,"PC24"]
[null,null,"PBUR"]
[null,null,"PA49"]
[null,null,"PC2I"]
[null,null,"PAG1"]
[null,null,"PCCM"]
[null,null,"PBJM"]
[null,null,"PBY8"]
[null,null,"PA37"]
[null,null,"PAIY"]
[null,null,"PC9W"]
[null,null,"PBHE"]
[null,null,"PC69"]
[null,null,"PBCF"]
[null,null,"PB3T"]
[null,null,"PB8O"]
[null,null,"PBWR"]
[null,null,"PCBV"]
[null,null,"PBJA"]
[null,null,"PCH5"]
[null,null,"PBIM"]
[null,null,"PCDH"]
[null,null,"PC4S"]
[null,null,"PBM8"]
[null,null,"PAR4"]
[null,null,"PCA5"]
[null,null,"PAL3"]
[null,null,"PC7W"]
[null,null,"PB8F"]
[null,null,"PBG9"]
[null,null,"PAN9"]
[null,null,"PBEN"]
[null,null,"PBRO"]
[null,null,"PAOA"]
[null,null,"PB8H"]
[null,null,"PBR8"]
[null,null,"PA2V"]
[null,null,"PAXW"]
[null,null,"PBKL"]
[null,null,"PB3N"]
[null,null,"PABA"]
[null,null,"PC2X"]
[null,null,"PB2Y"]
[null,null,"PA1X"]
[null,null,"PC70"]
[null,null,"PB2N"]
[null,null,"PB8Z"]
[null,null,"PBTA"]
[null,null,"PAHL"]
[null,null,"PBCI"]
[null,null,"PAHE"]
[null,null,"PAGZ"]
[null,null,"PBS5"]
[null,null,"PB4Y"]
[null,null,"PAO1"]
[null,null,"PA3C"]
[null,null,"PBWE"]
[null,null,"PC65"]
[null,null,"PB55"]
[null,null,"PBS0"]
[null,null,"PC1J"]
[null,null,"PAPP"]
[null,null,"PAL9"]
[null,null,"PA0K"]
[null,null,"PAWJ"]
[null,null,"PBL2"]
[null,null,"PB3C"]
[null,null,"PAJT"]
[null,null,"PBGA"]
[null,null,"PCA9"]
[null,null,"PC78"]
[null,null,"PARL"]
[null,null,"PB38"]
[null,null,"PA8N"]
[null,null,"PAW9"]
[null,null,"PAX5"]
[null,null,"PA1N"]
[null,null,"PCBC"]
[null,null,"PAXF"]
[null,null,"PCDM"]
[null,null,"PAA7"]
[null,null,"PBIL"]
[null,null,"PBWI"]
[null,null,"PA0C"]
[null,null,"PA1U"]
[null,null,"PAOH"]
[null,null,"PA4R"]
[null,null,"PAGR"]
[null,null,"PAUH"]
[null,null,"PBSA"]
[null,null,"PA4B"]
[null,null,"PBQB"]
[null,null,"PB9W"]
[null,null,"PALQ"]
[null,null,"PA48"]
[null,null,"PADH"]
[null,null,"PC15"]
[null,null,"PC8L"]
[null,null,"PBQI"]
[null,null,"PAFK"]
[null,null,"PBF9"]
[null,null,"PBXB"]
[null,null,"PBM2"]
[null,null,"PAMY"]
[null,null,"PBGF"]
[null,null,"PBO3"]
[null,null,"PA3B"]
[null,null,"PBHA"]
[null,null,"PAF6"]
[null,null,"PATQ"]
[null,null,"PAMT"]
[null,null,"PACL"]
[null,null,"PAMZ"]
[null,null,"PAW8"]
[null,null,"PAHZ"]
[null,null,"PB6U"]
[null,null,"PAQ3"]
[null,null,"PBDE"]
[null,null,"PA0P"]
[null,null,"PARY"]
[null,null,"PAQ1"]
[null,null,"PASA"]
[null,null,"PBIX"]
[null,null,"PCZM"]
[null,null,"PBC8"]
[null,null,"PA61"]
[null,null,"PA6P"]
[null,null,"PC8A"]
[null,null,"PAVD"]
[null,null,"PBA4"]
[null,null,"PBFQ"]
[null,null,"PBDT"]
[null,null,"PAQ5"]
[null,null,"PAWR"]
[null,null,"PADL"]
[null,null,"PCDB"]
[null,null,"PCGX"]
[null,null,"PCI4"]
[null,null,"PBGI"]
[null,null,"PA8D"]
[null,null,"PA0B"]
[null,null,"PAYJ"]
[null,null,"PBXG"]
[null,null,"PBU3"]
[null,null,"PC2Q"]
[null,null,"PB58"]
[null,null,"PA5J"]
[null,null,"PAE5"]
[null,null,"PB3Q"]
[null,null,"PBKO"]
[null,null,"PBPJ"]
[null,null,"PAN7"]
[null,null,"PA6B"]
[null,null,"PB24"]
[null,null,"PCZL"]
[null,null,"PB0E"]
[null,null,"PBFC"]
[null,null,"PAJ7"]
[null,null,"PAD2"]
[null,null,"PAB4"]
[null,null,"PC0V"]
[null,null,"PADR"]
[null,null,"PBPU"]
[null,null,"PC6X"]
[null,null,"PB74"]
[null,null,"PAO9"]
[null,null,"PA3G"]
[null,null,"PBQN"]
[null,null,"PC1Q"]
[null,null,"PAN8"]
[null,null,"PC8S"]
[null,null,"PC01"]
[null,null,"PBTI"]
[null,null,"PBH3"]
[null,null,"PB0T"]
[null,null,"PCCU"]
[null,null,"PBQF"]
[null,null,"PCGV"]
[null,null,"PB30"]
[null,null,"PBEJ"]
[null,null,"PBCZ"]
[null,null,"PAA8"]
[null,null,"PBHY"]
[null,null,"PBHL"]
[null,null,"PAJD"]
[null,null,"PCI1"]
[null,null,"PAQW"]
[null,null,"PBM3"]
[null,null,"PAD9"]
[null,null,"PA1V"]
[null,null,"PAQM"]
[null,null,"PAQG"]
[null,null,"PCH6"]
[null,null,"PBOZ"]
[null,null,"PC0C"]
[null,null,"PB1Z"]
[null,null,"PCCD"]
[null,null,"PB26"]
[null,null,"PB92"]
[null,null,"PBN9"]
[null,null,"PACE"]
[null,null,"PBQG"]
[null,null,"PAP6"]
[null,null,"PBIE"]
[null,null,"PAIM"]
[null,null,"PAGX"]
[null,null,"PA9E"]
[null,null,"PATN"]
[null,null,"PBTP"]
[null,null,"PAFS"]
[null,null,"PCHG"]
[null,null,"PC4Z"]
[null,null,"PBA3"]
[null,null,"PAB2"]
[null,null,"PATM"]
[null,null,"PACZ"]
[null,null,"PB4N"]
[null,null,"PACU"]
[null,null,"PB1I"]
[null,null,"PCCK"]
[null,null,"PA68"]
[null,null,"PANT"]
[null,null,"PAEV"]
[null,null,"PB6W"]
[null,null,"PBVX"]
[null,null,"PBP8"]
[null,null,"PC3A"]
[null,null,"OH"]
[null,null,"PCCN"]
[null,null,"PBR2"]
[null,null,"PAUC"]
[null,null,"PBLC"]
[null,null,"PC6Y"]
[null,null,"PC58"]
[null,null,"PAZM"]
[null,null,"PC77"]
[null,null,"PAPW"]
[null,null,"PA2S"]
[null,null,"PAIX"]
[null,null,"PB34"]
[null,null,"PB5L"]
[null,null,"PBO7"]
[null,null,"PAU1"]
[null,null,"PBWV"]
[null,null,"PBWK"]
[null,null,"PBMZ"]
[null,null,"PC59"]
[null,null,"PANK"]
[null,null,"PC7V"]
[null,null,"PAFD"]
[null,null,"PA2B"]
[null,null,"PC11"]
[null,null,"PC2L"]
[null,null,"MD"]
[null,null,"PAZR"]
[null,null,"PA8E"]
[null,null,"PC0M"]
[null,null,"PAEF"]
[null,null,"PCBD"]
[null,null,"PC9Q"]
[null,null,"PCDA"]
[null,null,"PB84"]
[null,null,"PC31"]
[null,null,"PC1S"]
[null,null,"PBRP"]
[null,null,"PATF"]
[null,null,"PAXP"]
[null,null,"PACG"]
[null,null,"PAY7"]
[null,null,"PBFG"]
[null,null,"PA7K"]
[null,null,"PC3K"]
[null,null,"PABY"]
[null,null,"PBJ5"]
[null,null,"PAGW"]
[null,null,"PALO"]
[null,null,"PCAL"]
[null,null,"PAUZ"]
[null,null,"PB02"]
[null,null,"PAGT"]
[null,null,"PA4X"]
[null,null,"PAQ6"]
[null,null,"PAAE"]
[null,null,"PB4Z"]
[null,null,"PB32"]
[null,null,"PBAD"]
[null,null,"PBAW"]
[null,null,"PBB5"]
[null,null,"PBDC"]
[null,null,"PAUR"]
[null,null,"PB76"]
[null,null,"PB8M"]
[null,null,"PBWF"]
[null,null,"PBER"]
[null,null,"PBD6"]
[null,null,"PAYC"]
[null,null,"PAXE"]
[null,null,"PAXA"]
[null,null,"PAXZ"]
[null,null,"PBEK"]
[null,null,"PC0R"]
[null,null,"PAND"]
[null,null,"PA7G"]
[null,null,"PB14"]
[null,null,"PC22"]
[null,null,"PBH4"]
[null,null,"PCDI"]
[null,null,"PC6Q"]
[null,null,"PAZV"]
[null,null,"PAVQ"]
[null,null,"PBQU"]
[null,null,"PB3M"]
[null,null,"PBHH"]
[null,null,"PABP"]
[null,null,"PAFI"]
[null,null,"PCCO"]
[null,null,"PAMF"]
[null,null,"PAZG"]
[null,null,"PCHP"]
[null,null,"PA6X"]
[null,null,"PAWE"]
[null,null,"PB0O"]
[null,null,"PAPV"]
[null,null,"PAD4"]
[null,null,"PAHF"]
[null,null,"PAM4"]
[null,null,"PBTD"]
[null,null,"PADD"]
[null,null,"PBBG"]
[null,null,"PBW2"]
[null,null,"PBVO"]
[null,null,"PBKT"]
[null,null,"PC6E"]
[null,null,"PAI7"]
[null,null,"PBVH"]
[null,null,"PC4M"]
[null,null,"PA6K"]
[null,null,"PAKC"]
[null,null,"PA1D"]
[null,null,"PA7H"]
[null,null,"PBAP"]
[null,null,"PB3U"]
[null,null,"PALL"]
[null,null,"PBGY"]
[null,null,"PBOV"]
[null,null,"PBZD"]
[null,null,"PB67"]
[null,null,"PBDD"]
[null,null,"PBQV"]
[null,null,"PAWY"]
[null,null,"PAA3"]
[null,null,"PBL4"]
[null,null,"PBCU"]
[null,null,"PA8P"]
[null,null,"PBJK"]
[null,null,"PA5R"]
[null,null,"PBRR"]
[null,null,"PB0K"]
[null,null,"PAWS"]
[null,null,"PALA"]
[null,null,"PCAI"]
[null,null,"PCZE"]
[null,null,"PB1S"]
[null,null,"PCID"]
[null,null,"PA63"]
[null,null,"PANH"]
[null,null,"PBDA"]
[null,null,"PBSP"]
[null,null,"PC88"]
[null,null,"PBLK"]
[null,null,"PBST"]
[null,null,"PAXO"]
[null,null,"PBCJ"]
[null,null,"PB6R"]
[null,null,"PAFU"]
[null,null,"PBH6"]
[null,null,"PA8C"]
[null,null,"PC8J"]
[null,null,"PB0L"]
[null,null,"PCC2"]
[null,null,"PC3W"]
[null,null,"PB1R"]
[null,null,"PADV"]
[null,null,"PB72"]
[null,null,"PBIA"]
[null,null,"PB8T"]
[null,null,"PAF4"]
[null,null,"PB60"]
[null,null,"PBMO"]
[null,null,"PAJC"]
[null,null,"PADQ"]
[null,null,"PCBQ"]
[null,null,"PC0D"]
[null,null,"PB5C"]
[null,null,"PBNX"]
[null,null,"PA92"]
[null,null,"PBIO"]
[null,null,"PCB3"]
[null,null,"PAJV"]
[null,null,"PCB2"]
[null,null,"PC42"]
[null,null,"PCBU"]
[null,null,"PBLI"]
[null,null,"PAIH"]
[null,null,"PBME"]
[null,null,"PA5Y"]
[null,null,"PBDY"]
[null,null,"PAXG"]
[null,null,"PAX1"]
[null,null,"PA6G"]
[null,null,"PBHU"]
[null,null,"PC61"]
[null,null,"PA8G"]
[null,null,"PB5N"]
[null,null,"PBLY"]
[null,null,"PB4Q"]
[null,null,"PCZ4"]
[null,null,"PAXK"]
[null,null,"PC2A"]
[null,null,"PCDJ"]
[null,null,"PB4G"]
[null,null,"PB2J"]
[null,null,"PAJA"]
[null,null,"PBYD"]
[null,null,"PBNI"]
[null,null,"PBFE"]
[null,null,"PAOG"]
[null,null,"PBYL"]
[null,null,"PB4X"]
[null,null,"PBZ4"]
[null,null,"PA3J"]
[null,null,"PAPS"]
[null,null,"PAVE"]
[null,null,"PBM5"]
[null,null,"PA27"]
[null,null,"PAC5"]
[null,null,"PBC6"]
[null,null,"PAKL"]
[null,null,"PBFY"]
[null,null,"PCZJ"]
[null,null,"PB1F"]
[null,null,"PC0O"]
[null,null,"PB7T"]
[null,null,"PB2K"]
[null,null,"PBQY"]
[null,null,"PC4C"]
[null,null,"PA7E"]
[null,null,"PBO2"]
[null,null,"PAX9"]
[null,null,"PBU2"]
[null,null,"PBYU"]
[null,null,"PC0W"]
[null,null,"PA7U"]
[null,null,"PBOA"]
[null,null,"PBRD"]
[null,null,"PBL7"]
[null,null,"PBJF"]
[null,null,"PBZF"]
[null,null,"PC6V"]
[null,null,"PAMO"]
[null,null,"PA3Z"]
[null,null,"PBEQ"]
[null,null,"PAGY"]
[null,null,"PB78"]
[null,null,"PAWN"]
[null,null,"PAR5"]
[null,null,"PBPX"]
[null,null,"PBUG"]
[null,null,"PAB6"]
[null,null,"PC0Y"]
[null,null,"PAWC"]
[null,null,"PBZX"]
[null,null,"PAY9"]
[null,null,"PB7L"]
[null,null,"PAKK"]
[null,null,"PA2A"]
[null,null,"PA29"]
[null,null,"PCBX"]
[null,null,"PC4I"]
[null,null,"PBJE"]
[null,null,"PC16"]
[null,null,"PA76"]
[null,null,"PA0G"]
[null,null,"PCD2"]
[null,null,"PAP8"]
[null,null,"PAQO"]
[null,null,"PA3O"]
[null,null,"PA25"]
[null,null,"PBDR"]
[null,null,"PB5Z"]
[null,null,"PB2S"]
[null,null,"PAW3"]
[null,null,"PBI1"]
[null,null,"PBXN"]
[null,null,"PBI4"]
[null,null,"PC0H"]
[null,null,"PB73"]
[null,null,"PC5T"]
[null,null,"PC89"]
[null,null,"PA50"]
[null,null,"PBJ8"]
[null,null,"PC8M"]
[null,null,"PC8N"]
[null,null,"PAML"]
[null,null,"PB0S"]
[null,null,"PABZ"]
[null,null,"PAPZ"]
[null,null,"PBRZ"]
[null,null,"PCCT"]
[null,null,"PAPO"]
[null,null,"PB97"]
[null,null,"PARZ"]
[null,null,"PB6G"]
[null,null,"PBNP"]
[null,null,"PA6A"]
[null,null,"PCA1"]
[null,null,"PAPG"]
[null,null,"PB9U"]
[null,null,"PAO7"]
[null,null,"PAOE"]
[null,null,"PC7N"]
[null,null,"PAO4"]
[null,null,"PB3B"]
[null,null,"PB57"]
[null,null,"PA7Y"]
[null,null,"PAUP"]
[null,null,"PB7X"]
[null,null,"PB1Q"]
[null,null,"PBQ8"]
[null,null,"PCH2"]
[null,null,"PBFA"]
[null,null,"PC0U"]
[null,null,"PAQC"]
[null,null,"PBNA"]
[null,null,"PBVV"]
[null,null,"PBZO"]
[null,null,"PAUL"]
[null,null,"PCAA"]
[null,null,"PB5W"]
[null,null,"PBVQ"]
[null,null,"PCB4"]
[null,null,"PB93"]
[null,null,"PA9T"]
[null,null,"PBHS"]
[null,null,"PBFT"]
[null,null,"PASQ"]
[null,null,"PC3X"]
[null,null,"PAED"]
[null,null,"PBX2"]
[null,null,"PAA1"]
[null,null,"PC8W"]
[null,null,"PB9M"]
[null,null,"PB53"]
[null,null,"PAZ0"]
[null,null,"PAGA"]
[null,null,"PB7H"]
[null,null,"PBEL"]
[null,null,"PB1D"]
[null,null,"PAR0"]
[null,null,"PAH0"]
[null,null,"PC6H"]
[null,null,"PAN3"]
[null,null,"PB9X"]
[null,null,"PC5K"]
[null,null,"PARM"]
[null,null,"PB7Z"]
[null,null,"PAEL"]
[null,null,"PAY2"]
[null,null,"PAT2"]
[null,null,"PBQ0"]
[null,null,"PAEN"]
[null,null,"PBW7"]
[null,null,"PAVU"]
[null,null,"PBLL"]
[null,null,"PAS2"]
[null,null,"PBV0"]
[null,null,"PA46"]
[null,null,"PB2O"]
[null,null,"PANC"]
[null,null,"PC73"]
[null,null,"PAG8"]
[null,null,"PAK0"]
[null,null,"PAFT"]
[null,null,"PBSX"]
[null,null,"PC4E"]
[null,null,"PAOL"]
[null,null,"PBJH"]
[null,null,"PAT9"]
[null,null,"PACX"]
[null,null,"PB8J"]
[null,null,"PBAA"]
[null,null,"PB5S"]
[null,null,"PA1F"]
[null,null,"PB1V"]
[null,null,"PCC9"]
[null,null,"PBC4"]
[null,null,"PAY3"]
[null,null,"PCC0"]
[null,null,"PAXJ"]
[null,null,"PBAQ"]
[null,null,"PBWT"]
[null,null,"PAT6"]
[null,null,"PA4Q"]
[null,null,"PA5V"]
[null,null,"PA7Z"]
[null,null,"PBPE"]
[null,null,"PA35"]
[null,null,"PB6X"]
[null,null,"PADX"]
[null,null,"PBND"]
[null,null,"PBPF"]
[null,null,"PAD1"]
[null,null,"PB8X"]
[null,null,"PBCN"]
[null,null,"PC8Y"]
[null,null,"PCCQ"]
[null,null,"PAJQ"]
[null,null,"PB9F"]
[null,null,"PAA5"]
[null,null,"PAF0"]
[null,null,"PBMK"]
[null,null,"PB41"]
[null,null,"PBPM"]
[null,null,"PAYA"]
[null,null,"PAE6"]
[null,null,"PAKF"]
[null,null,"PBFD"]
[null,null,"PB0H"]
[null,null,"PCB5"]
[null,null,"PBAX"]
[null,null,"PBQH"]
[null,null,"PAPU"]
[null,null,"PC33"]
[null,null,"PCC6"]
[null,null,"PAJ9"]
[null,null,"PBUF"]
[null,null,"PBDN"]
[null,null,"PC55"]
[null,null,"PBYJ"]
[null,null,"PAZ3"]
[null,null,"PC5X"]
[null,null,"PCDO"]
[null,null,"PAV6"]
[null,null,"PBPC"]
[null,null,"PA7P"]
[null,null,"PBPI"]
[null,null,"PAW1"]
[null,null,"PCAM"]
[null,null,"PBHK"]
[null,null,"PCC3"]
[null,null,"PARQ"]
[null,null,"PC00"]
[null,null,"PB3A"]
[null,null,"PCCI"]
[null,null,"PBN6"]
[null,null,"PC30"]
[null,null,"PBCA"]
[null,null,"PA5Q"]
[null,null,"PBJX"]
[null,null,"PAD7"]
[null,null,"PACT"]
[null,null,"PANF"]
[null,null,"PB69"]
[null,null,"PC87"]
[null,null,"PA9K"]
[null,null,"PAAQ"]
[null,null,"PABH"]
[null,null,"PC7A"]
[null,null,"PARA"]
[null,null,"PBKK"]
[null,null,"PAAN"]
[null,null,"PARC"]
[null,null,"PABD"]
[null,null,"PARS"]
[null,null,"PC9S"]
[null,null,"PA9N"]
[null,null,"PBS7"]
[null,null,"PBOP"]
[null,null,"PAK3"]
[null,null,"PARJ"]
[null,null,"PCGT"]
[null,null,"PC9L"]
[null,null,"PBJY"]
[null,null,"PBBB"]
[null,null,"PBHT"]
[null,null,"PBD5"]
[null,null,"PA22"]
[null,null,"PAWW"]
[null,null,"PATR"]
[null,null,"PATJ"]
[null,null,"PA1K"]
[null,null,"PBUT"]
[null,null,"PB49"]
[null,null,"PBBL"]
[null,null,"PBCQ"]
[null,null,"PA36"]
[null,null,"PB3K"]
[null,null,"PANM"]
[null,null,"PALX"]
[null,null,"PA7O"]
[null,null,"PAIO"]
[null,null,"PAZQ"]
[null,null,"PACQ"]
[null,null,"PA1T"]
[null,null,"PA07"]
[null,null,"PBRJ"]
[null,null,"PC8C"]
[null,null,"PBP3"]
[null,null,"PBSS"]
[null,null,"PAWL"]
[null,null,"PBR9"]
[null,null,"PBEP"]
[null,null,"PAOM"]
[null,null,"PA80"]
[null,null,"PBZI"]
[null,null,"PAGJ"]
[null,null,"PC4P"]
[null,null,"PA3T"]
[null,null,"PAWP"]
[null,null,"PAI5"]
[null,null,"PC2Y"]
[null,null,"PABT"]
[null,null,"PCC7"]
[null,null,"PBTG"]
[null,null,"PA8U"]
[null,null,"PBT3"]
[null,null,"PA2I"]
[null,null,"PBUD"]
[null,null,"PB80"]
[null,null,"PBNH"]
[null,null,"PABN"]
[null,null,"PB9R"]
[null,null,"PB6B"]
[null,null,"PC6S"]
[null,null,"PAVS"]
[null,null,"PADM"]
[null,null,"PBRI"]
[null,null,"PACB"]
[null,null,"PBLX"]
[null,null,"PC9V"]
[null,null,"PBKG"]
[null,null,"PBFI"]
[null,null,"PA11"]
[null,null,"PA15"]
[null,null,"PC9X"]
[null,null,"PAMW"]
[null,null,"PAKO"]
[null,null,"PBAH"]
[null,null,"PC3Y"]
[null,null,"PB4W"]
[null,null,"PACA"]
[null,null,"PC2U"]
[null,null,"PC5U"]
[null,null,"PC6B"]
[null,null,"PBPT"]
[null,null,"PBB1"]
[null,null,"PAH3"]
[null,null,"PCZ6"]
[null,null,"PASJ"]
[null,null,"PB5Q"]
[null,null,"PBL9"]
[null,null,"PAJL"]
[null,null,"PCCG"]
[null,null,"PAAA"]
[null,null,"PBMT"]
[null,null,"PC13"]
[null,null,"PB0Y"]
[null,null,"PA4I"]
[null,null,"PB8Y"]
[null,null,"PAD5"]
[null,null,"PBIT"]
[null,null,"PBI0"]
[null,null,"PAY0"]
[null,null,"PBKR"]
[null,null,"PA0A"]
[null,null,"PBY7"]
[null,null,"PBMH"]
[null,null,"PACS"]
[null,null,"PAJ5"]
[null,null,"PBGB"]
[null,null,"PB5E"]
[null,null,"PB9H"]
[null,null,"PADZ"]
[null,null,"PB4K"]
[null,null,"PAL1"]
[null,null,"PBDP"]
[null,null,"PCAR"]
[null,null,"PC5D"]
[null,null,"PCD3"]
[null,null,"PBQ5"]
[null,null,"PBUY"]
[null,null,"PC7M"]
[null,null,"PCBK"]
[null,null,"PAPK"]
[null,null,"PABF"]
[null,null,"PABV"]
[null,null,"PC1N"]
[null,null,"PAD0"]
[null,null,"PBMB"]
[null,null,"PC2J"]
[null,null,"PC4O"]
[null,null,"PADO"]
[null,null,"PBDW"]
[null,null,"PB07"]
[null,null,"PBOM"]
[null,null,"PAJJ"]
[null,null,"PAG0"]
[null,null,"PARK"]
[null,null,"PBN8"]
[null,null,"PAAR"]
[null,null,"PC71"]
[null,null,"PAYQ"]
[null,null,"PAJ0"]
[null,null,"PC1C"]
[null,null,"PC2O"]
[null,null,"PBZ8"]
[null,null,"PA2G"]
[null,null,"PB6V"]
[null,null,"PBVJ"]
[null,null,"PAM1"]
[null,null,"PB0B"]
[null,null,"PB9L"]
[null,null,"PAL4"]
[null,null,"PAIN"]
[null,null,"PBI2"]
[null,null,"PAPI"]
[null,null,"PBIH"]
[null,null,"PA3A"]
[null,null,"PBG6"]
[null,null,"PB0X"]
[null,null,"PBZQ"]
[null,null,"PCDR"]
[null,null,"PBR4"]
[null,null,"PA4V"]
[null,null,"PBJ1"]
[null,null,"PAHC"]
[null,null,"PAVR"]
[null,null,"PBXJ"]
[null,null,"PCC4"]
[null,null,"PC9Z"]
[null,null,"PB0C"]
[null,null,"PABX"]
[null,null,"PB22"]
[null,null,"PC9Y"]
[null,null,"PBMX"]
[null,null,"PATE"]
[null,null,"PA70"]
[null,null,"PBXL"]
[null,null,"PBKI"]
[null,null,"PAUD"]
[null,null,"PBCW"]
[null,null,"PBQK"]
[null,null,"PBMJ"]
[null,null,"PAGD"]
[null,null,"PB7W"]
[null,null,"PARG"]
[null,null,"PBMW"]
[null,null,"PB83"]
[null,null,"PAOY"]
[null,null,"PB2U"]
[null,null,"PBYF"]
[null,null,"PAXY"]
[null,null,"PAJG"]
[null,null,"PBH9"]
[null,null,"PC52"]
[null,null,"PBDS"]
[null,null,"PCHR"]
[null,null,"PB6P"]
[null,null,"PC37"]
[null,null,"PAKT"]
[null,null,"PAU0"]
[null,null,"PC3Z"]
[null,null,"PBU5"]
[null,null,"PBIG"]
[null,null,"PBX3"]
[null,null,"PC86"]
[null,null,"PADT"]
[null,null,"PBKP"]
[null,null,"PA9C"]
[null,null,"PCZD"]
[null,null,"PAVP"]
[null,null,"PCCJ"]
[null,null,"PBFX"]
[null,null,"PBZM"]
[null,null,"PC60"]
[null,null,"PASP"]
[null,null,"PAK8"]
[null,null,"PAKJ"]
[null,null,"PARE"]
[null,null,"PBC0"]
[null,null,"PBFU"]
[null,null,"PAID"]
[null,null,"PB4H"]
[null,null,"PAEM"]
[null,null,"PBZA"]
[null,null,"PBXE"]
[null,null,"PB17"]
[null,null,"PBOW"]
[null,null,"PAMB"]
[null,null,"PBXQ"]
[null,null,"NY"]
[null,null,"PBR5"]
[null,null,"PAFW"]
[null,null,"PB25"]
[null,null,"PCCE"]
[null,null,"PB12"]
[null,null,"PAOP"]
[null,null,"PAPY"]
[null,null,"PAN1"]
[null,null,"PADB"]
[null,null,"PADG"]
[null,null,"PB5Y"]
[null,null,"PB48"]
[null,null,"PA4U"]
[null,null,"PBW1"]
[null,null,"PBAT"]
[null,null,"PBOT"]
[null,null,"PBG3"]
[null,null,"PAE2"]
[null,null,"PBMU"]
[null,null,"PBOC"]
[null,null,"PA8M"]
[null,null,"PB5K"]
[null,null,"PBYB"]
[null,null,"PATD"]
[null,null,"PB45"]
[null,null,"PCC1"]
[null,null,"PBIZ"]
[null,null,"PAOF"]
[null,null,"PBM6"]
[null,null,"PB15"]
[null,null,"PBRN"]
[null,null,"PB0R"]
[null,null,"PAHG"]
[null,null,"DE"]
[null,null,"PAOV"]
[null,null,"PA04"]
[null,null,"PBH0"]
[null,null,"PAKG"]
[null,null,"PC19"]
[null,null,"PBQ1"]
[null,null,"PA3K"]
[null,null,"PA3L"]
[null,null,"PC43"]
[null,null,"PB61"]
[null,null,"PCI7"]
[null,null,"PBLE"]
[null,null,"PA39"]
[null,null,"PB6A"]
[null,null,"PC6O"]
[null,null,"PA6Z"]
[null,null,"PATA"]
[null,null,"PAKB"]
[null,null,"PB51"]
[null,null,"PAQD"]
[null,null,"PAIB"]
[null,null,"PBNK"]
[null,null,"PAY6"]
[null,null,"PB5U"]
[null,null,"PA7B"]
[null,null,"PBPA"]
[null,null,"PB62"]
[null,null,"PA89"]
[null,null,"PA2L"]
[null,null,"PBH2"]
[null,null,"PAI9"]
[null,null,"PACF"]
[null,null,"PBL3"]
[null,null,"PBZ3"]
[null,null,"PASI"]
[null,null,"PAM5"]
[null,null,"PBTT"]
[null,null,"PBLH"]
[null,null,"PC4Q"]
[null,null,"PC2V"]
[null,null,"PB6D"]
[null,null,"PAB3"]
[null,null,"PBK0"]
[null,null,"PBI3"]
[null,null,"PBK9"]
[null,null,"PA3P"]
[null,null,"PB1O"]
[null,null,"PBIV"]
[null,null,"PAOS"]
[null,null,"PA4W"]
[null,null,"PBG7"]
[null,null,"PBZ0"]
[null,null,"PB5J"]
[null,null,"PBOY"]
[null,null,"PA3E"]
[null,null,"PBF7"]
[null,null,"PAAH"]
[null,null,"PBZY"]
[null,null,"PBW9"]
[null,null,"PA93"]
[null,null,"PBP1"]
[null,null,"PBUK"]
[null,null,"PAOQ"]
[null,null,"PCAY"]
[null,null,"PBAY"]
[null,null,"PAIU"]
[null,null,"PBYH"]
[null,null,"PAFB"]
[null,null,"PCHD"]
[null,null,"PAPM"]
[null,null,"PBIK"]
[null,null,"PAMV"]
[null,null,"PA7R"]
[null,null,"PA6E"]
[null,null,"PAX4"]
[null,null,"PB23"]
[null,null,"PAOJ"]
[null,null,"PA16"]
[null,null,"PCDS"]
[null,null,"PAY1"]
[null,null,"PAMX"]
[null,null,"PA24"]
[null,null,"PBV9"]
[null,null,"PBUN"]
[null,null,"PA0O"]
[null,null,"PA5X"]
[null,null,"PBGC"]
[null,null,"PAE9"]
[null,null,"PC7F"]
[null,null,"PBHZ"]
[null,null,"PA3U"]
[null,null,"PCCA"]
[null,null,"PCHN"]
[null,null,"PC7Y"]
[null,null,"PCGZ"]
[null,null,"PAS6"]
[null,null,"PA19"]
[null,null,"PAS3"]
[null,null,"PA0V"]
[null,null,"PAOK"]
[null,null,"PBO0"]
[null,null,"PAUK"]
[null,null,"PAJU"]
[null,null,"PANP"]
[null,null,"PBT1"]
[null,null,"PCA3"]
[null,null,"PBEB"]
[null,null,"PBCR"]
[null,null,"PB3H"]
[null,null,"PAQ2"]
[null,null,"PA86"]
[null,null,"PBUP"]
[null,null,"PC0B"]
[null,null,"PB7Q"]
[null,null,"PB6Q"]
[null,null,"PC2S"]
[null,null,"PAXR"]
[null,null,"PBSV"]
[null,null,"PBRU"]
[null,null,"PC34"]
[null,null,"PC7C"]
[null,null,"PBCM"]
[null,null,"PAZL"]
[null,null,"PC7E"]
[null,null,"PC27"]
[null,null,"PAH1"]
[null,null,"PC5L"]
[null,null,"PBHX"]
[null,null,"PAK5"]
[null,null,"PB94"]
[null,null,"PC40"]
[null,null,"PC9M"]
[null,null,"PBCX"]
[null,null,"PB5B"]
[null,null,"PAUX"]
[null,null,"PBJV"]
[null,null,"PBP4"]
[null,null,"PBTM"]
[null,null,"PBSH"]
[null,null,"PAK7"]
[null,null,"PBKN"]
[null,null,"PB1M"]
[null,null,"PAKW"]
[null,null,"PBOJ"]
[null,null,"PC3U"]
[null,null,"PBLF"]
[null,null,"PB21"]
[null,null,"PAXH"]
[null,null,"PCH8"]
[null,null,"PA1Q"]
[null,null,"PB2Q"]
[null,null,"PC6L"]
[null,null,"PB9J"]
[null,null,"PB9Q"]
[null,null,"PBXX"]
[null,null,"PAF2"]
[null,null,"PCAO"]
[null,null,"PAIT"]
[null,null,"PAT3"]
[null,null,"PA9Q"]
[null,null,"PAD3"]
[null,null,"PASX"]
[null,null,"PBRB"]
[null,null,"PBJB"]
[null,null,"PAM7"]
[null,null,"PAS9"]
[null,null,"PC7R"]
[null,null,"PCA4"]
[null,null,"PAB7"]
[null,null,"PAPJ"]
[null,null,"PAIJ"]
[null,null,"PC2G"]
[null,null,"PBSM"]
[null,null,"PAR7"]
[null,null,"PBU9"]
[null,null,"PB6T"]
[null,null,"PBNZ"]
[null,null,"PBP7"]
[null,null,"PC93"]
[null,null,"PABC"]
[null,null,"PBA7"]
[null,null,"PAGB"]
[null,null,"PAI0"]
[null,null,"PAC0"]
[null,null,"PAKR"]
[null,null,"PBOB"]
[null,null,"PC8D"]
[null,null,"PC5N"]
[null,null,"PC82"]
[null,null,"PC2R"]
[null,null,"PBG2"]
[null,null,"PB7E"]
[null,null,"PC0N"]
[null,null,"PBXC"]
[null,null,"PBFS"]
[null,null,"PC97"]
[null,null,"PBZT"]
[null,null,"PBK5"]
[null,null,"PBHC"]
[null,null,"PC9T"]
[null,null,"PC4R"]
[null,null,"PAOI"]
[null,null,"PB8A"]
[null,null,"PA0Z"]
[null,null,"PAI2"]
[null,null,"PA9I"]
[null,null,"PCGD"]
[null,null,"PA2Q"]
[null,null,"PB0V"]
[null,null,"PC2C"]
[null,null,"PB8K"]
[null,null,"PBVB"]
[null,null,"PA0R"]
[null,null,"PC1R"]
[null,null,"PC6M"]
[null,null,"PCCP"]
[null,null,"PAD8"]
[null,null,"PC1T"]
[null,null,"PC4B"]
[null,null,"PBAZ"]
[null,null,"PC56"]
[null,null,"PBUL"]
[null,null,"PC5R"]
[null,null,"PAC9"]
[null,null,"PC9N"]
[null,null,"PC66"]
[null,null,"PANB"]
[null,null,"PAQJ"]
[null,null,"PA5E"]
[null,null,"PBMS"]
[null,null,"PADF"]
[null,null,"PBLT"]
[null,null,"PBTR"]
[null,null,"PBAV"]
[null,null,"PAEY"]
[null,null,"PAET"]
[null,null,"PA91"]
[null,null,"PC9D"]
[null,null,"PADE"]
[null,null,"PBXU"]
[null,null,"PAMP"]
[null,null,"PB9K"]
[null,null,"PAMN"]
[null,null,"PC2P"]
[null,null,"PBUM"]
[null,null,"PCCR"]
[null,null,"PAG6"]
[null,null,"PAYP"]
[null,null,"PAL2"]
[null,null,"PCZ5"]
[null,null,"PB9T"]
[null,null,"PBI7"]
[null,null,"PART"]
[null,null,"PBNM"]
[null,null,"PA79"]
[null,null,"PBW0"]
[null,null,"PBDM"]
[null,null,"PBIY"]
[null,null,"PAUI"]
[null,null,"DC"]
[null,null,"PB8W"]
[null,null,"PB3F"]
[null,null,"PCAN"]
[null,null,"PABK"]
[null,null,"PBTO"]
[null,null,"PA02"]
[null,null,"PB65"]
[null,null,"PA3H"]
[null,null,"PBN1"]
[null,null,"PAQQ"]
[null,null,"PA43"]
[null,null,"PAOD"]
[null,null,"PBSC"]
[null,null,"PB5A"]
[null,null,"PC9A"]
[null,null,"PB50"]
[null,null,"PC6P"]
[null,null,"PAKA"]
[null,null,"PAVC"]
[null,null,"PBYI"]
[null,null,"PAKV"]
[null,null,"PB04"]
[null,null,"PBJO"]
[null,null,"PA2R"]
[null,null,"PC9P"]
[null,null,"PB6H"]
[null,null,"PB6I"]
[null,null,"PCZ2"]
[null,null,"PAMI"]
[null,null,"PAV4"]
[null,null,"PBYS"]
[null,null,"PB3Y"]
[null,null,"PA54"]
[null,null,"PBZH"]
[null,null,"PAKM"]
[null,null,"PAYK"]
[null,null,"PBM7"]
[null,null,"PB0M"]
[null,null,"PBSK"]
[null,null,"PC2T"]
[null,null,"PC8P"]
[null,null,"PASV"]
[null,null,"PC7B"]
[null,null,"PBO9"]
[null,null,"PAYU"]
[null,null,"PA57"]
[null,null,"PB5G"]
[null,null,"PCD5"]
[null,null,"PAYT"]
[null,null,"PAIF"]
[null,null,"PB4A"]
[null,null,"PB8V"]
[null,null,"PBJQ"]
[null,null,"PA1C"]
[null,null,"PC57"]
[null,null,"PC38"]
[null,null,"PBSF"]
[null,null,"PC80"]
[null,null,"PC7H"]
[null,null,"PCHT"]
[null,null,"PBBX"]
[null,null,"PAFG"]
[null,null,"PC8K"]
[null,null,"PC3Q"]
[null,null,"PC3R"]
[null,null,"PBES"]
[null,null,"PBT6"]
[null,null,"PBSY"]
[null,null,"PC72"]
[null,null,"PC44"]
[null,null,"PAG3"]
[null,null,"PA4K"]
[null,null,"PA2E"]
[null,null,"PBBF"]
[null,null,"PBD1"]
[null,null,"PAHS"]
[null,null,"PC8F"]
[null,null,"PC85"]
[null,null,"PA1L"]
[null,null,"PBAF"]
[null,null,"PC5Z"]
[null,null,"PBNO"]
[null,null,"PB8B"]
[null,null,"PAK9"]
[null,null,"PBMR"]
[null,null,"PA23"]
[null,null,"PAYV"]
[null,null,"PAU7"]
[null,null,"PAJ8"]
[null,null,"PAJ4"]
[null,null,"PCD4"]
[null,null,"PANI"]
[null,null,"PALZ"]
[null,null,"PBRA"]
[null,null,"PBF2"]
[null,null,"PC7K"]
[null,null,"PB86"]
[null,null,"PCZQ"]
[null,null,"PBC3"]
[null,null,"PBLP"]
[null,null,"PBQC"]
[null,null,"PBKQ"]
[null,null,"PBN5"]
[null,null,"PAAC"]
[null,null,"PAAM"]
[null,null,"PAE3"]
[null,null,"PAPF"]
[null,null,"PAUG"]
[null,null,"PBS1"]
[null,null,"PBX4"]
[null,null,"PCCZ"]
[null,null,"PBUS"]
[null,null,"PB7O"]
[null,null,"PBGG"]
[null,null,"PCAZ"]
[null,null,"PBG5"]
[null,null,"PBAO"]
[null,null,"PA8I"]
[null,null,"PBVT"]
[null,null,"PAVM"]
[null,null,"PB7I"]
[null,null,"PC3J"]
[null,null,"PASS"]
[null,null,"PA82"]
[null,null,"PBBK"]
[null,null,"PASB"]
[null,null,"PAI3"]
[null,null,"PA2U"]
[null,null,"PAQA"]
[null,null,"PBUJ"]
[null,null,"PA9W"]
[null,null,"PA1E"]
[null,null,"PBSE"]
[null,null,"PBMP"]
[null,null,"PB7N"]
[null,null,"PAJK"]
[null,null,"PAS5"]
[null,null,"PC2W"]
[null,null,"PAF7"]
[null,null,"PB4M"]
[null,null,"PBPS"]
[null,null,"PC5J"]
[null,null,"PB3I"]
[null,null,"PA8O"]
[null,null,"PAT7"]
[null,null,"PAG5"]
[null,null,"PCBF"]
[null,null,"PC7P"]
[null,null,"PB3S"]
[null,null,"PAA6"]
[null,null,"PB7G"]
[null,null,"PAE8"]
[null,null,"PBJT"]
[null,null,"PAI8"]
[null,null,"PAYM"]
[null,null,"PBVP"]
[null,null,"PBFM"]
[null,null,"PAUO"]
[null,null,"PABW"]
[null,null,"PAEA"]
[null,null,"PCCC"]
[null,null,"PBWG"]
[null,null,"PAZO"]
[null,null,"PBDQ"]
[null,null,"PAZ8"]
[null,null,"PB8U"]
[null,null,"PALV"]
[null,null,"PB1W"]
[null,null,"PAXN"]
[null,null,"PBCE"]
[null,null,"PCHK"]
[null,null,"PBCV"]
[null,null,"PA6I"]
[null,null,"PAYZ"]
[null,null,"PATU"]
[null,null,"PAZT"]
[null,null,"PAVW"]
[null,null,"PC9F"]
[null,null,"PBAC"]
[null,null,"PAEU"]
[null,null,"PAOC"]
[null,null,"PAQP"]
[null,null,"PC92"]
[null,null,"PC54"]
[null,null,"PC5G"]
[null,null,"PBJL"]
[null,null,"PAJ3"]
[null,null,"PB7U"]
[null,null,"PB4B"]
[null,null,"PALG"]
[null,null,"PALN"]
[null,null,"PBE0"]
[null,null,"PBLA"]
[null,null,"PAFX"]
[null,null,"PB4V"]
[null,null,"PC41"]
[null,null,"PAUY"]
[null,null,"PCC8"]
[null,null,"PB4O"]
[null,null,"PC18"]
[null,null,"PC20"]
[null,null,"PASL"]
[null,null,"PAVT"]
[null,null,"PADU"]
[null,null,"PA3W"]
[null,null,"PAIA"]
[null,null,"PA7J"]
[null,null,"PBN4"]
[null,null,"PC4A"]
[null,null,"PBRL"]
[null,null,"PAEX"]
[null,null,"PAOX"]
[null,null,"PC96"]
[null,null,"PAN5"]
[null,null,"PB71"]
[null,null,"PA3X"]
[null,null,"PB9S"]
[null,null,"PBV5"]
[null,null,"PBQ3"]
[null,null,"PA40"]
[null,null,"PAT5"]
[null,null,"PBLQ"]
[null,null,"PCCB"]
[null,null,"PC6I"]
[null,null,"PB85"]
[null,null,"PASD"]
[null,null,"PARW"]
[null,null,"PBEO"]
[null,null,"PB2T"]
[null,null,"PBNL"]
[null,null,"PBJS"]
[null,null,"PB3E"]
[null,null,"PA77"]
[null,null,"PC1Y"]
[null,null,"PCB9"]
[null,null,"PA56"]
[null,null,"PA71"]
[null,null,"PBA0"]
[null,null,"PBWU"]
[null,null,"PBEA"]
[null,null,"PAN6"]
[null,null,"PAO0"]
[null,null,"PC7T"]
[null,null,"PB9D"]
[null,null,"PBMA"]
[null,null,"PB2G"]
[null,null,"PCZB"]
[null,null,"PAFE"]
[null,null,"PB43"]
[null,null,"PBX8"]
[null,null,"PBDB"]
[null,null,"PACV"]
[null,null,"PC8G"]
[null,null,"PAX7"]
[null,null,"PBHG"]
[null,null,"PB4D"]
[null,null,"PBSO"]
[null,null,"PBXO"]
[null,null,"PC9K"]
[null,null,"PAZ4"]
[null,null,"PAYY"]
[null,null,"PAQH"]
[null,null,"PB4I"]
[null,null,"PBTN"]
[null,null,"PANV"]
[null,null,"PACP"]
[null,null,"PB64"]
[null,null,"PBE1"]
[null,null,"PCZG"]
[null,null,"PBWH"]
[null,null,"PBZG"]
[null,null,"PC8V"]
[null,null,"PB2V"]
[null,null,"PC4D"]
[null,null,"PC06"]
[null,null,"PB1P"]
[null,null,"PB1U"]
[null,null,"PAJW"]
[null,null,"PBYM"]
[null,null,"PBB9"]
[null,null,"PBFO"]
[null,null,"PCZO"]
[null,null,"PB3R"]
[null,null,"PBZ1"]
[null,null,"PAFJ"]
[null,null,"PBMN"]
[null,null,"PCHB"]
[null,null,"PBP0"]
[null,null,"PA0M"]
[null,null,"PA30"]
[null,null,"PBF5"]
[null,null,"PAJY"]
[null,null,"PBEX"]
[null,null,"PB4E"]
[null,null,"PBEV"]
[null,null,"PAFQ"]
[null,null,"PBKC"]
[null,null,"PAWM"]
[null,null,"PC5M"]
[null,null,"PCZC"]
[null,null,"PBMM"]
[null,null,"PAJO"]
[null,null,"PA20"]
[null,null,"PCZH"]
[null,null,"PAW4"]
[null,null,"PAZC"]
[null,null,"PCHZ"]
[null,null,"PAIW"]
[null,null,"PA6L"]
[null,null,"PC45"]
[null,null,"PB1L"]
[null,null,"PAST"]
[null,null,"PAIL"]
[null,null,"PAVB"]
[null,null,"PB1J"]
[null,null,"PCGL"]
[null,null,"PA7S"]
[null,null,"PAHB"]
[null,null,"PA8Q"]
[null,null,"PBXW"]
[null,null,"PB7S"]
[null,null,"PC67"]
[null,null,"PAHR"]
[null,null,"PC3M"]
[null,null,"PBZV"]
[null,null,"PCD7"]
[null,null,"PBJN"]
[null,null,"PA95"]
[null,null,"PAX8"]
[null,null,"PC5I"]
[null,null,"PAM0"]
[null,null,"PB2R"]
[null,null,"PA9Z"]
[null,null,"PA7V"]
[null,null,"PBRQ"]
[null,null,"PAN0"]
[null,null,"PC32"]
[null,null,"PBKD"]
[null,null,"PB87"]
[null,null,"PAEP"]
[null,null,"PC5B"]
[null,null,"PAGI"]
[null,null,"PA9B"]
[null,null,"PBKJ"]
[null,null,"PC1F"]
[null,null,"PA8F"]
[null,null,"PBFW"]
[null,null,"PBX1"]
[null,null,"PBN2"]
[null,null,"PB16"]
[null,null,"PA44"]
[null,null,"PBRM"]
[null,null,"PBR7"]
[null,null,"PBPQ"]
[null,null,"PB3L"]
[null,null,"PAK1"]
[null,null,"PBM0"]
[null,null,"PB10"]
[null,null,"PBIR"]
[null,null,"PB31"]
[null,null,"PBLJ"]
[null,null,"PCZN"]
[null,null,"PBE5"]
[null,null,"PAXB"]
[null,null,"PCBJ"]
[null,null,"PAPH"]
[null,null,"PAZK"]
[null,null,"PBHJ"]
[null,null,"PAEJ"]
[null,null,"PASY"]
[null,null,"PAH8"]
[null,null,"PBT8"]
[null,null,"PB05"]
[null,null,"PALC"]
[null,null,"PBL0"]
[null,null,"PAS0"]
[null,null,"PBXP"]
[null,null,"PA0L"]
[null,null,"PBNN"]
[null,null,"PAX6"]
[null,null,"PAWV"]
[null,null,"PB7A"]
[null,null,"PC1I"]
[null,null,"PA26"]
[null,null,"PBF0"]
[null,null,"PA1I"]
[null,null,"PAOR"]
[null,null,"PAV7"]
[null,null,"PCDL"]
[null,null,"PBBZ"]
[null,null,"PB35"]
[null,null,"PBPL"]
[null,null,"PA73"]
[null,null,"PB4U"]
[null,null,"PAGO"]
[null,null,"PA4Y"]
[null,null,"PAPN"]
[null,null,"PA3F"]
[null,null,"PALU"]
[null,null,"PBGR"]
[null,null,"PBZZ"]
[null,null,"PBZ6"]
[null,null,"PCB6"]
[null,null,"PC09"]
[null,null,"PAJ1"]
[null,null,"PAWH"]
[null,null,"PC10"]
[null,null,"PAVK"]
[null,null,"PANR"]
[null,null,"PA3M"]
[null,null,"PBNR"]
[null,null,"PC0S"]
[null,null,"PBUA"]
[null,null,"PAIQ"]
[null,null,"PA34"]
[null,null,"PBON"]
[null,null,"PBA8"]
[null,null,"PAHH"]
[null,null,"PAF1"]
[null,null,"PB2Z"]
[null,null,"PA8W"]
[null,null,"PBXZ"]
[null,null,"PC98"]
[null,null,"PC9O"]
[null,null,"PAGE"]
[null,null,"PBZ7"]
[null,null,"PAL7"]
[null,null,"PA8H"]
[null,null,"PAPT"]
[null,null,"PBSB"]
[null,null,"PAIV"]
[null,null,"PACN"]
[null,null,"PAEQ"]
[null,null,"PBXT"]
[null,null,"PBUO"]
[null,null,"PC6T"]
[null,null,"PANZ"]
[null,null,"PAPC"]
[null,null,"PANJ"]
[null,null,"PAZ1"]
[null,null,"PBFN"]
[null,null,"PBY4"]
[null,null,"PA0X"]
[null,null,"PAV9"]
[null,null,"PBOR"]
[null,null,"PBA5"]
[null,null,"PC6A"]
[null,null,"PB2L"]
[null,null,"PA41"]
[null,null,"PCBM"]
[null,null,"PAER"]
[null,null,"PA6T"]
[null,null,"PCH4"]
[null,null,"PBML"]
[null,null,"PCCH"]
[null,null,"PARU"]
[null,null,"PA7I"]
[null,null,"PBEG"]
[null,null,"PAAG"]
[null,null,"PAH4"]
[null,null,"PAXV"]
[null,null,"PA75"]
[null,null,"PC17"]
[null,null,"PAHT"]
[null,null,"PA6Y"]
[null,null,"PB9Z"]
[null,null,"PAZP"]
[null,null,"PB77"]
[null,null,"PADW"]
[null,null,"PAA0"]
[null,null,"PAOO"]
[null,null,"PB0J"]
[null,null,"PA0T"]
[null,null,"PA7X"]
[null,null,"PAAU"]
[null,null,"PA0D"]
[null,null,"PBQ6"]
[null,null,"PAH9"]
[null,null,"PBTY"]
[null,null,"PC7U"]
[null,null,"PBQ2"]
[null,null,"PAVJ"]
[null,null,"PBJU"]
[null,null,"PAF5"]
[null,null,"PATW"]
[null,null,"PBDJ"]
[null,null,"PCA0"]
[null,null,"PBXK"]
[null,null,"PBW5"]
[null,null,"PAUQ"]
[null,null,"PBCP"]
[null,null,"PALY"]
[null,null,"PB3P"]
[null,null,"PB9C"]
[null,null,"PAH5"]
[null,null,"PB1B"]
[null,null,"PA6M"]
[null,null,"PA5A"]
[null,null,"PAUV"]
[null,null,"PB2E"]
[null,null,"PA"]
[null,null,"PC4G"]
[null,null,"PA18"]
[null,null,"PA1H"]
[null,null,"PA7C"]
[null,null,"PC4V"]
[null,null,"PBVR"]
[null,null,"PAY4"]
[null,null,"PCA7"]
[null,null,"PC1A"]
[null,null,"PCGY"]
[null,null,"PA1Z"]
[null,null,"PBOE"]
[null,null,"PCDF"]
[null,null,"PAS7"]
[null,null,"PC5F"]
[null,null,"PB66"]
[null,null,"PCB8"]
[null,null,"PA4F"]
[null,null,"PA2K"]
[null,null,"PAX0"]
[null,null,"PB9I"]
[null,null,"PADP"]
[null,null,"PBYR"]
[null,null,"PBRK"]
[null,null,"PA9R"]
[null,null,"PBVD"]
[null,null,"PAU5"]
[null,null,"PC0I"]
[null,null,"PABQ"]
[null,null,"PB11"]
[null,null,"PAWF"]
[null,null,"PBKM"]
[null,null,"PBH1"]
[null,null,"PACC"]
[null,null,"PBCC"]
[null,null,"PASC"]
[null,null,"PA66"]
[null,null,"PC3O"]
[null,null,"PAYD"]
[null,null,"PBC7"]
[null,null,"PCBN"]
[null,null,"PAQX"]
[null,null,"PAY8"]
[null,null,"PBO1"]
[null,null,"PAF3"]
[null,null,"PAEG"]
[null,null,"PBV7"]
[null,null,"PA1S"]
[null,null,"PCA6"]
[null,null,"PC8T"]
[null,null,"PAKY"]
[null,null,"PAP5"]
[null,null,"PBSN"]
[null,null,"PBFB"]
[null,null,"PA03"]
[null,null,"PBNJ"]
[null,null,"PCI2"]
[null,null,"PAQE"]
[null,null,"PAUE"]
[null,null,"PBJ2"]
[null,null,"PC8H"]
[null,null,"PAWT"]
[null,null,"PALI"]
[null,null,"PBAI"]
[null,null,"PB2A"]
[null,null,"PCGI"]
[null,null,"PAJF"]
[null,null,"PBB2"]
[null,null,"PAFA"]
[null,null,"PBTC"]
[null,null,"PCAS"]
[null,null,"PBPY"]
[null,null,"PAHK"]
[null,null,"PAXL"]
[null,null,"PBKS"]
[null,null,"PAKZ"]
[null,null,"PC83"]
[null,null,"PCAG"]
[null,null,"PBNU"]
[null,null,"PAAF"]
[null,null,"PB4F"]
[null,null,"PB3X"]
[null,null,"PB7F"]
[null,null,"PA2N"]
[null,null,"PBU4"]
[null,null,"PBPB"]
[null,null,"PCH3"]
[null,null,"PAPR"]
[null,null,"PAYE"]
[null,null,"PAMU"]
[null,null,"PAMH"]
[null,null,"PAO5"]
[null,null,"PA32"]
[null,null,"PAB5"]
[null,null,"PBOD"]
[null,null,"PC4W"]
[null,null,"PAQV"]
[null,null,"PBQT"]
[null,null,"PCAH"]
[null,null,"PAXS"]
[null,null,"PA6Q"]
[null,null,"PAYN"]
[null,null,"PBEW"]
[null,null,"PBZN"]
[null,null,"PB2P"]
[null,null,"PAE0"]
[null,null,"PAQ4"]
[null,null,"PA4C"]
[null,null,"PBC1"]
[null,null,"PBL6"]
[null,null,"PC8R"]
[null,null,"PAMG"]
[null,null,"PATH"]
[null,null,"PA01"]
[null,null,"PBYG"]
[null,null,"PC0X"]
[null,null,"PBSJ"]
[null,null,"PA1M"]
[null,null,"PBH8"]
[null,null,"PBQE"]
[null,null,"PA97"]
[null,null,"PA85"]
[null,null,"PBWB"]